Trans No.,Service Area Categorisation,Service Division Categorisation,Responsible Unit,Unit Code,Expenses Type,Expenses Sub Type,Expense Code,Narrative,Amount,Invoice Date,Cap/Rev,Supplier Name
1,Central Services,SupS Chief Execs,Local Involvement Network,A01039,Third Party Payments          ,Private Contractors           ,EH10,Contract Payments                       ,952.00,31/08/2016,R,VOICEABILITY                  
2,Central Services,SupS Chief Execs,Local Involvement Network,A01039,Third Party Payments          ,Private Contractors           ,EH10,Contract Payments                       ,"1,104.00",22/04/2016,R,VOICEABILITY                  
3,Central Services,SupS Chief Execs,Local Involvement Network,A01039,Third Party Payments          ,Private Contractors           ,EH10,Contract Payments                       ,"1,440.14",22/04/2016,R,VOICEABILITY                  
4,Cultural Env Reg&Plan Services,Comm Safety (Crime Reduction),PRG Reserve,A01106,Supplies & Services           ,Grants and Subscriptions      ,DJ54,Contributions                           ,"27,000.00",25/08/2016,R,LONDON FIRE BRIGADE           
5,Cultural Env Reg&Plan Services,Comm Safety (Crime Reduction),CCTV,A01200,Supplies & Services           ,Equip Furniture/Materials     ,DA01,Equipment - R & M                       ,"3,554.12",19/09/2016,R,TYCO FIRE & INTEGR'TD SOL (UK 
6,Cultural Env Reg&Plan Services,Comm Safety (Crime Reduction),CCTV,A01200,Supplies & Services           ,Services                      ,DF57,Consulting Engineers Fees               ,"2,955.18",05/09/2016,R,GLOBAL MSC SECURITY LTD       
7,Central Services,SupS Chief Execs,NON-STATUTORY MARKETING & COMM,A02019,Supplies & Services           ,Services                      ,DF02,Misc Advertising/Publicity              ,537.50,25/08/2016,R,JCDECAUX UNITED KINGDOM       
8,Central Services,SupS Chief Execs,NON-STATUTORY MARKETING & COMM,A02019,Supplies & Services           ,Services                      ,DF02,Misc Advertising/Publicity              ,537.50,25/08/2016,R,JCDECAUX UNITED KINGDOM       
9,Central Services,SupS Chief Execs,Press and Public Relations.,A02026,Supplies & Services           ,Services                      ,DF35,Graphic Design                          ,"4,422.50",01/09/2016,R,DOMINO 4 LIMITED              
10,Central Services,SupS Chief Execs,Sales and Marketing                     ,A02034,Supplies & Services           ,Services                      ,DF02,Misc Advertising/Publicity              ,"2,500.00",20/05/2016,R,EXTERION MEDIA                
11,CS -Oth Operating Inc & Expend,T/A Corporate Services,Prting Jobs - Internal,A03040,Supplies & Services           ,Prntng Stnry Gen Off Exp      ,DE05,Micro-filming                           ,918.02,07/09/2016,R,MISL LTD                      
12,CS -Oth Operating Inc & Expend,T/A Corporate Services,Prting Jobs - Internal,A03040,Supplies & Services           ,Prntng Stnry Gen Off Exp      ,DE05,Micro-filming                           ,"1,548.36",31/08/2016,R,MISL LTD                      
13,CS -Oth Operating Inc & Expend,T/A Corporate Services,Prting Jobs - Internal,A03040,Supplies & Services           ,Prntng Stnry Gen Off Exp      ,DE05,Micro-filming                           ,"1,655.83",09/09/2016,R,MISL LTD                      
14,CS -Oth Operating Inc & Expend,T/A Corporate Services,Prting Jobs - Internal,A03040,Supplies & Services           ,Prntng Stnry Gen Off Exp      ,DE05,Micro-filming                           ,"2,131.60",02/09/2016,R,MISL LTD                      
15,CS -Oth Operating Inc & Expend,T/A Corporate Services,Prting Jobs - Internal,A03040,Supplies & Services           ,Prntng Stnry Gen Off Exp      ,DE05,Micro-filming                           ,"6,059.04",06/09/2016,R,MISL LTD                      
16,CS -Oth Operating Inc & Expend,T/A Corporate Services,Prtng Jobs - Ext Agncy,A03041,Supplies & Services           ,Prntng Stnry Gen Off Exp      ,DE01,External Printing                       ,500.00,31/08/2016,R,RECOGNITION EXPRESS           
17,CS -Oth Operating Inc & Expend,T/A Corporate Services,Prtng Jobs - Ext Agncy,A03041,Supplies & Services           ,Prntng Stnry Gen Off Exp      ,DE01,External Printing                       ,707.00,16/09/2016,R,CLIFFE ENTERPRISE LTD         
18,CS -Oth Operating Inc & Expend,T/A Corporate Services,Prtng Jobs - Ext Agncy,A03041,Supplies & Services           ,Prntng Stnry Gen Off Exp      ,DE01,External Printing                       ,900.00,31/08/2016,R,ZENITH PACKAGING LTD          
19,CS -Oth Operating Inc & Expend,T/A Corporate Services,Prtng Jobs - Ext Agncy,A03041,Supplies & Services           ,Prntng Stnry Gen Off Exp      ,DE01,External Printing                       ,"2,080.00",31/08/2016,R,CUSTOMISED GRAPHICS PRINT LTD 
20,CS -Oth Operating Inc & Expend,T/A Corporate Services,Prtng Jobs - Ext Agncy,A03041,Supplies & Services           ,Prntng Stnry Gen Off Exp      ,DE01,External Printing                       ,"7,624.50",15/09/2016,R,CLIFFE ENTERPRISE LTD         
21,CS -Oth Operating Inc & Expend,T/A Corporate Services,Translation Services,A04060,Supplies & Services           ,Services                      ,DF45,Payment of Sessional Workers            ,513.00,31/08/2016,R,REDACTED
22,Central Services,SupS Best Value,Merton Link,A04070,Supplies & Services           ,Comms and Computing           ,DG09,Computer Purchases - Misc               ,509.94,13/09/2016,R,INCOM TELECOMMUNICATIONS      
23,Central Services,SupS Comm and Member Services,COMMERICIAL SERVICES,A04085,Employees                     ,Direct Employee Expenses      ,AA17,Agency Staff & Casual Paymts            ,"1,785.00",01/09/2016,R,HAYS SPECIALIST RECRUITM'T LTD
24,Central Services,SupS Comm and Member Services,COMMERICIAL SERVICES,A04085,Employees                     ,Direct Employee Expenses      ,AA17,Agency Staff & Casual Paymts            ,"1,980.00",20/07/2016,R,HAYS SPECIALIST RECRUITM'T LTD
25,Central Services,SupS Comm and Member Services,COMMERICIAL SERVICES,A04085,Employees                     ,Direct Employee Expenses      ,AA17,Agency Staff & Casual Paymts            ,"2,109.00",26/08/2016,R,HAYS SPECIALIST RECRUITM'T LTD
26,Central Services,SupS Comm and Member Services,COMMERICIAL SERVICES,A04085,Employees                     ,Direct Employee Expenses      ,AA17,Agency Staff & Casual Paymts            ,"2,109.00",07/09/2016,R,HAYS SPECIALIST RECRUITM'T LTD
27,Central Services,SupS Comm and Member Services,COMMERICIAL SERVICES,A04085,Employees                     ,Direct Employee Expenses      ,AA17,Agency Staff & Casual Paymts            ,"2,475.00",20/07/2016,R,HAYS SPECIALIST RECRUITM'T LTD
28,Central Services,SupS Comm and Member Services,COMMERICIAL SERVICES,A04085,Employees                     ,Direct Employee Expenses      ,AA17,Agency Staff & Casual Paymts            ,"2,475.00",20/07/2016,R,HAYS SPECIALIST RECRUITM'T LTD
29,Central Services,SupS Comm and Member Services,COMMERICIAL SERVICES,A04085,Employees                     ,Direct Employee Expenses      ,AA17,Agency Staff & Casual Paymts            ,"2,636.25",02/09/2016,R,HAYS SPECIALIST RECRUITM'T LTD
30,Highways & Transport Services,On-street parking,Blue Badge Service,A04088,Supplies & Services           ,Services                      ,DF14,Doctors and Other Fees                  ,600.00,18/08/2016,R,LLOYDS TSB COMMERCIAL FINANCE 
31,Highways & Transport Services,On-street parking,Blue Badge Service,A04088,Supplies & Services           ,Comms and Computing           ,DG15,Network Maintenance                     ,940.04,02/09/2016,R,NORTHGATE PUBLIC SERVICES (UK)
32,Central Services,Registn Birth/Death/Marriage,Reg of B. Deaths & Ms,B06143,Supplies & Services           ,Comms and Computing           ,DG07,Computer Software                       ,"1,995.00",07/03/2016,R,ZIPPORAH LTD                  
33,Central Services,Registn Birth/Death/Marriage,Reg of B. Deaths & Ms,B06143,Supplies & Services           ,Comms and Computing           ,DG07,Computer Software                       ,"3,000.00",31/12/2015,R,ZIPPORAH LTD                  
34,Central Services,SupS Health & Safety,Learning and Development,B06146,Employees                     ,Indirect Employee Expenses    ,AB57,EXTERNAL TRAINING COSTS                 ,500.00,08/09/2016,R,BOND SOLON                    
35,Central Services,SupS Health & Safety,Learning and Development,B06146,Employees                     ,Indirect Employee Expenses    ,AB57,EXTERNAL TRAINING COSTS                 ,650.00,19/09/2016,R,MEDI AID(UK) LTD              
36,Central Services,SupS Health & Safety,Learning and Development,B06146,Employees                     ,Indirect Employee Expenses    ,AB57,EXTERNAL TRAINING COSTS                 ,675.00,15/09/2016,R,PEARLCATCHERS LIMITED         
37,Central Services,SupS Health & Safety,Learning and Development,B06146,Employees                     ,Indirect Employee Expenses    ,AB57,EXTERNAL TRAINING COSTS                 ,675.00,15/09/2016,R,PEARLCATCHERS LIMITED         
38,Central Services,SupS Health & Safety,Learning and Development,B06146,Employees                     ,Indirect Employee Expenses    ,AB57,EXTERNAL TRAINING COSTS                 ,675.00,15/09/2016,R,PEARLCATCHERS LIMITED         
39,Central Services,SupS Health & Safety,Learning and Development,B06146,Employees                     ,Indirect Employee Expenses    ,AB57,EXTERNAL TRAINING COSTS                 ,675.00,15/09/2016,R,PEARLCATCHERS LIMITED         
40,Central Services,SupS Health & Safety,Learning and Development,B06146,Employees                     ,Indirect Employee Expenses    ,AB57,EXTERNAL TRAINING COSTS                 ,730.00,21/09/2016,R,CIPFA                         
41,Central Services,SupS Health & Safety,Learning and Development,B06146,Employees                     ,Indirect Employee Expenses    ,AB57,EXTERNAL TRAINING COSTS                 ,820.00,16/08/2016,R,LANCING DRIVER TRAINING       
42,Central Services,SupS Health & Safety,Learning and Development,B06146,Employees                     ,Indirect Employee Expenses    ,AB57,EXTERNAL TRAINING COSTS                 ,975.00,14/09/2016,R,MEDI AID(UK) LTD              
43,Central Services,SupS Health & Safety,Learning and Development,B06146,Employees                     ,Indirect Employee Expenses    ,AB57,EXTERNAL TRAINING COSTS                 ,"1,220.00",01/09/2016,R,BTFI LIMITED                  
44,Central Services,SupS Health & Safety,Learning and Development,B06146,Employees                     ,Indirect Employee Expenses    ,AB57,EXTERNAL TRAINING COSTS                 ,"1,220.00",09/09/2016,R,BTFI LIMITED                  
45,Central Services,SupS Health & Safety,Learning and Development,B06146,Employees                     ,Indirect Employee Expenses    ,AB57,EXTERNAL TRAINING COSTS                 ,"1,500.00",13/09/2016,R,THE LEARNING ARCHITECT        
46,Central Services,SupS Health & Safety,Learning and Development,B06146,Employees                     ,Indirect Employee Expenses    ,AB57,EXTERNAL TRAINING COSTS                 ,"1,580.00",15/09/2016,R,OXFORD BROOKES UNIVERSITY     
47,,,The Gables Mitcham                      ,CC021AB,New Construction Conversion and Renovation,0,B4,Contractor - Site works                 ,"13,382.25",16/09/2016,C,MOY CONSTRUCTION CO LTD       
48,,,CCTV (match funding)                    ,CE002EA,New Construction Conversion and Renovation,0,B4,Contractor - Site works                 ,"1,694.00",22/08/2016,C,BILFINGER EUROPA FACILITY     
49,,,Disabled Facilities Grant DCLG          ,CE004RA,Other Capital Expenditure,0,E1,Grants                                  ,"1,068.72",23/09/2016,C,REDACTED
50,,,Disabled Facilities Grant DCLG          ,CE004RA,Other Capital Expenditure,0,E1,Grants                                  ,642.23,02/08/2016,C,LONDON BOROUGH OF SUTTON      
51,,,Disabled Facilities Grant DCLG          ,CE004RA,Other Capital Expenditure,0,E1,Grants                                  ,690.80,09/09/2016,C,CBS ADAPTATION                
52,,,Disabled Facilities Grant DCLG          ,CE004RA,Other Capital Expenditure,0,E1,Grants                                  ,865.42,12/09/2016,C,CBS ADAPTATION                
53,,,Disabled Facilities Grant DCLG          ,CE004RA,Other Capital Expenditure,0,E1,Grants                                  ,"1,051.40",20/09/2016,C,CBS ADAPTATION                
54,,,Disabled Facilities Grant DCLG          ,CE004RA,Other Capital Expenditure,0,E1,Grants                                  ,"1,190.86",20/09/2016,C,CBS ADAPTATION                
55,,,Disabled Facilities Grant DCLG          ,CE004RA,Other Capital Expenditure,0,E1,Grants                                  ,"1,232.67",12/09/2016,C,ASCENDIT LIFTS LTD            
56,,,Disabled Facilities Grant DCLG          ,CE004RA,Other Capital Expenditure,0,E1,Grants                                  ,"1,310.09",20/09/2016,C,CBS ADAPTATION                
57,,,Disabled Facilities Grant DCLG          ,CE004RA,Other Capital Expenditure,0,E1,Grants                                  ,"1,311.26",20/09/2016,C,CBS ADAPTATION                
58,,,Disabled Facilities Grant DCLG          ,CE004RA,Other Capital Expenditure,0,E1,Grants                                  ,"1,334.33",20/09/2016,C,CBS ADAPTATION                
59,,,Disabled Facilities Grant DCLG          ,CE004RA,Other Capital Expenditure,0,E1,Grants                                  ,"1,449.22",20/09/2016,C,CBS ADAPTATION                
60,,,Disabled Facilities Grant DCLG          ,CE004RA,Other Capital Expenditure,0,E1,Grants                                  ,"1,475.00",09/09/2016,C,FREEWAY LIFT SERVICES LTD     
61,,,Disabled Facilities Grant DCLG          ,CE004RA,Other Capital Expenditure,0,E1,Grants                                  ,"1,478.14",12/09/2016,C,CBS ADAPTATION                
62,,,Disabled Facilities Grant DCLG          ,CE004RA,Other Capital Expenditure,0,E1,Grants                                  ,"1,643.74",07/09/2016,C,CBS ADAPTATION                
63,,,Disabled Facilities Grant DCLG          ,CE004RA,Other Capital Expenditure,0,E1,Grants                                  ,"1,766.80",30/09/2016,C,SUTTON STAYING PUT            
64,,,Disabled Facilities Grant DCLG          ,CE004RA,Other Capital Expenditure,0,E1,Grants                                  ,"2,050.00",09/09/2016,C,GARVEY BROS BUILDERS          
65,,,Disabled Facilities Grant DCLG          ,CE004RA,Other Capital Expenditure,0,E1,Grants                                  ,"2,083.90",15/09/2016,C,CBS ADAPTATION                
66,,,Disabled Facilities Grant DCLG          ,CE004RA,Other Capital Expenditure,0,E1,Grants                                  ,"2,291.51",12/09/2016,C,CBS ADAPTATION                
67,,,Disabled Facilities Grant DCLG          ,CE004RA,Other Capital Expenditure,0,E1,Grants                                  ,"3,095.00",07/09/2016,C,FREEWAY LIFT SERVICES LTD     
68,,,Disabled Facilities Grant DCLG          ,CE004RA,Other Capital Expenditure,0,E1,Grants                                  ,"3,150.94",12/09/2016,C,STAYING FIRST                 
69,,,Disabled Facilities Grant DCLG          ,CE004RA,Other Capital Expenditure,0,E1,Grants                                  ,"3,385.00",12/09/2016,C,GARVEY BROS BUILDERS          
70,,,Disabled Facilities Grant DCLG          ,CE004RA,Other Capital Expenditure,0,E1,Grants                                  ,"4,365.00",07/09/2016,C,THE LIFECARE CENTRE           
71,,,Disabled Facilities Grant DCLG          ,CE004RA,Other Capital Expenditure,0,E1,Grants                                  ,"5,243.00",09/09/2016,C,W C EVANS & SONS LTD          
72,,,Disabled Facilities Grant DCLG          ,CE004RA,Other Capital Expenditure,0,E1,Grants                                  ,"5,290.00",23/09/2016,C,ASCENDIT LIFTS LTD            
73,,,Disabled Facilities Grant DCLG          ,CE004RA,Other Capital Expenditure,0,E1,Grants                                  ,"6,775.00",23/09/2016,C,THE LIFECARE CENTRE           
74,,,Disabled Facilities Grant DCLG          ,CE004RA,Other Capital Expenditure,0,E1,Grants                                  ,"7,720.00",07/09/2016,C,MICHAEL BROWN BUILDERS LTD    
75,,,Disabled Facilities Grant DCLG          ,CE004RA,Other Capital Expenditure,0,E1,Grants                                  ,"8,906.00",23/09/2016,C,WEIR BUILDING SERVICES        
76,,,Disabled Facilities Grant DCLG          ,CE004RA,Other Capital Expenditure,0,E1,Grants                                  ,"9,160.00",20/09/2016,C,NONDRIP                       
77,,,Colliers Wd- Regeneration Fund          ,CE006FB,New Construction Conversion and Renovation,0,B4,Contractor - Site works                 ,"9,617.28",30/08/2016,C,FM CONWAY LTD                 
78,,,Colliers Wd- Regeneration Fund          ,CE006FB,New Construction Conversion and Renovation,0,B4,Contractor - Site works                 ,"123,092.29",20/09/2016,C,FM CONWAY LTD                 
79,,,Mitcham Major schemes                   ,CE006FD,New Construction Conversion and Renovation,0,B4,Contractor - Site works                 ,"1,100.00",30/08/2016,C,FM CONWAY LTD                 
80,,,Mitcham Major schemes                   ,CE006FD,New Construction Conversion and Renovation,0,B4,Contractor - Site works                 ,"1,293.83",30/08/2016,C,FM CONWAY LTD                 
81,,,Mitcham Major schemes                   ,CE006FD,New Construction Conversion and Renovation,0,B4,Contractor - Site works                 ,"4,302.01",07/09/2016,C,FM CONWAY LTD                 
82,,,Mitcham Major schemes                   ,CE006FD,New Construction Conversion and Renovation,0,B4,Contractor - Site works                 ,"20,447.40",07/09/2016,C,FM CONWAY LTD                 
83,,,Mitcham Major schemes                   ,CE006FD,New Construction Conversion and Renovation,0,B4,Contractor - Site works                 ,"25,944.21",30/08/2016,C,FM CONWAY LTD                 
84,,,Mitcham Major schemes                   ,CE006FD,New Construction Conversion and Renovation,0,B4,Contractor - Site works                 ,"120,000.00",20/09/2016,C,FM CONWAY LTD                 
85,,,Mitcham Major schemes                   ,CE006FD,New Construction Conversion and Renovation,0,B6,Other Costs - Site works                ,763.00,14/09/2016,C,UK POWER NETWORKS (OPERATIONS)
86,,,Living Wandle Ravensbury Park,CE009CF,New Construction Conversion and Renovation,0,B1,Consultants Fees D&S Structure          ,"5,266.00",07/09/2016,C,WANDLE TRUST                  
87,,,Living Wandle Ravensbury Park,CE009CF,New Construction Conversion and Renovation,0,B1,Consultants Fees D&S Structure          ,"7,551.50",27/07/2016,C,WANDLE TRUST                  
88,,,Parks Investment                        ,CE013SA,New Construction Conversion and Renovation,0,B4,Contractor - Site works                 ,"1,535.00",06/09/2016,C,FM CONWAY LTD                 
89,,,Parks Investment                        ,CE013SA,New Construction Conversion and Renovation,0,B4,Contractor - Site works                 ,"5,400.00",07/09/2016,C,TAYLOR BUILDING COMPANY LTD   
90,,,Parks Investment                        ,CE013SA,New Construction Conversion and Renovation,0,B4,Contractor - Site works                 ,"5,820.00",07/09/2016,C,TAYLOR BUILDING COMPANY LTD   
91,,,Parks Investment                        ,CE013SA,New Construction Conversion and Renovation,0,B4,Contractor - Site works                 ,"7,900.00",23/09/2016,C,TAYLOR BUILDING COMPANY LTD   
92,,,Borough Roads Maintenance               ,CE026FA,New Construction Conversion and Renovation,0,B4,Contractor - Site works                 ,578.13,30/08/2016,C,FM CONWAY LTD                 
93,,,Borough Roads Maintenance               ,CE026FA,New Construction Conversion and Renovation,0,B4,Contractor - Site works                 ,"1,280.22",20/09/2016,C,FM CONWAY LTD                 
94,,,Borough Roads Maintenance               ,CE026FA,New Construction Conversion and Renovation,0,B4,Contractor - Site works                 ,"16,982.52",20/09/2016,C,FM CONWAY LTD                 
95,,,Borough Roads Maintenance               ,CE026FA,New Construction Conversion and Renovation,0,B4,Contractor - Site works                 ,"20,000.00",20/09/2016,C,FM CONWAY LTD                 
96,,,Borough Roads Maintenance               ,CE026FA,New Construction Conversion and Renovation,0,B4,Contractor - Site works                 ,"45,000.00",20/09/2016,C,FM CONWAY LTD                 
97,,,Borough Roads Maintenance               ,CE026FA,New Construction Conversion and Renovation,0,B4,Contractor - Site works                 ,"160,000.00",20/09/2016,C,FM CONWAY LTD                 
98,,,Borough Roads Maintenance               ,CE026FA,New Construction Conversion and Renovation,0,B4,Contractor - Site works                 ,"200,000.00",20/09/2016,C,FM CONWAY LTD                 
99,,,Borough Roads Maintenance               ,CE026FA,New Construction Conversion and Renovation,0,C3,Public Notices - Structure              ,"1,548.00",19/08/2016,C,NEWSQUEST MEDIA GROUP LTD     
100,,,TFL Projected Slippage                  ,CE026SA,New Construction Conversion and Renovation,0,B4,Contractor - Site works                 ,"1,287.85",07/09/2016,C,FM CONWAY LTD                 
101,,,TFL Projected Slippage                  ,CE026SA,New Construction Conversion and Renovation,0,B4,Contractor - Site works                 ,"7,110.46",20/09/2016,C,FM CONWAY LTD                 
102,,,TFL Projected Slippage                  ,CE026SA,New Construction Conversion and Renovation,0,B6,Other Costs - Site works                ,526.00,06/09/2016,C,UK POWER NETWORKS (OPERATIONS)
103,,,TFL Projected Slippage                  ,CE026SA,New Construction Conversion and Renovation,0,B6,Other Costs - Site works                ,763.00,24/06/2016,C,UK POWER NETWORKS (OPERATIONS)
104,,,Maintain AntiSkid and Coloured          ,CE027FA,New Construction Conversion and Renovation,0,B4,Contractor - Site works                 ,"5,138.58",20/09/2016,C,FM CONWAY LTD                 
105,,,Maintain AntiSkid and Coloured          ,CE027FA,New Construction Conversion and Renovation,0,B4,Contractor - Site works                 ,"8,500.00",20/09/2016,C,FM CONWAY LTD                 
106,,,Maintain AntiSkid and Coloured          ,CE027FA,New Construction Conversion and Renovation,0,B4,Contractor - Site works                 ,"30,032.02",20/09/2016,C,FM CONWAY LTD                 
107,,,Pay & Display Machine                   ,CE029AA,New Construction Conversion and Renovation,0,B4,Contractor - Site works                 ,"2,192.91",07/09/2016,C,FM CONWAY LTD                 
108,,,Repairs to Footways                     ,CE029FA,New Construction Conversion and Renovation,0,B4,Contractor - Site works                 ,"4,562.03",07/09/2016,C,FM CONWAY LTD                 
109,,,Repairs to Footways                     ,CE029FA,New Construction Conversion and Renovation,0,B4,Contractor - Site works                 ,"13,000.00",07/09/2016,C,FM CONWAY LTD                 
110,,,Repairs to Footways                     ,CE029FA,New Construction Conversion and Renovation,0,B4,Contractor - Site works                 ,"100,000.00",30/08/2016,C,FM CONWAY LTD                 
111,,,Leisure Centre Plant & Machine          ,CE038MA,New Construction Conversion and Renovation,0,B4,Contractor - Site works                 ,"14,250.00",31/08/2016,C,NATIONCARE WINDOWS LTD        
112,,,Morden Leisure Centre                   ,CE045AA,New Construction Conversion and Renovation,0,B1,Consultants Fees D&S Structure          ,"1,000.00",31/08/2016,C,SWEETT (UK) LIMITED           
113,,,Morden Leisure Centre                   ,CE045AA,New Construction Conversion and Renovation,0,B1,Consultants Fees D&S Structure          ,"1,045.00",25/07/2016,C,NATURAL ENGLAND               
114,,,Morden Leisure Centre                   ,CE045AA,New Construction Conversion and Renovation,0,B1,Consultants Fees D&S Structure          ,"3,500.00",31/08/2016,C,SWEETT (UK) LIMITED           
115,,,Morden Leisure Centre                   ,CE045AA,New Construction Conversion and Renovation,0,B1,Consultants Fees D&S Structure          ,"3,882.00",31/08/2016,C,GARDINER & THEOBALD LLP       
116,,,Morden Leisure Centre                   ,CE045AA,New Construction Conversion and Renovation,0,B2,Site Surveys D&S Structure              ,"1,635.00",20/08/2016,C,GPM ECOLOGY                   
117,,,Morden Leisure Centre                   ,CE045AA,New Construction Conversion and Renovation,0,B2,Site Surveys D&S Structure              ,"2,040.00",15/09/2016,C,ASHDOWN SITE INVESTIGATION    
118,,,Industrial Estate Investment,CE059FA,New Construction Conversion and Renovation,0,B4,Contractor - Site works                 ,"7,096.50",04/08/2016,C,KIARA DECORATING CONTRACTORS  
119,,,Town Centre Investment                  ,CE061FB,New Construction Conversion and Renovation,0,B4,Contractor - Site works                 ,"4,565.00",30/08/2016,C,FM CONWAY LTD                 
120,,,Brighter Business,CE061FJ,Other Capital Expenditure,0,E1,Grants                                  ,"3,557.00",12/09/2016,C,REDACTED
121,,,Street Lighting Replacement Pr          ,CE068FA,New Construction Conversion and Renovation,0,B4,Contractor - Site works                 ,580.00,08/09/2016,C,TK CONSTRUCT & ELECTRIC INSTAL
122,,,Street Lighting Replacement Pr          ,CE068FA,New Construction Conversion and Renovation,0,B4,Contractor - Site works                 ,821.05,30/08/2016,C,KIER INTEGRATED SERVICES LTD  
123,,,Street Lighting Replacement Pr          ,CE068FA,New Construction Conversion and Renovation,0,B4,Contractor - Site works                 ,875.50,02/09/2016,C,KIER INTEGRATED SERVICES LTD  
124,,,Street Lighting Replacement Pr          ,CE068FA,New Construction Conversion and Renovation,0,B4,Contractor - Site works                 ,886.82,30/08/2016,C,KIER INTEGRATED SERVICES LTD  
125,,,Street Lighting Replacement Pr          ,CE068FA,New Construction Conversion and Renovation,0,B4,Contractor - Site works                 ,938.41,30/08/2016,C,KIER INTEGRATED SERVICES LTD  
126,,,Street Lighting Replacement Pr          ,CE068FA,New Construction Conversion and Renovation,0,B4,Contractor - Site works                 ,950.00,19/09/2016,C,TK CONSTRUCT & ELECTRIC INSTAL
127,,,Street Lighting Replacement Pr          ,CE068FA,New Construction Conversion and Renovation,0,B4,Contractor - Site works                 ,"1,007.31",30/08/2016,C,KIER INTEGRATED SERVICES LTD  
128,,,Street Lighting Replacement Pr          ,CE068FA,New Construction Conversion and Renovation,0,B4,Contractor - Site works                 ,"1,587.99",22/08/2016,C,KIER INTEGRATED SERVICES LTD  
129,,,Street Lighting Replacement Pr          ,CE068FA,New Construction Conversion and Renovation,0,B4,Contractor - Site works                 ,"2,400.98",28/07/2016,C,KIER INTEGRATED SERVICES LTD  
130,,,Street Lighting Replacement Pr          ,CE068FA,New Construction Conversion and Renovation,0,B4,Contractor - Site works                 ,"4,094.75",28/07/2016,C,KIER INTEGRATED SERVICES LTD  
131,,,Street Lighting Replacement Pr          ,CE068FA,New Construction Conversion and Renovation,0,B4,Contractor - Site works                 ,"5,259.51",22/08/2016,C,KIER INTEGRATED SERVICES LTD  
132,,,Street Lighting Replacement Pr          ,CE068FA,New Construction Conversion and Renovation,0,B4,Contractor - Site works                 ,"8,285.97",28/07/2016,C,KIER INTEGRATED SERVICES LTD  
133,,,Street Lighting Replacement Pr          ,CE068FA,New Construction Conversion and Renovation,0,B4,Contractor - Site works                 ,"21,711.19",22/08/2016,C,KIER INTEGRATED SERVICES LTD  
134,,,Street Lighting Replacement Pr          ,CE068FA,New Construction Conversion and Renovation,0,B6,Other Costs - Site works                ,693.00,06/09/2016,C,UK POWER NETWORKS (OPERATIONS)
135,,,Street Lighting Replacement Pr          ,CE068FA,New Construction Conversion and Renovation,0,B6,Other Costs - Site works                ,693.00,08/09/2016,C,UK POWER NETWORKS (OPERATIONS)
136,,,Street Lighting Replacement Pr          ,CE068FA,New Construction Conversion and Renovation,0,B6,Other Costs - Site works                ,748.00,06/09/2016,C,UK POWER NETWORKS (OPERATIONS)
137,,,Street Lighting Replacement Pr          ,CE068FA,New Construction Conversion and Renovation,0,B6,Other Costs - Site works                ,748.00,08/09/2016,C,UK POWER NETWORKS (OPERATIONS)
138,,,Street Lighting Replacement Pr          ,CE068FA,New Construction Conversion and Renovation,0,B6,Other Costs - Site works                ,748.00,14/09/2016,C,UK POWER NETWORKS (OPERATIONS)
139,,,Street Lighting Replacement Pr          ,CE068FA,New Construction Conversion and Renovation,0,B6,Other Costs - Site works                ,748.00,14/09/2016,C,UK POWER NETWORKS (OPERATIONS)
140,,,Street Lighting Replacement Pr          ,CE068FA,New Construction Conversion and Renovation,0,B6,Other Costs - Site works                ,748.00,22/09/2016,C,UK POWER NETWORKS (OPERATIONS)
141,,,Street Lighting Replacement Pr          ,CE068FA,New Construction Conversion and Renovation,0,B6,Other Costs - Site works                ,763.00,31/08/2016,C,UK POWER NETWORKS (OPERATIONS)
142,,,Street Lighting Replacement Pr          ,CE068FA,New Construction Conversion and Renovation,0,B6,Other Costs - Site works                ,"5,172.00",26/08/2016,C,UK POWER NETWORKS (OPERATIONS)
143,,,Alley Gating Scheme - Fly Tip           ,CE087FA,Other Capital Expenditure,0,E1,Grants                                  ,717.75,14/09/2016,C,RHINO STEEL CONSTRUCTION LTD  
144,,,Alley Gating Scheme - Fly Tip           ,CE087FA,Other Capital Expenditure,0,E1,Grants                                  ,"5,290.20",13/09/2016,C,GRILLESAFE SECURITY LTD       
145,,,Cycle access/parking                    ,CE104FG,New Construction Conversion and Renovation,0,B4,Contractor - Site works                 ,883.44,07/09/2016,C,FM CONWAY LTD                 
146,,,Cycle access/parking                    ,CE104FG,New Construction Conversion and Renovation,0,B4,Contractor - Site works                 ,"17,485.38",07/09/2016,C,FM CONWAY LTD                 
147,,,Mitcham Town Centre                     ,CE104FP,New Construction Conversion and Renovation,0,B1,Consultants Fees D&S Structure          ,"1,250.00",20/06/2016,C,R B DESIGNS LTD               
148,,,Mitcham Town Centre                     ,CE104FP,New Construction Conversion and Renovation,0,B4,Contractor - Site works                 ,"2,100.00",07/09/2016,C,FM CONWAY LTD                 
149,,,Mitcham Town Centre                     ,CE104FP,New Construction Conversion and Renovation,0,B4,Contractor - Site works                 ,"6,478.38",07/09/2016,C,FM CONWAY LTD                 
150,,,Mitcham Town Centre                     ,CE104FP,New Construction Conversion and Renovation,0,B4,Contractor - Site works                 ,"7,324.60",07/09/2016,C,FM CONWAY LTD                 
151,,,Mitcham Town Centre                     ,CE104FP,New Construction Conversion and Renovation,0,B4,Contractor - Site works                 ,"10,330.00",07/09/2016,C,FM CONWAY LTD                 
152,,,A298/A238 Strategic Corridor            ,CE104FQ,New Construction Conversion and Renovation,0,B2,Site Surveys D&S Structure              ,"7,600.00",23/08/2016,C,TRAFFICWATCH (UK) LTD.        
153,,,Casualty Reduction & Schools            ,CE104RA,New Construction Conversion and Renovation,0,B4,Contractor - Site works                 ,"1,383.87",07/09/2016,C,FM CONWAY LTD                 
154,,,Casualty Reduction & Schools            ,CE104RA,New Construction Conversion and Renovation,0,B4,Contractor - Site works                 ,"10,000.00",07/09/2016,C,FM CONWAY LTD                 
155,,,TFL Quietways Cyclepath                 ,CE104RQ,New Construction Conversion and Renovation,0,B3,Other Expenses D&S Structure            ,"6,000.00",07/09/2016,C,FM CONWAY LTD                 
156,,,TFL Quietways Cyclepath                 ,CE104RQ,New Construction Conversion and Renovation,0,B6,Other Costs - Site works                ,693.00,08/09/2016,C,UK POWER NETWORKS (OPERATIONS)
157,,,Bus Stop Compliance                     ,CE105FR,Vehicles Plant Equipment and Machinery,0,D4,Specialist furniture                    ,950.00,11/08/2016,C,LITTLETHORPE OF LEICESTER LTD 
158,,,TfL Prinicipal Road Maint               ,CE105FV,New Construction Conversion and Renovation,0,B4,Contractor - Site works                 ,"26,993.14",20/09/2016,C,FM CONWAY LTD                 
159,,,TfL Prinicipal Road Maint               ,CE105FV,New Construction Conversion and Renovation,0,B4,Contractor - Site works                 ,"40,000.00",20/09/2016,C,FM CONWAY LTD                 
160,,,TfL Prinicipal Road Maint               ,CE105FV,New Construction Conversion and Renovation,0,B4,Contractor - Site works                 ,"40,725.58",20/09/2016,C,FM CONWAY LTD                 
161,,,TfL Prinicipal Road Maint               ,CE105FV,New Construction Conversion and Renovation,0,B4,Contractor - Site works                 ,"89,383.07",20/09/2016,C,FM CONWAY LTD                 
162,,,TfL Prinicipal Road Maint               ,CE105FV,New Construction Conversion and Renovation,0,B4,Contractor - Site works                 ,"95,000.00",20/09/2016,C,FM CONWAY LTD                 
163,,,Empty Homes Grant,CE122RA,Other Capital Expenditure,0,E1,Grants                                  ,"4,796.00",12/09/2016,C,T BROWN LTD                   
164,,,Empty Homes Grant,CE122RA,Other Capital Expenditure,0,E1,Grants                                  ,"12,056.25",15/09/2016,C,T BROWN LTD                   
165,,,Traffic Schemes                         ,CE142FA,New Construction Conversion and Renovation,0,B4,Contractor - Site works                 ,571.89,22/08/2016,C,KIER INTEGRATED SERVICES LTD  
166,,,Traffic Schemes                         ,CE142FA,New Construction Conversion and Renovation,0,B4,Contractor - Site works                 ,960.69,20/09/2016,C,FM CONWAY LTD                 
167,,,Traffic Schemes                         ,CE142FA,New Construction Conversion and Renovation,0,B4,Contractor - Site works                 ,"35,000.00",30/08/2016,C,FM CONWAY LTD                 
168,,,Traffic Schemes                         ,CE142FA,New Construction Conversion and Renovation,0,B4,Contractor - Site works                 ,"35,000.00",30/08/2016,C,FM CONWAY LTD                 
169,,,Tackling Traffic Congestion             ,CE150AA,New Construction Conversion and Renovation,0,B6,Other Costs - Site works                ,693.00,31/08/2016,C,UK POWER NETWORKS (OPERATIONS)
170,,,Canons Parks for People                 ,CE157AA,New Construction Conversion and Renovation,0,B1,Consultants Fees D&S Structure          ,"5,500.00",26/07/2016,C,SOUTHERN GREEN LIMITED        
171,,,Canons Parks for People                 ,CE157AA,New Construction Conversion and Renovation,0,B1,Consultants Fees D&S Structure          ,"18,223.34",26/07/2016,C,SOUTHERN GREEN LIMITED        
172,,,Civic Centre- Upgrading lifts           ,CF001AL,New Construction Conversion and Renovation,0,B4,Contractor - Site works                 ,"21,850.00",22/08/2016,C,AXIS ELEVATORS LTD            
173,,,Invest to Save schemes-General          ,CF003SA,New Construction Conversion and Renovation,0,B4,Contractor - Site works                 ,755.00,17/09/2016,C,REDACTED
174,,,Invest to Save schemes-General          ,CF003SA,New Construction Conversion and Renovation,0,B4,Contractor - Site works                 ,"1,012.00",17/09/2016,C,REDACTED
175,,,Invest to Save schemes-General          ,CF003SA,New Construction Conversion and Renovation,0,B4,Contractor - Site works                 ,"1,032.00",17/09/2016,C,REDACTED
176,,,Invest to Save schemes-General          ,CF003SA,New Construction Conversion and Renovation,0,B4,Contractor - Site works                 ,"7,139.50",17/09/2016,C,REDACTED
177,,,Water Safety Works,CF011FA,New Construction Conversion and Renovation,0,B4,Contractor - Site works                 ,"50,000.25",23/09/2016,C,BILFINGER EUROPA FACILITY     
178,,,Dundonald expansion                     ,CS031AC,New Construction Conversion and Renovation,0,B1,Consultants Fees D&S Structure          ,812.50,05/09/2016,C,AREA LANDSCAPE ARCHITECTS     
179,,,Dundonald expansion                     ,CS031AC,New Construction Conversion and Renovation,0,B1,Consultants Fees D&S Structure          ,"1,500.00",31/08/2016,C,SYNERGY CPC LLP               
180,,,Dundonald expansion                     ,CS031AC,New Construction Conversion and Renovation,0,B1,Consultants Fees D&S Structure          ,"12,767.00",31/08/2016,C,HAVERSTOCK ASSOCIATES LLP     
181,,,Dundonald expansion                     ,CS031AC,New Construction Conversion and Renovation,0,B2,Site Surveys D&S Structure              ,"1,150.00",23/08/2016,C,ASI ENVIRONMENTAL LTD         
182,,,Dundonald expansion                     ,CS031AC,New Construction Conversion and Renovation,0,B4,Contractor - Site works                 ,845.00,31/08/2016,C,KNIGHTHOOD INTERNATIONAL      
183,,,Dundonald expansion                     ,CS031AC,New Construction Conversion and Renovation,0,B4,Contractor - Site works                 ,"1,860.00",31/08/2016,C,KNIGHTHOOD INTERNATIONAL      
184,,,Dundonald expansion                     ,CS031AC,New Construction Conversion and Renovation,0,B4,Contractor - Site works                 ,"2,705.00",22/08/2016,C,KNIGHTHOOD INTERNATIONAL      
185,,,Dundonald expansion                     ,CS031AC,New Construction Conversion and Renovation,0,B4,Contractor - Site works                 ,"235,000.00",21/09/2016,C,KIND & COMPANY (BUILDERS) LTD 
186,,,Dundonald expansion                     ,CS031AC,New Construction Conversion and Renovation,0,B5,Suppliers - Site works                  ,"5,627.76",15/09/2016,C,IZZYTEA LTD                   
187,,,Singlegate expansion                    ,CS049AA,New Construction Conversion and Renovation,0,B1,Consultants Fees D&S Structure          ,"12,305.79",01/09/2016,C,ATKINS LIMITED                
188,,,Schs Cap Maint & Accessibility          ,CS080SD,New Construction Conversion and Renovation,0,B4,Contractor - Site works                 ,531.53,19/09/2016,C,MAGUIRE BROTHERS              
189,,,Schs Cap Maint & Accessibility          ,CS080SD,New Construction Conversion and Renovation,0,B4,Contractor - Site works                 ,606.47,19/09/2016,C,KINGSLEY ROOFING (LONDON) LTD 
190,,,Schs Cap Maint & Accessibility          ,CS080SD,New Construction Conversion and Renovation,0,B4,Contractor - Site works                 ,623.70,19/09/2016,C,BREYER GROUP PLC              
191,,,Schs Cap Maint & Accessibility          ,CS080SD,New Construction Conversion and Renovation,0,B4,Contractor - Site works                 ,"1,235.00",06/09/2016,C,LA BELLE ROOFING CO LTD       
192,,,Schs Cap Maint & Accessibility          ,CS080SD,New Construction Conversion and Renovation,0,B4,Contractor - Site works                 ,"1,612.75",19/09/2016,C,MAGUIRE BROTHERS              
193,,,Schs Cap Maint & Accessibility          ,CS080SD,New Construction Conversion and Renovation,0,B4,Contractor - Site works                 ,"2,640.00",31/08/2016,C,UK SURFACINGS LTD             
194,,,Schs Cap Maint & Accessibility          ,CS080SD,New Construction Conversion and Renovation,0,B4,Contractor - Site works                 ,"2,991.00",29/08/2016,C,EUROPEAN ASBESTOS SERVICES    
195,,,Schs Cap Maint & Accessibility          ,CS080SD,New Construction Conversion and Renovation,0,B4,Contractor - Site works                 ,"3,616.56",06/09/2016,C,LA BELLE ROOFING CO LTD       
196,,,Schs Cap Maint & Accessibility          ,CS080SD,New Construction Conversion and Renovation,0,B4,Contractor - Site works                 ,"4,941.37",19/09/2016,C,BREYER GROUP PLC              
197,,,Schs Cap Maint & Accessibility          ,CS080SD,New Construction Conversion and Renovation,0,B4,Contractor - Site works                 ,"5,691.29",19/09/2016,C,BREYER GROUP PLC              
198,,,Schs Cap Maint & Accessibility          ,CS080SD,New Construction Conversion and Renovation,0,B4,Contractor - Site works                 ,"7,611.45",06/09/2016,C,BILFINGER EUROPA FACILITY     
199,,,Schs Cap Maint & Accessibility          ,CS080SD,New Construction Conversion and Renovation,0,B4,Contractor - Site works                 ,"10,973.75",19/09/2016,C,BREYER GROUP PLC              
200,,,Schs Cap Maint & Accessibility          ,CS080SD,New Construction Conversion and Renovation,0,B4,Contractor - Site works                 ,"11,366.50",02/09/2016,C,BARWIN PROPERTY SERVICES LTD  
201,,,Schs Cap Maint & Accessibility          ,CS080SD,New Construction Conversion and Renovation,0,B4,Contractor - Site works                 ,"12,352.00",02/09/2016,C,BARWIN PROPERTY SERVICES LTD  
202,,,Schs Cap Maint & Accessibility          ,CS080SD,New Construction Conversion and Renovation,0,B4,Contractor - Site works                 ,"19,818.00",29/08/2016,C,EUROPEAN ASBESTOS SERVICES    
203,,,Schs Cap Maint & Accessibility          ,CS080SD,New Construction Conversion and Renovation,0,B4,Contractor - Site works                 ,"20,037.60",08/09/2016,C,BILFINGER EUROPA FACILITY     
204,,,Schs Cap Maint & Accessibility          ,CS080SD,New Construction Conversion and Renovation,0,B4,Contractor - Site works                 ,"20,588.00",20/09/2016,C,WOODSIDE CONTRACT SERVICES LTD
205,,,Schs Cap Maint & Accessibility          ,CS080SD,New Construction Conversion and Renovation,0,B4,Contractor - Site works                 ,"22,968.54",19/09/2016,C,BREYER GROUP PLC              
206,,,Schs Cap Maint & Accessibility          ,CS080SD,New Construction Conversion and Renovation,0,B4,Contractor - Site works                 ,"24,893.97",23/08/2016,C,BREYER GROUP PLC              
207,,,Schs Cap Maint & Accessibility          ,CS080SD,New Construction Conversion and Renovation,0,B4,Contractor - Site works                 ,"26,380.00",31/08/2016,C,NATIONCARE WINDOWS LTD        
208,,,Schs Cap Maint & Accessibility          ,CS080SD,New Construction Conversion and Renovation,0,B4,Contractor - Site works                 ,"30,106.93",19/09/2016,C,BREYER GROUP PLC              
209,,,Schs Cap Maint & Accessibility          ,CS080SD,New Construction Conversion and Renovation,0,B4,Contractor - Site works                 ,"40,069.40",23/08/2016,C,BREYER GROUP PLC              
210,,,Schs Cap Maint & Accessibility          ,CS080SD,New Construction Conversion and Renovation,0,B6,Other Costs - Site works                ,"1,200.00",25/07/2016,C,BESPOKE DETECTION SERVICES    
211,,,Schs Cap Maint & Accessibility          ,CS080SD,New Construction Conversion and Renovation,0,B6,Other Costs - Site works                ,"1,864.00",06/09/2016,C,T MCKEOWN & SON FENCING       
212,,,Schs Cap Maint & Accessibility          ,CS080SD,New Construction Conversion and Renovation,0,B6,Other Costs - Site works                ,"1,950.00",15/08/2016,C,DRAIN SURGEON SERVICES LTD    
213,,,Schs Cap Maint & Accessibility          ,CS080SD,New Construction Conversion and Renovation,0,B6,Other Costs - Site works                ,"11,337.18",02/09/2016,C,EB ELECTRICAL SOLUTIONS LTD   
214,,,Schs Cap Maint & Accessibility          ,CS080SD,New Construction Conversion and Renovation,0,B6,Other Costs - Site works                ,"11,616.25",02/09/2016,C,EB ELECTRICAL SOLUTIONS LTD   
215,,,Schs Cap Maint & Accessibility          ,CS080SD,New Construction Conversion and Renovation,0,B6,Other Costs - Site works                ,"12,475.00",06/09/2016,C,T MCKEOWN & SON FENCING       
216,,,Schs Cap Maint & Accessibility          ,CS080SD,New Construction Conversion and Renovation,0,B6,Other Costs - Site works                ,"12,715.00",30/08/2016,C,P G MARSHALL & SONS LTD       
217,,,Hatfield                                ,CS081SA,New Construction Conversion and Renovation,0,B6,Other Costs - Site works                ,"2,200.00",06/09/2016,C,T MCKEOWN & SON FENCING       
218,,,New School 6fe,CS085SF,New Construction Conversion and Renovation,0,B2,Site Surveys D&S Structure              ,"16,662.30",24/08/2016,C,DHP (UK) LLP                  
219,,,Harris Merton 2fe                       ,CS085SG,New Construction Conversion and Renovation,0,B1,Consultants Fees D&S Structure          ,"1,292.00",31/08/2016,C,SUMMERS INMAN                 
220,,,Harris Merton 2fe                       ,CS085SG,New Construction Conversion and Renovation,0,B1,Consultants Fees D&S Structure          ,"3,630.00",31/07/2016,C,HAZLE MCCORMACK YOUNG LLP     
221,,,Harris Merton 2fe                       ,CS085SG,New Construction Conversion and Renovation,0,B4,Contractor - Site works                 ,988.72,09/09/2016,C,WOODLAND COMMERCIAL LTD       
222,,,Harris Merton 2fe                       ,CS085SG,New Construction Conversion and Renovation,0,B4,Contractor - Site works                 ,"98,785.28",09/09/2016,C,WOODLAND COMMERCIAL LTD       
223,,,Perseid                                 ,CS092AA,New Construction Conversion and Renovation,0,B1,Consultants Fees D&S Structure          ,"4,000.00",18/08/2016,C,DHP (UK) LLP                  
224,,,IT Equipment                            ,CT006EA,Vehicles Plant Equipment and Machinery,0,D3,Equipment                               ,720.37,20/07/2016,C,SPECIALIST COMPUTER CENT. PLC 
225,,,IT Equipment                            ,CT006EA,Vehicles Plant Equipment and Machinery,0,D3,Equipment                               ,"1,393.00",14/09/2016,C,TOTAL COMPUTER NETWORKS       
226,,,IT Equipment                            ,CT006EA,Vehicles Plant Equipment and Machinery,0,D3,Equipment                               ,"2,300.00",20/09/2016,C,VERISEC LIMITED               
227,,,IT Equipment                            ,CT006EA,Vehicles Plant Equipment and Machinery,0,D3,Equipment                               ,"3,255.00",14/09/2016,C,TOTAL COMPUTER NETWORKS       
228,,,IT Equipment                            ,CT006EA,Vehicles Plant Equipment and Machinery,0,D3,Equipment                               ,"3,630.00",06/09/2016,C,TOTAL COMPUTER NETWORKS       
229,,,IT Equipment                            ,CT006EA,Vehicles Plant Equipment and Machinery,0,D3,Equipment                               ,"4,090.82",30/06/2016,C,SPECIALIST COMPUTER CENT. PLC 
230,,,IT Equipment                            ,CT006EA,Vehicles Plant Equipment and Machinery,0,D3,Equipment                               ,"6,195.00",14/09/2016,C,TOTAL COMPUTER NETWORKS       
231,,,IT Equipment                            ,CT006EA,Vehicles Plant Equipment and Machinery,0,D3,Equipment                               ,"15,848.40",26/08/2016,C,THINTECH LIMITED              
232,,,IT Equipment                            ,CT006EA,Vehicles Plant Equipment and Machinery,0,D3,Equipment                               ,"31,260.00",12/09/2016,C,XMA LIMITED                   
233,,,IT Equipment                            ,CT006EA,Other Capital Expenditure,0,E3,Miscellaneous Capital Expendit          ,"1,500.00",05/09/2016,C,ASSURED NETWORK SERVICES LTD  
234,,,IT Equipment                            ,CT006EA,Other Capital Expenditure,0,E3,Miscellaneous Capital Expendit          ,"2,375.00",05/09/2016,C,THINTECH LIMITED              
235,,,Stability Networks                      ,CT012ED,Vehicles Plant Equipment and Machinery,0,D3,Equipment                               ,"15,500.00",10/08/2016,C,ULTRA ELECTRONICS AEP         
236,,,Improving Information Systems           ,CT020NB,Vehicles Plant Equipment and Machinery,0,D5,Software                                ,995.00,31/08/2016,C,ADVANCED BUSINESS SOLUTIONS   
237,,,Improving Information Systems           ,CT020NB,Vehicles Plant Equipment and Machinery,0,D5,Software                                ,"3,980.00",29/07/2016,C,ADVANCED BUSINESS SOLUTIONS   
238,,,Improving Information Systems           ,CT020NB,Vehicles Plant Equipment and Machinery,0,D5,Software                                ,"11,939.00",26/07/2016,C,ADVANCED BUSINESS SOLUTIONS   
239,,,Improving Information Systems           ,CT020NB,Vehicles Plant Equipment and Machinery,0,D5,Software                                ,"100,287.00",26/05/2016,C,ADVANCED BUSINESS SOLUTIONS   
240,Central Services,Council tax collection,Local Taxation Services,E02100,Supplies & Services           ,Comms and Computing           ,DG09,Computer Purchases - Misc               ,900.00,31/08/2016,R,ONESTEP SOLUTIONS PLC         
241,Central Services,Council tax collection,Local Taxation Services,E02100,Supplies & Services           ,Comms and Computing           ,DG09,Computer Purchases - Misc               ,"2,480.63",16/08/2016,R,CIVICA UK LIMITED             
242,Central Services,Council tax collection,Local Taxation Bailiffs,E02101,Supplies & Services           ,Services                      ,DF18,Bailiffs' fees                          ,877.50,03/09/2016,R,QUARTIX                       
243,Central Services,Council tax collection,Local Taxation Bailiffs,E02101,Customer and client receipts  ,Other Receipts                ,RF01,no longer used,"2,362.00",13/09/2016,R,REDACTED
244,Central Services,Council tax collection,Sutton Shared Bailiffs Service          ,E02102,Third Party Payments          ,Other Local Authorities       ,EB01,Payments to OLAs                        ,"92,491.64",01/09/2016,R,LONDON BOROUGH OF SUTTON      
245,Central Services,Council tax collection,Sutton Shared Bailiffs Service          ,E02102,Third Party Payments          ,Other Local Authorities       ,EB01,Payments to OLAs                        ,"100,647.34",23/09/2016,R,LONDON BOROUGH OF SUTTON      
246,Housing Services,HB Administration,Benefits Administration,E02120,Supplies & Services           ,Comms and Computing           ,DG09,Computer Purchases - Misc               ,"28,865.00",09/09/2016,R,CIVICA UK LIMITED             
247,Housing Services,HB Administration,Local Welfare Support,E02123,Transfer Payments             ,Housing Benefits              ,FA95,Other Payments                          ,"4,500.00",16/08/2016,R,MERTON & LAMBETH CAB LTD      
248,Housing Services,HB Administration,Local Welfare Support,E02123,Transfer Payments             ,Housing Benefits              ,FA95,Other Payments                          ,"4,500.00",07/07/2016,R,MERTON & LAMBETH CAB LTD      
249,Central Services,SupS Corporate Finance,TRANSACTIONS,E02139,Employees                     ,Direct Employee Expenses      ,AA04,Shared Services Salaries                ,"34,827.61",26/08/2016,R,KINGSTON CORPORATION          
250,Central Services,SupS Corporate Finance,TRANSACTIONS,E02139,Supplies and Services         ,Expenses                      ,DH15,CRB Payments,"40,628.00",15/09/2016,R,LONDON BOROUGH OF SUTTON      
251,Central Services,SupS Payroll,Payroll,E02140,Supplies & Services           ,Expenses                      ,DH14,Prizes and Awards                       ,"1,000.00",27/09/2016,R,THE GIFT VOUCHER SHOP LTD     
252,Central Services,SupS Payroll,Payroll,E02140,Third Party Payments          ,Private Contractors           ,EH10,Contract Payments                       ,"5,588.13",26/08/2016,R,KINGSTON CORPORATION          
253,Central Services,SupS Payroll,Payroll,E02140,Third Party Payments          ,Private Contractors           ,EH10,Contract Payments                       ,"8,152.67",26/08/2016,R,KINGSTON CORPORATION          
254,Central Services,SupS Payroll,Payroll,E02140,Third Party Payments          ,Private Contractors           ,EH10,Contract Payments                       ,"8,425.67",26/08/2016,R,KINGSTON CORPORATION          
255,Central Services,SupS Payroll,Payroll,E02140,Third Party Payments          ,Private Contractors           ,EH10,Contract Payments                       ,"13,080.19",26/08/2016,R,KINGSTON CORPORATION          
256,Central Services,SupS Payroll,Payroll,E02140,Third Party Payments          ,Private Contractors           ,EH10,Contract Payments                       ,"19,145.91",26/08/2016,R,KINGSTON CORPORATION          
257,Central Services,SupS Facilities,Post Room,E02220,Supplies & Services           ,Comms and Computing           ,DG04,Postage - General                       ,512.16,30/08/2016,R,STREETWISE COURIERS           
258,Central Services,SupS Facilities,Post Room,E02220,Supplies & Services           ,Comms and Computing           ,DG04,Postage - General                       ,588.81,25/07/2016,R,STREETWISE COURIERS           
259,Central Services,SupS Facilities,Post Room,E02220,Supplies & Services           ,Comms and Computing           ,DG04,Postage - General                       ,677.32,15/08/2016,R,STREETWISE COURIERS           
260,Central Services,SupS Facilities,Post Room,E02220,Supplies & Services           ,Comms and Computing           ,DG04,Postage - General                       ,714.56,20/06/2016,R,STREETWISE COURIERS           
261,Central Services,SupS Facilities,Post Room,E02220,Supplies & Services           ,Comms and Computing           ,DG04,Postage - General                       ,"1,433.02",12/09/2016,R,STREETWISE COURIERS           
262,Central Services,SupS Facilities,Post Room,E02220,Supplies & Services           ,Comms and Computing           ,DG04,Postage - General                       ,"5,000.00",15/08/2016,R,NEOPOST FINANCE LIMITED       
263,Central Services,SupS Facilities,Post Room,E02220,Supplies & Services           ,Comms and Computing           ,DG04,Postage - General                       ,"5,000.00",14/09/2016,R,NEOPOST FINANCE LIMITED       
264,Central Services,SupS Facilities,Post Room,E02220,Supplies & Services           ,Comms and Computing           ,DG04,Postage - General                       ,"5,000.00",14/09/2016,R,NEOPOST FINANCE LIMITED       
265,Central Services,SupS Facilities,Post Room,E02220,Supplies & Services           ,Comms and Computing           ,DG04,Postage - General                       ,"5,060.00",15/08/2016,R,NEOPOST FINANCE LIMITED       
266,Central Services,SupS Facilities,Security Services,E02221,Third Party Payments          ,Private Contractors           ,EH10,Contract Payments                       ,"8,993.00",01/09/2016,R,SIGHT & SOUND                 
267,Central Services,SupS Facilities,Civic Centre,E02222,Premises Related Expenditure  ,RepairsAlterations&MtceOfBldgs,BA01,DDM - General Building                  ,"2,499.75",09/08/2016,R,SALTASH ENTERPRISES LTD       
268,Central Services,SupS Facilities,Civic Centre,E02222,Premises Related Expenditure  ,RepairsAlterations&MtceOfBldgs,BA01,DDM - General Building                  ,"5,000.00",09/08/2016,R,SALTASH ENTERPRISES LTD       
269,Central Services,SupS Facilities,Civic Centre,E02222,Supplies & Services           ,Equip Furniture/Materials     ,DA02,Op. Leasing Equipment                   ,"9,657.00",31/07/2016,R,ANGEL SPRINGS LIMITED         
270,Central Services,SupS Facilities,Facilities,E02231,Premises Related Expenditure  ,RepairsAlterations&MtceOfBldgs,BA02,ENERGY CONSERVATION                     ,500.00,23/09/2016,R,JOJU SOLA                     
271,Central Services,SupS Facilities,Facilities,E02231,Premises Related Expenditure  ,RepairsAlterations&MtceOfBldgs,BA02,ENERGY CONSERVATION                     ,530.10,15/09/2016,R,ENERGY ASSETS LIMITED         
272,Central Services,SupS Facilities,Facilities,E02231,Premises Related Expenditure  ,RepairsAlterations&MtceOfBldgs,BA02,ENERGY CONSERVATION                     ,975.00,23/08/2016,R,BRIAR ASSOCIATES              
273,Central Services,SupS Facilities,Facilities,E02231,Premises Related Expenditure  ,RepairsAlterations&MtceOfBldgs,BA02,ENERGY CONSERVATION                     ,"1,465.85",02/09/2016,R,STARK SOFTWARE INTERNATIONAL  
274,Central Services,SupS Facilities,Facilities,E02231,Premises Related Expenditure  ,RepairsAlterations&MtceOfBldgs,BA02,ENERGY CONSERVATION                     ,"1,725.00",31/08/2016,R,ALLEN CONSTRUCTION CONSULTANCY
275,Central Services,SupS Facilities,Facilities,E02231,Premises Related Expenditure  ,RepairsAlterations&MtceOfBldgs,BA02,ENERGY CONSERVATION                     ,"2,225.00",07/09/2016,R,SYSTEMS LINK                  
276,Central Services,SupS Facilities,Facilities,E02231,Premises Related Expenditure  ,RepairsAlterations&MtceOfBldgs,BA02,ENERGY CONSERVATION                     ,"6,597.50",31/08/2016,R,NDA CONSULTING                
277,Central Services,SupS Facilities,Facilities,E02231,Premises Related Expenditure  ,RepairsAlterations&MtceOfBldgs,BA02,ENERGY CONSERVATION                     ,"7,750.00",09/09/2016,R,THE UTILITIES EXCHANGE LTD    
278,Central Services,SupS Facilities,Facilities,E02231,Premises Related Expenditure  ,RepairsAlterations&MtceOfBldgs,BA02,ENERGY CONSERVATION                     ,"18,050.78",13/09/2016,R,JOJU SOLA                     
279,Central Services,SupS Facilities,Corporate Services Buildings,E02240,Premises Related Expenditure  ,RepairsAlterations&MtceOfBldgs,BA01,DDM - General Building                  ,600.00,23/08/2016,R,S.P.P.C.                      
280,Central Services,SupS Facilities,Corporate Services Buildings,E02240,Premises Related Expenditure  ,RepairsAlterations&MtceOfBldgs,BA01,DDM - General Building                  ,655.07,21/09/2016,R,BILFINGER EUROPA FACILITY     
281,Central Services,SupS Facilities,Corporate Services Buildings,E02240,Premises Related Expenditure  ,RepairsAlterations&MtceOfBldgs,BA01,DDM - General Building                  ,790.00,12/08/2016,R,SAFEGUARD PEST CONTROL LTD    
282,Central Services,SupS Facilities,Corporate Services Buildings,E02240,Premises Related Expenditure  ,RepairsAlterations&MtceOfBldgs,BA01,DDM - General Building                  ,860.00,12/08/2016,R,SAFEGUARD PEST CONTROL LTD    
283,Central Services,SupS Facilities,Corporate Services Buildings,E02240,Premises Related Expenditure  ,RepairsAlterations&MtceOfBldgs,BA01,DDM - General Building                  ,"1,180.00",17/08/2016,R,PJA CONTROL SERVICES          
284,Central Services,SupS Facilities,Corporate Services Buildings,E02240,Premises Related Expenditure  ,RepairsAlterations&MtceOfBldgs,BA01,DDM - General Building                  ,"1,210.00",17/08/2016,R,PJA CONTROL SERVICES          
285,Central Services,SupS Facilities,Corporate Services Buildings,E02240,Premises Related Expenditure  ,RepairsAlterations&MtceOfBldgs,BA01,DDM - General Building                  ,"2,000.00",09/08/2016,R,SALTASH ENTERPRISES LTD       
286,Central Services,SupS Facilities,Corporate Services Buildings,E02240,Premises Related Expenditure  ,RepairsAlterations&MtceOfBldgs,BA03,DDM - Mechanical                        ,554.49,12/09/2016,R,BILFINGER EUROPA FACILITY     
287,Central Services,SupS Facilities,Corporate Services Buildings,E02240,Premises Related Expenditure  ,RepairsAlterations&MtceOfBldgs,BA03,DDM - Mechanical                        ,"3,787.99",12/09/2016,R,BILFINGER EUROPA FACILITY     
288,Central Services,SupS Facilities,Corporate Services Buildings,E02240,Premises Related Expenditure  ,RepairsAlterations&MtceOfBldgs,BA03,DDM - Mechanical                        ,"7,806.26",24/08/2016,R,FUTURE TECH                   
289,Central Services,SupS Facilities,Corporate Services Buildings,E02240,Premises Related Expenditure  ,RepairsAlterations&MtceOfBldgs,BA05,DDM - ELECTRICAL                        ,850.00,23/09/2016,R,PJA CONTROL SERVICES          
290,Central Services,SupS Facilities,Corporate Services Buildings,E02240,Premises Related Expenditure  ,RepairsAlterations&MtceOfBldgs,BA29,Build Maint Mgt Fees                    ,"2,567.25",12/09/2016,R,BILFINGER EUROPA FACILITY     
291,Central Services,SupS Facilities,Corporate Services Buildings,E02240,Premises Related Expenditure  ,Energy Costs                  ,BB03,Gas (incl. Butane)                      ,"2,254.35",05/09/2016,R,GAZPROM MARKETING&TRADING LTD 
292,Central Services,SupS Facilities,Corporate Services Buildings,E02240,Premises Related Expenditure  ,Energy Costs                  ,BB03,Gas (incl. Butane)                      ,"7,358.14",22/08/2016,R,GAZPROM MARKETING&TRADING LTD 
293,Childrens & Education Services,Strategic Management,PDC,E02254,Premises Related Expenditure  ,Cleaning and Domestic Supplies,BH03,Cleaning Services                       ,"2,397.50",30/08/2016,R,JULIUS RUTHERFOORD & CO LTD   
294,Childrens & Education Services,Strategic Management,PDC,E02254,Supplies & Services           ,Services                      ,DF02,Misc Advertising/Publicity              ,600.00,02/08/2016,R,FINDMEACONFERENCE.COM         
295,Childrens & Education Services,Strategic Management,CSF Buildings,E02256,Premises Related Expenditure  ,RepairsAlterations&MtceOfBldgs,BA05,DDM - ELECTRICAL                        ,"1,545.60",02/09/2016,R,BILFINGER EUROPA FACILITY     
296,Adult Social Care,OP 65 & Over Day Care,Pollards Hill Day Centre,E02270,Premises Related Expenditure  ,RepairsAlterations&MtceOfBldgs,BA06,REPAIRS & MAINTENANCE GENERAL           ,690.00,12/08/2016,R,INDEPTH HYGIENE SERVICES LTD  
297,Adult Social Care,OP 65 & Over Day Care,Pollards Hill Day Centre,E02270,Premises Related Expenditure  ,Cleaning and Domestic Supplies,BH01,Cleaning Materials                      ,504.00,02/09/2016,R,GREENHAM TRADING LTD          
298,Adult Social Care,OP 65 & Over Day Care,Pollards Hill Day Centre,E02270,Premises Related Expenditure  ,Cleaning and Domestic Supplies,BH01,Cleaning Materials                      ,504.00,20/09/2016,R,GREENHAM TRADING LTD          
299,Adult Social Care,OP 65 & Over Day Care,Pollards Hill Day Centre,E02270,Premises Related Expenditure  ,Cleaning and Domestic Supplies,BH03,Cleaning Services                       ,865.12,01/09/2016,R,BIRKIN CLEANING SERVICES LTD  
300,Adult Social Care,OP 65 & Over Day Care,Pollards Hill Day Centre,E02270,Premises Related Expenditure  ,Cleaning and Domestic Supplies,BH03,Cleaning Services                       ,885.31,01/09/2016,R,BIRKIN CLEANING SERVICES LTD  
301,Adult Social Care,OP 65 & Over Day Care,Pollards Hill Day Centre,E02270,Premises Related Expenditure  ,Cleaning and Domestic Supplies,BH03,Cleaning Services                       ,892.70,01/09/2016,R,BIRKIN CLEANING SERVICES LTD  
302,Adult Social Care,OP 65 & Over Day Care,Pollards Hill Day Centre,E02270,Premises Related Expenditure  ,Cleaning and Domestic Supplies,BH03,Cleaning Services                       ,"1,304.95",01/09/2016,R,BIRKIN CLEANING SERVICES LTD  
303,Adult Social Care,OP 65 & Over Day Care,Pollards Hill Day Centre,E02270,Premises Related Expenditure  ,Cleaning and Domestic Supplies,BH03,Cleaning Services                       ,"1,497.38",01/09/2016,R,BIRKIN CLEANING SERVICES LTD  
304,Adult Social Care,OP 65 & Over Day Care,Pollards Hill Day Centre,E02270,Premises Related Expenditure  ,Cleaning and Domestic Supplies,BH03,Cleaning Services                       ,"1,591.80",01/09/2016,R,BIRKIN CLEANING SERVICES LTD  
305,Adult Social Care,OP 65 & Over Day Care,Pollards Hill Day Centre,E02270,Premises Related Expenditure  ,Cleaning and Domestic Supplies,BH03,Cleaning Services                       ,"1,623.45",01/09/2016,R,BIRKIN CLEANING SERVICES LTD  
306,Adult Social Care,OP 65 & Over Day Care,Pollards Hill Day Centre,E02270,Premises Related Expenditure  ,Cleaning and Domestic Supplies,BH03,Cleaning Services                       ,"1,764.19",01/09/2016,R,BIRKIN CLEANING SERVICES LTD  
307,Adult Social Care,OP 65 & Over Day Care,Pollards Hill Day Centre,E02270,Premises Related Expenditure  ,Cleaning and Domestic Supplies,BH03,Cleaning Services                       ,"5,216.05",01/09/2016,R,BIRKIN CLEANING SERVICES LTD  
308,Adult Social Care,OP 65 & Over Day Care,Pollards Hill Day Centre,E02270,Premises Related Expenditure  ,Cleaning and Domestic Supplies,BH03,Cleaning Services                       ,"7,302.68",01/09/2016,R,BIRKIN CLEANING SERVICES LTD  
309,Adult Social Care,OP 65 & Over Day Care,Pollards Hill Day Centre,E02270,Third Party Payments          ,Private Contractors           ,EH02,Miscellaneous Hired Services            ,553.14,01/08/2016,R,OCS GROUP UK LTD T/A CANNON   
310,Adult Social Care,OP 65 & Over Day Care,Pollards Hill Day Centre,E02270,Third Party Payments          ,Private Contractors           ,EH02,Miscellaneous Hired Services            ,646.74,15/04/2016,R,PHS GROUP                     
311,Central Services,SupS Facilities,CORPORATE ELECTRICITY RECHARGE,E02275,Premises Related Expenditure  ,Energy Costs                  ,BB02,Electricity                             ,"1,930.16",19/09/2016,R,SCOTTISH POWER                
312,Central Services,SupS Facilities,CORPORATE ELECTRICITY RECHARGE,E02275,Premises Related Expenditure  ,Energy Costs                  ,BB02,Electricity                             ,"21,683.31",19/09/2016,R,SCOTTISH POWER                
313,Cultural Env Reg&Plan Services,Parks & Open Spaces,E & R Buildings,E02344,Premises Related Expenditure  ,RepairsAlterations&MtceOfBldgs,BA03,DDM - Mechanical                        ,542.52,12/09/2016,R,BILFINGER EUROPA FACILITY     
314,Cultural Env Reg&Plan Services,Parks & Open Spaces,E & R Buildings,E02344,Premises Related Expenditure  ,RepairsAlterations&MtceOfBldgs,BA03,DDM - Mechanical                        ,"1,081.21",02/09/2016,R,BILFINGER EUROPA FACILITY     
315,Adult Social Care,PS u65 Day Care,C & H Buildings,E02345,Premises Related Expenditure  ,RepairsAlterations&MtceOfBldgs,BA01,DDM - General Building                  ,575.35,03/09/2016,R,REDACTED
316,Adult Social Care,PS u65 Day Care,C & H Buildings,E02345,Premises Related Expenditure  ,RepairsAlterations&MtceOfBldgs,BA03,DDM - Mechanical                        ,515.32,12/09/2016,R,BILFINGER EUROPA FACILITY     
317,Adult Social Care,PS u65 Day Care,C & H Buildings,E02345,Premises Related Expenditure  ,RepairsAlterations&MtceOfBldgs,BA03,DDM - Mechanical                        ,626.16,02/09/2016,R,BILFINGER EUROPA FACILITY     
318,Adult Social Care,PS u65 Day Care,C & H Buildings,E02345,Premises Related Expenditure  ,RepairsAlterations&MtceOfBldgs,BA05,DDM - ELECTRICAL                        ,650.00,22/08/2016,R,ADVANCED AUTOMATIC DOORS LTD  
319,Cultural Env Reg&Plan Services,Parks & Open Spaces,Leisure Buildings,E02350,Premises Related Expenditure  ,RepairsAlterations&MtceOfBldgs,BA03,DDM - Mechanical                        ,557.76,12/09/2016,R,BILFINGER EUROPA FACILITY     
320,Central Services,SupS DOF,Director of Corporate Services,E04060,Supplies & Services           ,Services                      ,DF04,Miscellaneous Expenses                  ,812.50,30/04/2016,R,WORKPLACE OPTIONS             
321,Central Services,SupS DOF,AD RESOURCES,E04061,Supplies & Services           ,Services                      ,DF03,Consultants                             ,"9,660.00",01/09/2016,R,PUBLIC SECTOR CONSULTANTS     
322,Central Services,SupS Strategic Finance,Treasury & Insurance,E06222,Employees                     ,Direct Employee Expenses      ,AA17,Agency Staff & Casual Paymts            ,"1,808.00",07/09/2016,R,HAYS SPECIALIST RECRUITM'T LTD
323,Central Services,SupS Strategic Finance,Treasury & Insurance,E06222,Employees                     ,Direct Employee Expenses      ,AA17,Agency Staff & Casual Paymts            ,"1,860.00",24/08/2016,R,HAYS SPECIALIST RECRUITM'T LTD
324,Central Services,SupS Strategic Finance,Treasury & Insurance,E06222,Employees                     ,Direct Employee Expenses      ,AA17,Agency Staff & Casual Paymts            ,"2,260.00",31/08/2016,R,HAYS SPECIALIST RECRUITM'T LTD
325,Central Services,SupS Strategic Finance,Treasury & Insurance,E06222,Employees                     ,Direct Employee Expenses      ,AA17,Agency Staff & Casual Paymts            ,"2,260.00",14/09/2016,R,HAYS SPECIALIST RECRUITM'T LTD
326,Central Services,GENERATED ACCOUNT,Parking Cash Collect'n Contrct,E06225,Third Party Payments          ,Private Contractors           ,EH02,Miscellaneous Hired Services            ,"11,140.36",31/07/2016,R,JADE SECURITY SERVICE LTD     
327,Central Services,GENERATED ACCOUNT,Parking Cash Collect'n Contrct,E06225,Third Party Payments          ,Private Contractors           ,EH02,Miscellaneous Hired Services            ,"11,588.96",31/08/2016,R,JADE SECURITY SERVICE LTD     
328,Central Services,GENERATED ACCOUNT,Establishments' Cash Collect'n,E06226,Third Party Payments          ,Private Contractors           ,EH02,Miscellaneous Hired Services            ,585.90,31/07/2016,R,JADE SECURITY SERVICE LTD     
329,Central Services,GENERATED ACCOUNT,Establishments' Cash Collect'n,E06226,Third Party Payments          ,Private Contractors           ,EH02,Miscellaneous Hired Services            ,627.75,31/08/2016,R,JADE SECURITY SERVICE LTD     
330,Central Services,SupS DOF,Service Accountancy,E06227,Supplies & Services           ,Grants and Subscriptions      ,DJ04,Subscriptions                           ,"3,075.00",28/07/2016,R,CIPFA                         
331,Central Services,SupS Strategic Finance,New Financial System                    ,E06229,Supplies & Services           ,Comms and Computing           ,DG50,Other IT Expenditure                    ,"6,965.00",16/08/2016,R,ADVANCED BUSINESS SOLUTIONS   
332,Central Services,SupS Legal,AD CORPORATE GOVERNANCE,E10279,Supplies & Services           ,Grants and Subscriptions      ,DJ04,Subscriptions                           ,500.00,28/09/2016,R,INFORMATION COMMISSIONER      
333,Central Services,Conducting elections,Election Expenses,E10284,Supplies & Services           ,Equip Furniture/Materials     ,DA09,Equip-Purchases                         ,"1,760.75",31/03/2016,R,SHAW & SONS LTD               
334,Central Services,Conducting elections,Election Expenses,E10284,Supplies & Services           ,Prntng Stnry Gen Off Exp      ,DE50,Ballot Papers/Poll Cards Print          ,"4,108.00",01/08/2016,R,FINANCIAL DATA MANAGEMENT PLC 
335,Central Services,Conducting elections,Election Expenses,E10284,Supplies & Services           ,Prntng Stnry Gen Off Exp      ,DE50,Ballot Papers/Poll Cards Print          ,"6,640.90",01/08/2016,R,FINANCIAL DATA MANAGEMENT PLC 
336,Central Services,Conducting elections,Election Expenses,E10284,Supplies & Services           ,Prntng Stnry Gen Off Exp      ,DE50,Ballot Papers/Poll Cards Print          ,"18,076.06",01/08/2016,R,FINANCIAL DATA MANAGEMENT PLC 
337,Central Services,Conducting elections,Election Expenses,E10284,Supplies & Services           ,Comms and Computing           ,DG04,Postage - General                       ,511.68,02/07/2016,R,FINANCIAL DATA MANAGEMENT PLC 
338,Central Services,Registration of electors,Electoral Registration,E10285,Supplies & Services           ,Comms and Computing           ,DG04,Postage - General                       ,"2,125.81",12/09/2016,R,ROYAL MAIL GROUP LTD          
339,Central Services,Registration of electors,Electoral Registration,E10285,Supplies & Services           ,Comms and Computing           ,DG04,Postage - General                       ,"4,958.81",25/08/2016,R,FINANCIAL DATA MANAGEMENT PLC 
340,Central Services,SupS Legal,Shared Legal Service,E10288,Employees                     ,Indirect Employee Expenses    ,AB57,EXTERNAL TRAINING COSTS                 ,"1,505.44",27/06/2016,R,CGJ ROBERTS - HRC GROUP       
341,Central Services,SupS Legal,Shared Legal Service,E10288,Supplies & Services           ,Prntng Stnry Gen Off Exp      ,DE30,General Office Expense                  ,812.97,31/08/2016,R,RESTORE PLC                   
342,Central Services,SupS Legal,Shared Legal Service,E10288,Supplies & Services           ,Services                      ,DF95,Services from Provider                  ,"3,700.00",21/09/2016,R,SGS                           
343,Central Services,SupS Legal,Shared Legal Service,E10288,Supplies & Services           ,Comms and Computing           ,DG02,Software Licences                       ,"6,757.50",01/09/2016,R,ZYLPHA LIMITED                
344,Central Services,SupS Legal,Shared Legal Service,E10288,Supplies & Services           ,Comms and Computing           ,DG04,Postage - General                       ,620.00,29/08/2016,R,NEOPOST FINANCE LIMITED       
345,Central Services,SupS Legal,Shared Legal Service,E10288,Supplies & Services           ,Comms and Computing           ,DG04,Postage - General                       ,"1,434.37",24/08/2016,R,DX NETWORK SERVICES LTD       
346,Central Services,SupS Legal,Shared Legal Service,E10288,Supplies & Services           ,Comms and Computing           ,DG04,Postage - General                       ,"2,500.00",31/08/2016,R,DX NETWORK SERVICES LTD       
347,Central Services,SupS Legal,Shared Legal Service,E10288,Supplies & Services           ,Comms and Computing           ,DG04,Postage - General                       ,"10,000.00",31/08/2016,R,DX NETWORK SERVICES LTD       
348,Central Services,SupS Legal,Richmond Legal,E10289,Supplies & Services           ,Services                      ,DF11,Counsel's Fees                          ,"1,250.00",20/07/2016,R,REDACTED
349,Central Services,SupS Legal,Richmond Legal,E10289,Supplies & Services           ,Services                      ,DF11,Counsel's Fees                          ,"1,500.00",06/09/2016,R,REDACTED
350,Central Services,SupS Legal,Richmond Legal,E10289,Supplies & Services           ,Services                      ,DF95,Services from Provider                  ,942.00,31/08/2016,R,SHARPE PRITCHARD SOLICITORS   
351,Central Services,SupS Legal,Richmond Legal,E10289,Supplies & Services           ,Services                      ,DF95,Services from Provider                  ,927.50,28/10/2015,R,REDACTED
352,Central Services,SupS Legal,Richmond Legal,E10289,Supplies & Services           ,Services                      ,DF95,Services from Provider                  ,"1,233.75",04/08/2015,R,REDACTED
353,Central Services,SupS Legal,Richmond Legal,E10289,Supplies & Services           ,Services                      ,DF95,Services from Provider                  ,"1,579.25",29/12/2015,R,REDACTED
354,Central Services,SupS Legal,LBR INCOME,E10290,Third Party Payments          ,Other Local Authorities       ,EB01,Payments to OLAs                        ,"4,691.67",09/09/2016,R,L.B OF RICHMOND UPON THAMES   
355,Central Services,SupS Legal,K&S Shared Legal,E10291,Third Party Payments          ,Other Local Authorities       ,EB01,Payments to OLAs                        ,"1,990.00",09/09/2016,R,SUTTON HOUSING PARTNERSHIP LTD
356,Central Services,SupS Legal,K&S Shared Legal,E10291,Third Party Payments          ,Other Local Authorities       ,EB01,Payments to OLAs                        ,"8,530.28",09/09/2016,R,LONDON BOROUGH OF SUTTON      
357,Central Services,SupS Legal,K&S Shared Legal,E10291,Third Party Payments          ,Other Local Authorities       ,EB01,Payments to OLAs                        ,"9,850.00",09/09/2016,R,KINGSTON CORPORATION          
358,Central Services,SupS Legal,Kingston Legal                          ,E10292,Supplies & Services           ,Services                      ,DF11,Counsel's Fees                          ,"1,250.00",14/09/2016,R,REDACTED
359,Central Services,SupS Legal,Kingston Legal                          ,E10292,Supplies & Services           ,Services                      ,DF11,Counsel's Fees                          ,"1,000.00",06/09/2016,R,REDACTED
360,Central Services,SupS Legal,Kingston Legal                          ,E10292,Supplies & Services           ,Services                      ,DF14,Doctors and Other Fees                  ,"1,392.00",12/09/2016,R,REDACTED
361,Central Services,SupS Legal,Kingston Legal                          ,E10292,Supplies & Services           ,Services                      ,DF95,Services from Provider                  ,"1,712.47",11/08/2016,R,MASTERS LEGAL COSTS SERV'S LLP
362,Central Services,SupS Legal,Kingston Legal                          ,E10292,Supplies & Services           ,Services                      ,DF95,Services from Provider                  ,"14,500.00",11/08/2016,R,ROKEBY EDUCATIONAL TRUST      
363,Central Services,SupS Legal,Sutton Legal                            ,E10293,Supplies & Services           ,Services                      ,DF11,Counsel's Fees                          ,"2,130.00",13/09/2016,R,REDACTED
364,Central Services,SupS Legal,Sutton Legal                            ,E10293,Supplies & Services           ,Services                      ,DF11,Counsel's Fees                          ,"3,080.00",09/09/2016,R,REDACTED
365,Central Services,SupS Legal,Sutton Legal                            ,E10293,Supplies & Services           ,Services                      ,DF11,Counsel's Fees                          ,510.00,01/06/2016,R,REDACTED
366,Central Services,SupS Legal,Sutton Legal                            ,E10293,Supplies & Services           ,Services                      ,DF11,Counsel's Fees                          ,510.00,06/09/2016,R,REDACTED
367,Central Services,SupS Legal,Sutton Legal                            ,E10293,Supplies & Services           ,Services                      ,DF11,Counsel's Fees                          ,510.00,17/08/2016,R,REDACTED
368,Central Services,SupS Legal,Sutton Legal                            ,E10293,Supplies & Services           ,Services                      ,DF11,Counsel's Fees                          ,520.00,20/09/2016,R,REDACTED
369,Central Services,SupS Legal,Sutton Legal                            ,E10293,Supplies & Services           ,Services                      ,DF11,Counsel's Fees                          ,600.00,06/09/2016,R,REDACTED
370,Central Services,SupS Legal,Sutton Legal                            ,E10293,Supplies & Services           ,Services                      ,DF11,Counsel's Fees                          ,607.50,11/08/2016,R,REDACTED
371,Central Services,SupS Legal,Sutton Legal                            ,E10293,Supplies & Services           ,Services                      ,DF11,Counsel's Fees                          ,607.50,12/05/2016,R,REDACTED
372,Central Services,SupS Legal,Sutton Legal                            ,E10293,Supplies & Services           ,Services                      ,DF11,Counsel's Fees                          ,693.75,18/08/2016,R,REDACTED
373,Central Services,SupS Legal,Sutton Legal                            ,E10293,Supplies & Services           ,Services                      ,DF11,Counsel's Fees                          ,720.00,31/08/2016,R,REDACTED
374,Central Services,SupS Legal,Sutton Legal                            ,E10293,Supplies & Services           ,Services                      ,DF11,Counsel's Fees                          ,"1,000.00",26/08/2016,R,REDACTED
375,Central Services,SupS Legal,Sutton Legal                            ,E10293,Supplies & Services           ,Services                      ,DF11,Counsel's Fees                          ,"1,120.00",31/08/2016,R,REDACTED
376,Central Services,SupS Legal,Sutton Legal                            ,E10293,Supplies & Services           ,Services                      ,DF11,Counsel's Fees                          ,"1,250.00",06/09/2016,R,REDACTED
377,Central Services,SupS Legal,Sutton Legal                            ,E10293,Supplies & Services           ,Services                      ,DF11,Counsel's Fees                          ,"1,350.00",14/06/2016,R,REDACTED
378,Central Services,SupS Legal,Sutton Legal                            ,E10293,Supplies & Services           ,Services                      ,DF11,Counsel's Fees                          ,"1,390.00",06/07/2016,R,REDACTED
379,Central Services,SupS Legal,Sutton Legal                            ,E10293,Supplies & Services           ,Services                      ,DF11,Counsel's Fees                          ,"1,410.00",02/08/2016,R,REDACTED
380,Central Services,SupS Legal,Sutton Legal                            ,E10293,Supplies & Services           ,Services                      ,DF11,Counsel's Fees                          ,"1,500.00",12/08/2016,R,REDACTED
381,Central Services,SupS Legal,Sutton Legal                            ,E10293,Supplies & Services           ,Services                      ,DF11,Counsel's Fees                          ,"2,480.00",22/08/2016,R,REDACTED
382,Central Services,SupS Legal,Sutton Legal                            ,E10293,Supplies & Services           ,Services                      ,DF11,Counsel's Fees                          ,"2,520.00",01/09/2016,R,REDACTED
383,Central Services,SupS Legal,Sutton Legal                            ,E10293,Supplies & Services           ,Services                      ,DF11,Counsel's Fees                          ,"3,000.00",03/06/2016,R,REDACTED
384,Central Services,SupS Legal,Sutton Legal                            ,E10293,Supplies & Services           ,Services                      ,DF14,Doctors and Other Fees                  ,504.00,06/09/2016,R,ORCHID CELLMARK LTD           
385,Central Services,SupS Legal,Sutton Legal                            ,E10293,Supplies & Services           ,Services                      ,DF14,Doctors and Other Fees                  ,637.20,23/05/2016,R,NATIO RESOURCING LTD          
386,Central Services,SupS Legal,Sutton Legal                            ,E10293,Supplies & Services           ,Services                      ,DF14,Doctors and Other Fees                  ,809.33,15/02/2016,R,DR JULIET BUTLER              
387,Central Services,SupS Legal,Sutton Legal                            ,E10293,Supplies & Services           ,Services                      ,DF14,Doctors and Other Fees                  ,"2,462.00",03/11/2015,R,EXPERT IN MIND                
388,Central Services,SupS Legal,Sutton Legal                            ,E10293,Supplies & Services           ,Services                      ,DF14,Doctors and Other Fees                  ,"3,604.00",26/07/2016,R,NATIO RESOURCING LTD          
389,Central Services,SupS Legal,Sutton Legal                            ,E10293,Supplies & Services           ,Services                      ,DF14,Doctors and Other Fees                  ,(713.70),21/01/2016,R,REDACTED
390,Central Services,SupS Legal,Sutton Legal                            ,E10293,Supplies & Services           ,Services                      ,DF14,Doctors and Other Fees                  ,722.00,23/08/2016,R,REDACTED
391,Central Services,SupS Legal,Sutton Legal                            ,E10293,Supplies & Services           ,Services                      ,DF95,Services from Provider                  ,"3,973.50",08/08/2016,R,REDACTED
392,Central Services,SupS Legal,Achieving for Children (AFC),E10295,Supplies & Services           ,Services                      ,DF11,Counsel's Fees                          ,650.00,03/08/2016,R,REDACTED
393,Central Services,SupS Legal,Achieving for Children (AFC),E10295,Supplies & Services           ,Services                      ,DF11,Counsel's Fees                          ,765.92,26/08/2016,R,MISS ANITA RAO                
394,Central Services,SupS Legal,Achieving for Children (AFC),E10295,Supplies & Services           ,Services                      ,DF11,Counsel's Fees                          ,900.00,14/09/2016,R,DAVID MOLD LTD                
395,Central Services,SupS Legal,Achieving for Children (AFC),E10295,Supplies & Services           ,Services                      ,DF11,Counsel's Fees                          ,505.00,20/09/2016,R,REDACTED
396,Central Services,SupS Legal,Achieving for Children (AFC),E10295,Supplies & Services           ,Services                      ,DF11,Counsel's Fees                          ,510.00,15/07/2016,R,REDACTED
397,Central Services,SupS Legal,Achieving for Children (AFC),E10295,Supplies & Services           ,Services                      ,DF11,Counsel's Fees                          ,520.00,25/04/2016,R,REDACTED
398,Central Services,SupS Legal,Achieving for Children (AFC),E10295,Supplies & Services           ,Services                      ,DF11,Counsel's Fees                          ,525.00,18/08/2016,R,REDACTED
399,Central Services,SupS Legal,Achieving for Children (AFC),E10295,Supplies & Services           ,Services                      ,DF11,Counsel's Fees                          ,560.00,14/09/2016,R,REDACTED
400,Central Services,SupS Legal,Achieving for Children (AFC),E10295,Supplies & Services           ,Services                      ,DF11,Counsel's Fees                          ,570.00,20/09/2016,R,REDACTED
401,Central Services,SupS Legal,Achieving for Children (AFC),E10295,Supplies & Services           ,Services                      ,DF11,Counsel's Fees                          ,595.00,14/09/2016,R,REDACTED
402,Central Services,SupS Legal,Achieving for Children (AFC),E10295,Supplies & Services           ,Services                      ,DF11,Counsel's Fees                          ,706.98,31/08/2016,R,REDACTED
403,Central Services,SupS Legal,Achieving for Children (AFC),E10295,Supplies & Services           ,Services                      ,DF11,Counsel's Fees                          ,750.00,18/08/2016,R,REDACTED
404,Central Services,SupS Legal,Achieving for Children (AFC),E10295,Supplies & Services           ,Services                      ,DF11,Counsel's Fees                          ,840.00,09/09/2016,R,REDACTED
405,Central Services,SupS Legal,Achieving for Children (AFC),E10295,Supplies & Services           ,Services                      ,DF11,Counsel's Fees                          ,893.75,08/08/2016,R,REDACTED
406,Central Services,SupS Legal,Achieving for Children (AFC),E10295,Supplies & Services           ,Services                      ,DF11,Counsel's Fees                          ,920.00,08/09/2016,R,REDACTED
407,Central Services,SupS Legal,Achieving for Children (AFC),E10295,Supplies & Services           ,Services                      ,DF11,Counsel's Fees                          ,"1,000.00",02/09/2016,R,REDACTED
408,Central Services,SupS Legal,Achieving for Children (AFC),E10295,Supplies & Services           ,Services                      ,DF11,Counsel's Fees                          ,"1,050.00",18/08/2016,R,REDACTED
409,Central Services,SupS Legal,Achieving for Children (AFC),E10295,Supplies & Services           ,Services                      ,DF11,Counsel's Fees                          ,"1,750.00",19/09/2016,R,REDACTED
410,Central Services,SupS Legal,Achieving for Children (AFC),E10295,Supplies & Services           ,Services                      ,DF11,Counsel's Fees                          ,"1,920.00",22/08/2016,R,REDACTED
411,Central Services,SupS Legal,Achieving for Children (AFC),E10295,Supplies & Services           ,Services                      ,DF11,Counsel's Fees                          ,"2,800.00",14/09/2016,R,REDACTED
412,Central Services,SupS Legal,Achieving for Children (AFC),E10295,Supplies & Services           ,Services                      ,DF11,Counsel's Fees                          ,"2,925.00",26/08/2016,R,REDACTED
413,Central Services,SupS Legal,Achieving for Children (AFC),E10295,Supplies & Services           ,Services                      ,DF14,Doctors and Other Fees                  ,"2,792.70",07/09/2016,R,CARTER BROWN THE EXPERT SERV  
414,Central Services,SupS Legal,Achieving for Children (AFC),E10295,Supplies & Services           ,Services                      ,DF14,Doctors and Other Fees                  ,"3,021.60",12/06/2015,R,DOMESTIC VIOLENCE INTERVENTION
415,Central Services,SupS Legal,Achieving for Children (AFC),E10295,Supplies & Services           ,Services                      ,DF14,Doctors and Other Fees                  ,503.73,20/07/2016,R,REDACTED
416,Central Services,SupS Legal,Achieving for Children (AFC),E10295,Supplies & Services           ,Services                      ,DF14,Doctors and Other Fees                  ,531.00,23/05/2016,R,REDACTED
417,Central Services,SupS Legal,Achieving for Children (AFC),E10295,Supplies & Services           ,Services                      ,DF14,Doctors and Other Fees                  ,"2,060.50",31/08/2016,R,REDACTED
418,Central Services,SupS Legal,Achieving for Children (AFC),E10295,Supplies & Services           ,Services                      ,DF95,Services from Provider                  ,653.13,31/08/2016,R,ORION SOLICITORS LLP          
419,Central Services,SupS Legal,Achieving for Children (AFC),E10295,Supplies & Services           ,Services                      ,DF95,Services from Provider                  ,"3,477.46",26/07/2016,R,REDACTED
420,Central Services,SupS Legal,Wandsworth Project(SLLP),E10296,Supplies & Services           ,Comms and Computing           ,DG02,Software Licences                       ,"4,250.00",12/08/2016,R,LEXIS NEXIS                   
421,Central Services,SupS IT,Social Care Info System (SCI)           ,E14357,Employees                     ,Direct Employee Expenses      ,AA17,Agency Staff & Casual Paymts            ,"1,132.72",17/08/2016,R,REDACTED
422,Central Services,SupS IT,Social Care Info System (SCI)           ,E14357,Employees                     ,Direct Employee Expenses      ,AA17,Agency Staff & Casual Paymts            ,"1,575.00",21/08/2016,R,HAMPTON'S RESOURCING          
423,Central Services,SupS IT,Social Care Info System (SCI)           ,E14357,Employees                     ,Direct Employee Expenses      ,AA17,Agency Staff & Casual Paymts            ,"1,575.00",28/08/2016,R,HAMPTON'S RESOURCING          
424,Central Services,SupS IT,Social Care Info System (SCI)           ,E14357,Employees                     ,Direct Employee Expenses      ,AA17,Agency Staff & Casual Paymts            ,"1,575.00",04/09/2016,R,HAMPTON'S RESOURCING          
425,Central Services,SupS IT,Social Care Info System (SCI)           ,E14357,Employees                     ,Direct Employee Expenses      ,AA17,Agency Staff & Casual Paymts            ,"2,458.48",17/08/2016,R,REDACTED
426,Central Services,SupS IT,Social Care Info System (SCI)           ,E14357,Employees                     ,Direct Employee Expenses      ,AA17,Agency Staff & Casual Paymts            ,"2,475.00",28/07/2016,R,NUMBER 10 INTERIM LTD         
427,Central Services,SupS IT,Social Care Info System (SCI)           ,E14357,Employees                     ,Direct Employee Expenses      ,AA17,Agency Staff & Casual Paymts            ,"2,500.00",22/08/2016,R,NUMBER 10 INTERIM LTD         
428,Central Services,SupS IT,Social Care Info System (SCI)           ,E14357,Employees                     ,Direct Employee Expenses      ,AA17,Agency Staff & Casual Paymts            ,"2,500.00",11/07/2016,R,NUMBER 10 INTERIM LTD         
429,Central Services,SupS IT,Social Care Info System (SCI)           ,E14357,Employees                     ,Direct Employee Expenses      ,AA17,Agency Staff & Casual Paymts            ,"2,500.00",12/09/2016,R,NUMBER 10 INTERIM LTD         
430,Central Services,SupS IT,Social Care Info System (SCI)           ,E14357,Employees                     ,Direct Employee Expenses      ,AA17,Agency Staff & Casual Paymts            ,"2,750.00",21/07/2016,R,NUMBER 10 INTERIM LTD         
431,Central Services,SupS IT,Social Care Info System (SCI)           ,E14357,Employees                     ,Direct Employee Expenses      ,AA17,Agency Staff & Casual Paymts            ,"4,125.00",19/09/2016,R,NUMBER 10 INTERIM LTD         
432,Central Services,SupS IT,Social Care Info System (SCI)           ,E14357,Employees                     ,Direct Employee Expenses      ,AA17,Agency Staff & Casual Paymts            ,"4,500.00",05/09/2016,R,NUMBER 10 INTERIM LTD         
433,Central Services,SupS IT,Social Care Info System (SCI)           ,E14357,Employees                     ,Direct Employee Expenses      ,AA17,Agency Staff & Casual Paymts            ,"5,000.00",01/09/2016,R,NUMBER 10 INTERIM LTD         
434,Central Services,SupS IT,Social Care Info System (SCI)           ,E14357,Employees                     ,Direct Employee Expenses      ,AA17,Agency Staff & Casual Paymts            ,"5,225.00",19/08/2016,R,NUMBER 10 INTERIM LTD         
435,Central Services,SupS IT,Social Care Info System (SCI)           ,E14357,Employees                     ,Direct Employee Expenses      ,AA17,Agency Staff & Casual Paymts            ,"5,500.00",05/09/2016,R,NUMBER 10 INTERIM LTD         
436,Central Services,SupS IT,Social Care Info System (SCI)           ,E14357,Employees                     ,Direct Employee Expenses      ,AA17,Agency Staff & Casual Paymts            ,"7,590.00",22/08/2016,R,REDACTED
437,Central Services,SupS IT,BI IT Projects,E14360,Employees                     ,Direct Employee Expenses      ,AA17,Agency Staff & Casual Paymts            ,"4,200.00",14/09/2016,R,REDACTED
438,Central Services,SupS IT,BI IT Projects,E14360,Employees                     ,Direct Employee Expenses      ,AA17,Agency Staff & Casual Paymts            ,"5,600.00",07/09/2016,R,REDACTED
439,Central Services,SupS IT,BI IT Projects,E14360,Supplies & Services           ,Comms and Computing           ,DG50,Other IT Expenditure                    ,"37,200.00",29/02/2016,R,KOREC                         
440,Central Services,SupS IT,AD I&T,E14363,Employees                     ,Direct Employee Expenses      ,AA17,Agency Staff & Casual Paymts            ,"2,340.00",16/09/2016,R,REDACTED
441,Central Services,SupS IT,Systems & Projects,E14366,Supplies & Services           ,Comms and Computing           ,DG02,Software Licences                       ,"2,600.00",19/08/2016,R,FIBONACCI LTD                 
442,Central Services,SupS IT,Systems & Projects,E14366,Supplies & Services           ,Comms and Computing           ,DG02,Software Licences                       ,"3,500.00",07/09/2016,R,ME LEARNING                   
443,Central Services,SupS IT,Systems & Projects,E14366,Supplies & Services           ,Comms and Computing           ,DG50,Other IT Expenditure                    ,"39,550.00",31/08/2016,R,NORTHGATE PUBLIC SERV (UK) LTD
444,Central Services,SupS IT,Systems & Projects,E14366,Supplies & Services           ,Comms and Computing           ,DG63,Software Licences - Data                ,682.47,17/08/2016,R,CIVICA UK LIMITED             
445,Central Services,SupS IT,Operations & Telecomms,E14367,Supplies & Services           ,Comms and Computing           ,DG15,Network Maintenance                     ,"46,506.59",05/08/2016,R,GETRONICS UNIFIED COM (UK) LTD
446,Central Services,SupS IT,Operations & Telecomms,E14367,Supplies & Services           ,Comms and Computing           ,DG54,Corporate Telephones                    ,"5,420.55",02/09/2016,R,COLT TELECOMMUNICATIONS       
447,Central Services,SupS IT,Operations & Telecomms,E14367,Supplies & Services           ,Comms and Computing           ,DG54,Corporate Telephones                    ,"42,986.11",27/08/2016,R,BRITISH TELECOMMUNICATIONS PLC
448,Central Services,SupS IT,Distributed Services,E14368,Supplies & Services           ,Comms and Computing           ,DG63,Software Licences - Data                ,"3,020.00",06/09/2016,R,STATSEEKER                    
449,Central Services,SupS IT,Distributed Services,E14368,Supplies & Services           ,Comms and Computing           ,DG63,Software Licences - Data                ,"3,100.00",10/08/2016,R,ULTRA ELECTRONICS AEP         
450,Central Services,SupS IT,Corp Saving-IT Consolidation,E14370,Premises Related Expenditure  ,RepairsAlterations&MtceOfBldgs,BA06,REPAIRS & MAINTENANCE GENERAL           ,"1,272.20",28/07/2016,R,FUTURE TECH                   
451,Central Services,SupS IT,Corp Saving-IT Consolidation,E14370,Premises Related Expenditure  ,RepairsAlterations&MtceOfBldgs,BA06,REPAIRS & MAINTENANCE GENERAL           ,"3,976.60",28/07/2016,R,FUTURE TECH                   
452,Central Services,SupS IT,No longer used,E14371,Employees                     ,Direct Employee Expenses      ,AA17,Agency Staff & Casual Paymts            ,"2,640.00",07/09/2016,R,HAYS SPECIALIST RECRUITM'T LTD
453,Central Services,SupS IT,No longer used,E14371,Employees                     ,Direct Employee Expenses      ,AA17,Agency Staff & Casual Paymts            ,"3,300.00",03/08/2016,R,HAYS SPECIALIST RECRUITM'T LTD
454,Central Services,SupS IT,No longer used,E14371,Employees                     ,Direct Employee Expenses      ,AA17,Agency Staff & Casual Paymts            ,"3,300.00",26/08/2016,R,HAYS SPECIALIST RECRUITM'T LTD
455,Central Services,SupS IT,CS Procurement,E14372,Employees                     ,Direct Employee Expenses      ,AA17,Agency Staff & Casual Paymts            ,600.00,15/09/2016,R,HAYS SPECIALIST RECRUITM'T LTD
456,Central Services,SupS IT,CS Procurement,E14372,Employees                     ,Direct Employee Expenses      ,AA17,Agency Staff & Casual Paymts            ,990.00,08/09/2016,R,HAYS SPECIALIST RECRUITM'T LTD
457,Central Services,SupS IT,CS Procurement,E14372,Employees                     ,Direct Employee Expenses      ,AA17,Agency Staff & Casual Paymts            ,"1,380.00",15/09/2016,R,HAYS SPECIALIST RECRUITM'T LTD
458,Central Services,SupS IT,CS Procurement,E14372,Employees                     ,Direct Employee Expenses      ,AA17,Agency Staff & Casual Paymts            ,"1,485.00",07/09/2016,R,HAYS SPECIALIST RECRUITM'T LTD
459,Central Services,SupS IT,CS Procurement,E14372,Employees                     ,Direct Employee Expenses      ,AA17,Agency Staff & Casual Paymts            ,"1,980.00",15/09/2016,R,HAYS SPECIALIST RECRUITM'T LTD
460,Central Services,SupS IT,CS Procurement,E14372,Employees                     ,Direct Employee Expenses      ,AA17,Agency Staff & Casual Paymts            ,"2,475.00",15/08/2016,R,HAYS SPECIALIST RECRUITM'T LTD
461,Central Services,SupS IT,CS Procurement,E14372,Employees                     ,Direct Employee Expenses      ,AA17,Agency Staff & Casual Paymts            ,"2,475.00",15/08/2016,R,HAYS SPECIALIST RECRUITM'T LTD
462,Central Services,SupS IT,CS Procurement,E14372,Employees                     ,Direct Employee Expenses      ,AA17,Agency Staff & Casual Paymts            ,"2,475.00",06/09/2016,R,HAYS SPECIALIST RECRUITM'T LTD
463,Central Services,SupS IT,CS Procurement,E14372,Employees                     ,Direct Employee Expenses      ,AA17,Agency Staff & Casual Paymts            ,"2,636.25",14/09/2016,R,HAYS SPECIALIST RECRUITM'T LTD
464,Cultural Env Reg&Plan Services,Housing Standards,Shared Regulatory Service Proj,G00091,Employees                     ,Direct Employee Expenses      ,AA17,Agency Staff & Casual Paymts            ,"2,689.40",07/09/2016,R,HAYS SPECIALIST RECRUITM'T LTD
465,Cultural Env Reg&Plan Services,Housing Standards,Shared Regulatory Service Proj,G00091,Employees                     ,Direct Employee Expenses      ,AA17,Agency Staff & Casual Paymts            ,"3,361.75",14/09/2016,R,HAYS SPECIALIST RECRUITM'T LTD
466,Cultural Env Reg&Plan Services,BC Regs & Other not split,HoS - PP&D                              ,G00111,Supplies & Services           ,Services                      ,DF11,Counsel's Fees                          ,"1,350.00",19/08/2016,R,REDACTED
467,Highways & Transport Services,Hwys/Rds (struct) not split,C'way & F'way Mtce,G00121,Supplies & Services           ,Comms and Computing           ,DG07,Computer Software                       ,825.00,12/09/2016,R,KEYSOFT SOLUTIONS             
468,Highways & Transport Services,Hwys/Rds (struct) not split,C'way & F'way Mtce,G00121,Supplies & Services           ,Grants and Subscriptions      ,DJ04,Subscriptions                           ,"1,445.00",07/09/2016,R,CIPFA BUSINESS LTD            
469,Highways & Transport Services,Hwys/Rds (struct) not split,Surf Water Drainage,G00123,Third Party Payments          ,Private Contractors           ,EH56,Carriageway/Fway Maint                  ,"1,461.80",30/08/2016,R,FM CONWAY LTD                 
470,Highways & Transport Services,Repair prin/oth rds not split,Walk Sheets,G00127,Third Party Payments          ,Private Contractors           ,EH56,Carriageway/Fway Maint                  ,"1,462.99",30/08/2016,R,FM CONWAY LTD                 
471,Highways & Transport Services,Repair prin/oth rds not split,Walk Sheets,G00127,Third Party Payments          ,Private Contractors           ,EH56,Carriageway/Fway Maint                  ,"7,332.02",30/08/2016,R,FM CONWAY LTD                 
472,Highways & Transport Services,Repair prin/oth rds not split,Walk Sheets,G00127,Third Party Payments          ,Private Contractors           ,EH56,Carriageway/Fway Maint                  ,"8,042.23",20/09/2016,R,FM CONWAY LTD                 
473,Highways & Transport Services,Repair prin/oth rds not split,Walk Sheets,G00127,Third Party Payments          ,Private Contractors           ,EH56,Carriageway/Fway Maint                  ,"19,306.59",13/09/2016,R,FM CONWAY LTD                 
474,Highways & Transport Services,Repair prin/oth rds not split,Walk Sheets,G00127,Third Party Payments          ,Private Contractors           ,EH56,Carriageway/Fway Maint                  ,"34,161.55",13/09/2016,R,FM CONWAY LTD                 
475,Highways & Transport Services,Winter Maintenance.,Winter Maintenance,G00150,Third Party Payments          ,Other Local Authorities       ,EB50,OLA-Payments - Day Schools              ,"4,909.57",27/09/2016,R,COMPASS MINERALS UK LTD       
476,Highways & Transport Services,Winter Maintenance.,Winter Maintenance,G00150,Third Party Payments          ,Other Local Authorities       ,EB50,OLA-Payments - Day Schools              ,"6,915.86",23/09/2016,R,COMPASS MINERALS UK LTD       
477,Highways & Transport Services,Winter Maintenance.,Winter Maintenance,G00150,Third Party Payments          ,Private Contractors           ,EH56,Carriageway/Fway Maint                  ,"3,116.00",08/09/2016,R,BEXLEY COUNCIL                
478,Highways & Transport Services,Saf mtc prin/oth rds not split,Traffic Signs.,G00160,Third Party Payments          ,Private Contractors           ,EH01,Miscellaneous Agency Services           ,"1,526.74",13/09/2016,R,FM CONWAY LTD                 
479,Highways & Transport Services,Construction Projects,TRAF & HWYS CAPITAL PROJECTS,G00210,Supplies & Services           ,Services                      ,DF05,Surveys (General)                       ,"6,837.96",23/09/2016,R,HIGHWAY SURVEYORS             
480,Highways & Transport Services,Transport Plg/Policy/Strategy,CPZ implementation & Consultat,G00211,Third Party Payments          ,Private Contractors           ,EH56,Carriageway/Fway Maint                  ,"4,748.93",13/09/2016,R,FM CONWAY LTD                 
481,Highways & Transport Services,Street Lighting.,Street Lighting .,G00260,Premises Related Expenditure  ,Energy Costs                  ,BB02,Electricity                             ,"39,362.03",08/09/2016,R,SCOTTISH POWER                
482,Highways & Transport Services,Street Lighting.,Street Lighting .,G00260,Third Party Payments          ,Private Contractors           ,EH01,Miscellaneous Agency Services           ,763.00,31/08/2016,R,UK POWER NETWORKS (OPERATIONS)
483,Highways & Transport Services,Street Lighting.,Street Lighting .,G00260,Third Party Payments          ,Private Contractors           ,EH01,Miscellaneous Agency Services           ,"1,434.94",22/08/2016,R,KIER INTEGRATED SERVICES LTD  
484,Highways & Transport Services,Street Lighting.,Street Lighting .,G00260,Third Party Payments          ,Private Contractors           ,EH01,Miscellaneous Agency Services           ,"1,662.12",30/08/2016,R,KIER INTEGRATED SERVICES LTD  
485,Highways & Transport Services,Street Lighting.,Street Lighting .,G00260,Third Party Payments          ,Private Contractors           ,EH01,Miscellaneous Agency Services           ,"13,182.00",29/08/2016,R,KIER INTEGRATED SERVICES LTD  
486,Highways & Transport Services,Off-street parking,Car Parks (Unloc),G00291,Third Party Payments          ,Private Contractors           ,EH02,Miscellaneous Hired Services            ,"3,666.00",31/08/2016,R,COBALT TELEPHONE TECHNOLOGIES 
487,Highways & Transport Services,Off-street parking,Coombe Lane,G00292,Premises Related Expenditure  ,Rents                         ,BC01,Miscellaneous Rents                     ,"9,562.50",01/09/2016,R,CAPITA PROP'TY & INFRASTRUCT'R
488,Highways & Transport Services,Off-street parking,St. Georges Car Park EAST,G00300,Premises Related Expenditure  ,Rents                         ,BC01,Miscellaneous Rents                     ,"1,003.34",22/08/2016,R,LLOYDS BANK SF NOMINEES LTD   
489,Highways & Transport Services,Off-street parking,St. Georges Car Park WEST M/S,G00302,Premises Related Expenditure  ,Rents                         ,BC01,Miscellaneous Rents                     ,"3,552.07",01/09/2016,R,REDACTED
490,Highways & Transport Services,On-street parking,On Street Parking.,G00311,Premises Related Expenditure  ,RepairsAlterations&MtceOfBldgs,BA06,REPAIRS & MAINTENANCE GENERAL           ,"1,548.75",28/08/2016,R,R.J.H.WELDING                 
491,Highways & Transport Services,On-street parking,On Street Parking.,G00311,Premises Related Expenditure  ,RepairsAlterations&MtceOfBldgs,BA06,REPAIRS & MAINTENANCE GENERAL           ,"2,612.53",06/09/2016,R,FM CONWAY LTD                 
492,Highways & Transport Services,Road Safety Education,TFL CAPT SPEND (REV),G00326,Employees                     ,Indirect Employee Expenses    ,AB57,EXTERNAL TRAINING COSTS                 ,"1,590.00",26/07/2016,R,FLEET SOURCE LTD              
493,Highways & Transport Services,Road Safety Education,TFL CAPT SPEND (REV),G00326,Employees                     ,Indirect Employee Expenses    ,AB57,EXTERNAL TRAINING COSTS                 ,"7,710.00",12/08/2016,R,FLEET SOURCE LTD              
494,Highways & Transport Services,CYCLIST TRAINER,CYCLIST TRAINER,G00328,Third Party Payments          ,Private Contractors           ,EH10,Contract Payments                       ,"5,420.09",01/09/2016,R,CYCLE CONFIDENT               
495,Highways & Transport Services,Parking Enforcement not split,Operational Running Costs,G00331,Supplies & Services           ,Equip Furniture/Materials     ,DA09,Equip-Purchases                         ,"4,078.00",21/09/2016,R,PARKEON LTD                   
496,Highways & Transport Services,Hwys/Rds (struct) not split,Footpath Crossings.,G00390,Third Party Payments          ,Private Contractors           ,EH56,Carriageway/Fway Maint                  ,693.00,09/08/2016,R,UK POWER NETWORKS (OPERATIONS)
497,Highways & Transport Services,Hwys/Rds (struct) not split,Footpath Crossings.,G00390,Third Party Payments          ,Private Contractors           ,EH56,Carriageway/Fway Maint                  ,849.39,30/08/2016,R,FM CONWAY LTD                 
498,Highways & Transport Services,Hwys/Rds (struct) not split,Footpath Crossings.,G00390,Third Party Payments          ,Private Contractors           ,EH56,Carriageway/Fway Maint                  ,"1,072.12",20/09/2016,R,FM CONWAY LTD                 
499,Highways & Transport Services,Hwys/Rds (struct) not split,Footpath Crossings.,G00390,Third Party Payments          ,Private Contractors           ,EH56,Carriageway/Fway Maint                  ,"1,102.91",13/09/2016,R,FM CONWAY LTD                 
500,Highways & Transport Services,Hwys/Rds (struct) not split,Footpath Crossings.,G00390,Third Party Payments          ,Private Contractors           ,EH56,Carriageway/Fway Maint                  ,"1,253.22",20/09/2016,R,FM CONWAY LTD                 
501,Highways & Transport Services,Hwys/Rds (struct) not split,Footpath Crossings.,G00390,Third Party Payments          ,Private Contractors           ,EH56,Carriageway/Fway Maint                  ,"3,083.60",13/09/2016,R,FM CONWAY LTD                 
502,Highways & Transport Services,Hwys/Rds (struct) not split,Footpath Crossings.,G00390,Third Party Payments          ,Private Contractors           ,EH56,Carriageway/Fway Maint                  ,"4,397.95",20/09/2016,R,FM CONWAY LTD                 
503,Cultural Env Reg&Plan Services,Street Clean - Not highways,Street Cleansing (Inc. Gully),G00492,Supplies & Services           ,Equip Furniture/Materials     ,DA01,Equipment - R & M                       ,900.60,31/07/2016,R,N A BROWN LTD                 
504,Cultural Env Reg&Plan Services,Street Clean - Not highways,Street Cleansing (Inc. Gully),G00492,Supplies & Services           ,Equip Furniture/Materials     ,DA01,Equipment - R & M                       ,"1,582.70",04/09/2016,R,R.J.H.WELDING                 
505,Cultural Env Reg&Plan Services,Street Clean - Not highways,Street Cleansing (Inc. Gully),G00492,Supplies & Services           ,Equip Furniture/Materials     ,DA03,Hire of Equipment                       ,690.00,01/09/2016,R,COMCIR RADIO COMMUNICATIONS LT
506,Cultural Env Reg&Plan Services,Street Clean - Not highways,Street Cleansing (Inc. Gully),G00492,Supplies & Services           ,Equip Furniture/Materials     ,DA03,Hire of Equipment                       ,"1,390.00",01/09/2016,R,COMCIR RADIO COMMUNICATIONS LT
507,Cultural Env Reg&Plan Services,Street Clean - Not highways,Street Cleansing (Inc. Gully),G00492,Supplies & Services           ,Equip Furniture/Materials     ,DA31,Waste Sacks & Bags                      ,546.33,13/09/2016,R,IMPERIAL POLYTHENE PRODUCTS LT
508,Cultural Env Reg&Plan Services,Street Clean - Not highways,Street Cleansing (Inc. Gully),G00492,Supplies & Services           ,Equip Furniture/Materials     ,DA31,Waste Sacks & Bags                      ,"1,452.43",31/08/2016,R,IMPERIAL POLYTHENE PRODUCTS LT
509,Cultural Env Reg&Plan Services,Street Clean - Not highways,Street Cleansing (Inc. Gully),G00492,Supplies & Services           ,Equip Furniture/Materials     ,DA31,Waste Sacks & Bags                      ,"2,238.60",31/08/2016,R,IMPERIAL POLYTHENE PRODUCTS LT
510,Cultural Env Reg&Plan Services,Street Clean - Not highways,Street Cleansing (Inc. Gully),G00492,Supplies & Services           ,Clothing Unfrms Laundry       ,DC02,Clothing & Uniforms                     ,"1,030.00",14/09/2016,R,SMI GROUP                     
511,Cultural Env Reg&Plan Services,Street Clean - Not highways,Street Cleansing (Inc. Gully),G00492,Supplies & Services           ,Clothing Unfrms Laundry       ,DC02,Clothing & Uniforms                     ,"1,097.63",16/09/2016,R,SMI GROUP                     
512,Cultural Env Reg&Plan Services,Street Clean - Not highways,Street Cleansing (Inc. Gully),G00492,Supplies & Services           ,Prntng Stnry Gen Off Exp      ,DE30,General Office Expense                  ,660.00,01/09/2016,R,UNIQUE OFFICE SOLUTIONS LTD   
513,Adult Social Care,Supported/Sheltered Employment,Shltd Placement Sch.,G00520,Supplies & Services           ,Clothing Unfrms Laundry       ,DC02,Clothing & Uniforms                     ,989.65,31/08/2016,R,SMI GROUP                     
514,Cultural Env Reg&Plan Services,Waste Disposal (not separated),Waste Disposal .,G00550,Third Party Payments          ,Private Contractors           ,EH04,C1 Viridor SLWP Landfill Contract       ,"2,162.00",30/08/2016,R,KINGSTON CORPORATION          
515,Cultural Env Reg&Plan Services,Waste Disposal (not separated),Waste Disposal .,G00550,Third Party Payments          ,Private Contractors           ,EH04,C1 Viridor SLWP Landfill Contract       ,"4,530.08",30/08/2016,R,KINGSTON CORPORATION          
516,Cultural Env Reg&Plan Services,Waste Disposal (not separated),Waste Disposal .,G00550,Third Party Payments          ,Private Contractors           ,EH04,C1 Viridor SLWP Landfill Contract       ,"4,875.21",30/08/2016,R,KINGSTON CORPORATION          
517,Cultural Env Reg&Plan Services,Waste Disposal (not separated),Waste Disposal .,G00550,Third Party Payments          ,Private Contractors           ,EH04,C1 Viridor SLWP Landfill Contract       ,"37,155.95",30/08/2016,R,KINGSTON CORPORATION          
518,Cultural Env Reg&Plan Services,Waste Disposal (not separated),Waste Disposal .,G00550,Third Party Payments          ,Private Contractors           ,EH04,C1 Viridor SLWP Landfill Contract       ,"341,839.00",30/08/2016,R,KINGSTON CORPORATION          
519,Cultural Env Reg&Plan Services,Civic Amenity Sites,Garth Road Site,G00580,Transport Related Expenditure ,Direct Transport Costs        ,CA01,Petrol Derv & Oil                       ,"1,250.40",10/08/2016,R,EMO OILS LTD                  
520,Cultural Env Reg&Plan Services,Civic Amenity Sites,Garth Road Site,G00580,Third Party Payments          ,Private Contractors           ,EH03,C3 DRY RECYCLING GATE FEE               ,"7,786.38",22/08/2016,R,R.J.H.WELDING                 
521,Cultural Env Reg&Plan Services,Civic Amenity Sites,Garth Road Site,G00580,Third Party Payments          ,Private Contractors           ,EH04,C1 Viridor SLWP Landfill Contract       ,"25,726.88",30/08/2016,R,KINGSTON CORPORATION          
522,Cultural Env Reg&Plan Services,Civic Amenity Sites,Garth Road Site,G00580,Third Party Payments          ,Private Contractors           ,EH18,SLWP C3 Food Waste Gate Fees            ,"7,623.59",30/08/2016,R,KINGSTON CORPORATION          
523,Cultural Env Reg&Plan Services,Civic Amenity Sites,Garth Road Site,G00580,Third Party Payments          ,Private Contractors           ,EH61,Green Waste Disposal                    ,"3,172.68",30/08/2016,R,KINGSTON CORPORATION          
524,Cultural Env Reg&Plan Services,Civic Amenity Sites,Garth Road Site,G00580,Third Party Payments          ,Private Contractors           ,EH94,Waste Disposal - Alt. Site              ,"1,366.59",30/08/2016,R,KINGSTON CORPORATION          
525,Cultural Env Reg&Plan Services,Recycling (Collection),Recycling Activities,G00640,Supplies & Services           ,Equip Furniture/Materials     ,DA32,Wheeled Bins                            ,"2,586.00",22/08/2016,R,UK CONTAINER MAINTENANCE LTD  
526,Cultural Env Reg&Plan Services,Recycling (Collection),Recycling Activities,G00640,Supplies & Services           ,Equip Furniture/Materials     ,DA32,Wheeled Bins                            ,"2,756.00",12/09/2016,R,UK CONTAINER MAINTENANCE LTD  
527,Cultural Env Reg&Plan Services,Recycling (Collection),Recycling Activities,G00640,Third Party Payments          ,Private Contractors           ,EH08,SLWP C1 Haulage Dry Recyclable          ,990.00,30/08/2016,R,KINGSTON CORPORATION          
528,Cultural Env Reg&Plan Services,Recycling (Collection),Recycling Activities,G00640,Third Party Payments          ,Private Contractors           ,EH08,SLWP C1 Haulage Dry Recyclable          ,"28,790.93",30/08/2016,R,KINGSTON CORPORATION          
529,Cultural Env Reg&Plan Services,Recycling (Collection),Recycling Activities,G00640,Third Party Payments          ,Private Contractors           ,EH94,Waste Disposal - Alt. Site              ,"6,166.56",30/08/2016,R,KINGSTON CORPORATION          
530,Cultural Env Reg&Plan Services,Recycling (Collection),Recycling Collection,G00645,Supplies & Services           ,Clothing Unfrms Laundry       ,DC02,Clothing & Uniforms                     ,"2,107.00",05/08/2016,R,GREENHAM                      
531,Cultural Env Reg&Plan Services,Recycling (Collection),Garden Waste Service,G00647,Third Party Payments          ,Private Contractors           ,EH61,Green Waste Disposal                    ,"8,760.13",30/08/2016,R,KINGSTON CORPORATION          
532,Cultural Env Reg&Plan Services,Recycling (Collection),Garden Waste Service,G00647,Third Party Payments          ,Private Contractors           ,EH61,Green Waste Disposal                    ,"10,000.00",30/08/2016,R,KINGSTON CORPORATION          
533,Cultural Env Reg&Plan Services,Recycling (Collection),Food Waste Service,G00648,Supplies & Services           ,Equip Furniture/Materials     ,DA32,Wheeled Bins                            ,"4,723.60",01/09/2016,R,STRAIGHT MANUFACTURING LTD    
534,Cultural Env Reg&Plan Services,Recycling (Collection),Food Waste Service,G00648,Supplies & Services           ,Clothing Unfrms Laundry       ,DC02,Clothing & Uniforms                     ,"3,260.00",14/09/2016,R,SMI GROUP                     
535,Cultural Env Reg&Plan Services,Recycling (Collection),Food Waste Service,G00648,Third Party Payments          ,Private Contractors           ,EH19,SLWP C3 FOOD WASTE HAULAGE              ,"2,706.35",30/08/2016,R,KINGSTON CORPORATION          
536,Cultural Env Reg&Plan Services,Recycling (Collection),Food Waste Service,G00648,Third Party Payments          ,Private Contractors           ,EH19,SLWP C3 FOOD WASTE HAULAGE              ,"2,891.40",30/08/2016,R,KINGSTON CORPORATION          
537,Cultural Env Reg&Plan Services,Recycling (Collection),Food Waste Serv(LWARB funding),G00649,Supplies & Services           ,Equip Furniture/Materials     ,DA31,Waste Sacks & Bags                      ,557.25,25/08/2016,R,IMPERIAL POLYTHENE PRODUCTS LT
538,Cultural Env Reg&Plan Services,Recycling (Collection),WCSS Recycl Encourgmnt&Incentv          ,G00650,Supplies & Services           ,Prntng Stnry Gen Off Exp      ,DE22,Marketing                               ,"3,300.00",30/08/2016,R,OPTIMUM MEDIA SOLUTIONS LTD   
539,Cultural Env Reg&Plan Services,Household Waste Collection,Refuse Collection (Operations),G00661,Supplies & Services           ,Equip Furniture/Materials     ,DA04,Materials                               ,901.80,26/09/2016,R,GREENHAM TRADING LTD          
540,Cultural Env Reg&Plan Services,Household Waste Collection,Refuse Collection (Operations),G00661,Supplies & Services           ,Equip Furniture/Materials     ,DA04,Materials                               ,"1,493.71",22/09/2016,R,GREENHAM                      
541,Cultural Env Reg&Plan Services,Household Waste Collection,Refuse Collection (Operations),G00661,Supplies & Services           ,Clothing Unfrms Laundry       ,DC02,Clothing & Uniforms                     ,"1,000.00",14/09/2016,R,SMI GROUP                     
542,Cultural Env Reg&Plan Services,Trade Waste Collection,Commercial Waste,G00663,Supplies & Services           ,Equip Furniture/Materials     ,DA31,Waste Sacks & Bags                      ,965.90,26/09/2016,R,IMPERIAL POLYTHENE PRODUCTS LT
543,Cultural Env Reg&Plan Services,Trade Waste Collection,Commercial Waste,G00663,Third Party Payments          ,Private Contractors           ,EH04,C1 Viridor SLWP Landfill Contract       ,"36,641.60",30/08/2016,R,KINGSTON CORPORATION          
544,Cultural Env Reg&Plan Services,Trade Waste Collection,Commercial Waste,G00663,Third Party Payments          ,Private Contractors           ,EH08,SLWP C1 Haulage Dry Recyclable          ,"1,479.68",30/08/2016,R,KINGSTON CORPORATION          
545,Cultural Env Reg&Plan Services,Trade Waste Collection,Commercial Waste Collection,G00665,Supplies & Services           ,Clothing Unfrms Laundry       ,DC02,Clothing & Uniforms                     ,"2,836.77",25/08/2016,R,SMI GROUP                     
546,Cultural Env Reg&Plan Services,Household Waste Collection,Phase C Procurement                     ,G00667,Third Party Payments          ,Private Contractors           ,EH20,Drugs Misuse                            ,542.00,06/09/2016,R,GOSTO FINO PORTUGAL PATISSERIE
547,Cultural Env Reg&Plan Services,Street Clean - Not highways,Waste Enforcement,G00680,Supplies & Services           ,Comms and Computing           ,DG02,Software Licences                       ,650.00,19/09/2016,R,IMPERIAL CIVIL ENFORC.SOLUT.  
548,Cultural Env Reg&Plan Services,Street Clean - Not highways,Waste Enforcement,G00680,Third Party Payments          ,Private Contractors           ,EH02,Miscellaneous Hired Services            ,"22,544.94",31/08/2016,R,KINGDOM SECURITY              
549,Cultural Env Reg&Plan Services,Street Clean - Not highways,Waste Enforcement,G00680,Third Party Payments          ,Private Contractors           ,EH90,Disposal of Waste from CA Site,825.00,30/06/2016,R,VEOLIA ES (UK) LIMITED        
550,Cultural Env Reg&Plan Services,Food Safety,Health & Safety,G00697,Third Party Payments          ,Private Contractors           ,EH10,Contract Payments                       ,"1,825.00",31/08/2016,R,PUBLIC ANALYST SCIENTIFIC SER.
551,Cultural Env Reg&Plan Services,Mgt & Support (Env),SLWP (rechargeable)                     ,G00905,Supplies & Services           ,Services                      ,DF03,Consultants                             ,"2,463.75",31/08/2016,R,BRAND NARRATIVE LIMITED       
552,Central Services,SupS Env and Regen,LBR - Pollution                         ,G01004,Supplies & Services           ,Equip Furniture/Materials     ,DA09,Equip-Purchases                         ,525.00,30/06/2016,R,GRACEY & ASSOCIATES           
553,Central Services,Grants - Voluntary Groups,Vestry Hall,G19290,Premises Related Expenditure  ,RepairsAlterations&MtceOfBldgs,BA79,Security of Premises                    ,"1,162.21",31/08/2016,R,KINGDOM SECURITY              
554,Central Services,Grants - Voluntary Groups,Vestry Hall,G19290,Premises Related Expenditure  ,RepairsAlterations&MtceOfBldgs,BA79,Security of Premises                    ,"5,565.40",10/09/2016,R,KINGDOM SECURITY              
555,Central Services,Grants - Voluntary Groups,Vestry Hall,G19290,Premises Related Expenditure  ,Cleaning and Domestic Supplies,BH03,Cleaning Services                       ,"1,934.45",01/09/2016,R,BIRKIN CLEANING SERVICES LTD  
556,Highways & Transport Services,Safe routes inc schl x patrol,School & Road Safety TFL                ,H01083,Supplies & Services           ,Equip Furniture/Materials     ,DA04,Materials                               ,760.00,16/09/2016,R,RED ZULU LIMITED              
557,Highways & Transport Services,Safe routes inc schl x patrol,School & Road Safety TFL                ,H01083,Supplies & Services           ,Equip Furniture/Materials     ,DA04,Materials                               ,"4,205.00",12/09/2016,R,RED ZULU LIMITED              
558,Cultural Env Reg&Plan Services,BC Regs & Other not split,Building Control,H01100,Supplies & Services           ,Comms and Computing           ,DG07,Computer Software                       ,750.00,31/08/2016,R,NORTHGATE PUBLIC SERV (UK) LTD
559,Cultural Env Reg&Plan Services,DC Advice Apps & Reg not split,Development Control,H01130,Supplies & Services           ,Services                      ,DF02,Misc Advertising/Publicity              ,504.00,16/09/2016,R,NEWSQUEST MEDIA GROUP LTD     
560,Cultural Env Reg&Plan Services,DC Advice Apps & Reg not split,Development Control,H01130,Supplies & Services           ,Services                      ,DF11,Counsel's Fees                          ,"1,440.00",13/07/2016,R,LONDON CITY LIVING LIMITED    
561,Cultural Env Reg&Plan Services,DC Advice Apps & Reg not split,Development Control,H01130,Supplies & Services           ,Services                      ,DF11,Counsel's Fees                          ,"1,500.00",22/07/2016,R,ANDREW SCOTT ROBERTSON        
562,Cultural Env Reg&Plan Services,DC Advice Apps & Reg not split,Development Control,H01130,Supplies & Services           ,Services                      ,DF11,Counsel's Fees                          ,"2,280.00",29/07/2016,R,CBRE LIMITED                  
563,Cultural Env Reg&Plan Services,DC Advice Apps & Reg not split,Development Control,H01130,Supplies & Services           ,Services                      ,DF11,Counsel's Fees                          ,"3,000.00",02/09/2016,R,REDACTED
564,Cultural Env Reg&Plan Services,Planning Policy not split,Spatial Policy,H01173,Supplies & Services           ,Services                      ,DF03,Consultants                             ,600.00,20/09/2016,R,SARAH TANBURN ASSOCIATES LTD  
565,Cultural Env Reg&Plan Services,Planning Policy not split,Spatial Policy,H01173,Supplies & Services           ,Services                      ,DF11,Counsel's Fees                          ,"1,000.00",29/07/2016,R,REDACTED
566,Cultural Env Reg&Plan Services,Planning Policy not split,Spatial Policy,H01173,Supplies & Services           ,Services                      ,DF95,Services from Provider                  ,821.60,07/06/2016,R,TROWERS & HAMLINS             
567,Cultural Env Reg&Plan Services,Planning Policy not split,Spatial Policy,H01173,Supplies & Services           ,Services                      ,DF95,Services from Provider                  ,"1,634.70",13/07/2016,R,TROWERS & HAMLINS             
568,Cultural Env Reg&Plan Services,Planning Policy not split,Spatial Policy,H01173,Supplies & Services           ,Services                      ,DF95,Services from Provider                  ,"3,640.00",31/03/2016,R,TROWERS & HAMLINS             
569,Cultural Env Reg&Plan Services,Economic Dev (Not separated),NHB-Morden Shopping Parades             ,H01190,Supplies & Services           ,Services                      ,DF03,Consultants                             ,975.00,10/08/2016,R,URBAN ENTERPRISE NETWORK      
570,Cultural Env Reg&Plan Services,Economic Dev (Not separated),NHB-Morden Shopping Parades             ,H01190,Supplies & Services           ,Services                      ,DF03,Consultants                             ,975.00,31/08/2016,R,URBAN ENTERPRISE NETWORK      
571,Cultural Env Reg&Plan Services,Economic Dev (Not separated),NHB-Morden Shopping Parades             ,H01190,Third Party Payments          ,Private Contractors           ,EH10,Contract Payments                       ,"6,961.07",20/09/2016,R,JAN KATTEIN ARCHITECTS        
572,Cultural Env Reg&Plan Services,Economic Dev (Not separated),NHB-Morden Shopping Parades             ,H01190,Third Party Payments          ,Private Contractors           ,EH10,Contract Payments                       ,"15,303.50",20/09/2016,R,JAN KATTEIN ARCHITECTS        
573,Cultural Env Reg&Plan Services,Economic Dev (Not separated),NHB-Brighter Business                   ,H01191,Third Party Payments          ,Private Contractors           ,EH10,Contract Payments                       ,540.00,15/09/2016,R,BRIAR ASSOCIATES              
574,Cultural Env Reg&Plan Services,Economic Dev (Not separated),NHB-Brighter Business                   ,H01191,Third Party Payments          ,Private Contractors           ,EH10,Contract Payments                       ,540.00,15/09/2016,R,BRIAR ASSOCIATES              
575,Cultural Env Reg&Plan Services,Economic Dev (Not separated),NHB-Brighter Business                   ,H01191,Third Party Payments          ,Private Contractors           ,EH10,Contract Payments                       ,960.00,15/09/2016,R,BRIAR ASSOCIATES              
576,Cultural Env Reg&Plan Services,Economic Dev (Not separated),NHB-Brighter Business                   ,H01191,Third Party Payments          ,Private Contractors           ,EH10,Contract Payments                       ,960.00,15/09/2016,R,BRIAR ASSOCIATES              
577,CS -Oth Operating Inc & Expend,Extraordinary Items & PY Adj.,MILES RD GENERATOR,H01203,Premises Related Expenditure  ,Rents                         ,BC01,Miscellaneous Rents                     ,"8,000.00",01/09/2016,R,W&R BUXTON LTD PENSION FUND   
578,Cultural Env Reg&Plan Services,Economic Dev (Not separated),Capt Ambition-Suburban Opprt Z,H01231,Supplies & Services           ,Services                      ,DF03,Consultants                             ,650.00,20/09/2016,R,URBAN ENTERPRISE NETWORK      
579,Cultural Env Reg&Plan Services,Economic Dev (Not separated),Capt Ambition-Suburban Opprt Z,H01231,Supplies & Services           ,Services                      ,DF03,Consultants                             ,975.00,25/08/2016,R,URBAN ENTERPRISE NETWORK      
580,Cultural Env Reg&Plan Services,Economic Dev (Not separated),Capt Ambition-Suburban Opprt Z,H01231,Supplies & Services           ,Services                      ,DF03,Consultants                             ,975.00,09/09/2016,R,URBAN ENTERPRISE NETWORK      
581,Cultural Env Reg&Plan Services,Economic Dev (Not separated),Capt Ambition-Suburban Opprt Z,H01231,Supplies & Services           ,Services                      ,DF03,Consultants                             ,975.00,09/09/2016,R,URBAN ENTERPRISE NETWORK      
582,Cultural Env Reg&Plan Services,Economic Dev (Not separated),Capt Ambition-Suburban Opprt Z,H01231,Supplies & Services           ,Services                      ,DF30,Activities Programme                    ,791.67,25/08/2016,R,THE NEW PUB COMPANY           
583,Cultural Env Reg&Plan Services,Economic Dev (Not separated),Capt Ambition-Suburban Opprt Z,H01231,Supplies & Services           ,Grants and Subscriptions      ,DJ01,Grants                                  ,"7,025.00",26/09/2016,R,REDACTED
584,Cultural Env Reg&Plan Services,Economic Dev (Not separated),Capt Ambition-Suburban Opprt Z,H01231,Supplies & Services           ,Grants and Subscriptions      ,DJ54,Contributions                           ,"10,000.00",13/08/2016,R,PEAK MAINTENANCE LTD          
585,CS -Oth Operating Inc & Expend,T/A Vehicle Maintenance etc,Transport-Contract Hire,J01374,Employees                     ,Direct Employee Expenses      ,AA17,Agency Staff & Casual Paymts            ,"8,352.00",05/09/2016,R,REDACTED
586,CS -Oth Operating Inc & Expend,T/A Vehicle Maintenance etc,Transport-Contract Hire,J01374,Transport Related Expenditure ,Direct Transport Costs        ,CA01,Petrol Derv & Oil                       ,"30,341.50",18/08/2016,R,EMO OILS LTD                  
587,CS -Oth Operating Inc & Expend,T/A Vehicle Maintenance etc,Transport-Contract Hire,J01374,Transport Related Expenditure ,Contract Hire and Op Leasing  ,CC53,Plant Hire for MRCS                     ,"1,550.00",01/08/2016,R,DAWSON RENTALS BUS AND COACH  
588,CS -Oth Operating Inc & Expend,T/A Vehicle Maintenance etc,Transport-Contract Hire,J01374,Transport Related Expenditure ,Contract Hire and Op Leasing  ,CC53,Plant Hire for MRCS                     ,"3,312.00",31/08/2016,R,RIVERSIDE TRUCK RENTAL LTD    
589,CS -Oth Operating Inc & Expend,T/A Vehicle Maintenance etc,Transport-Contract Hire,J01374,Transport Related Expenditure ,Contract Hire and Op Leasing  ,CC53,Plant Hire for MRCS                     ,"3,496.00",31/08/2016,R,RIVERSIDE TRUCK RENTAL LTD    
590,CS -Oth Operating Inc & Expend,T/A Vehicle Maintenance etc,Transport-Contract Hire,J01374,Transport Related Expenditure ,Contract Hire and Op Leasing  ,CC53,Plant Hire for MRCS                     ,759.00,31/08/2016,R,REDACTED
591,CS -Oth Operating Inc & Expend,T/A Vehicle Maintenance etc,Transport-Contract Hire,J01374,Transport Related Expenditure ,Contract Hire and Op Leasing  ,CC56,Plant Hire for Leisure                  ,585.00,31/08/2016,R,REDACTED
592,CS -Oth Operating Inc & Expend,T/A Vehicle Maintenance etc,Transport-Contract Hire,J01374,Transport Related Expenditure ,Contract Hire and Op Leasing  ,CC57,Pland Hire for Housing                  ,576.84,22/08/2016,R,ARVAL UK LTD                  
593,CS -Oth Operating Inc & Expend,T/A Vehicle Maintenance etc,Transport-Contract Hire,J01374,Transport Related Expenditure ,Contract Hire and Op Leasing  ,CC59,HIRING TRANSPORT OPERATIONS             ,528.00,31/08/2016,R,ENTERPRISE RENT-A-CAR UK LTD  
594,CS -Oth Operating Inc & Expend,T/A Vehicle Maintenance etc,Transport-Contract Hire,J01374,Transport Related Expenditure ,Contract Hire and Op Leasing  ,CC59,HIRING TRANSPORT OPERATIONS             ,"1,122.00",31/08/2016,R,ENTERPRISE RENT-A-CAR UK LTD  
595,CS -Oth Operating Inc & Expend,T/A Vehicle Maintenance etc,Transport-Contract Hire,J01374,Transport Related Expenditure ,Contract Hire and Op Leasing  ,CC59,HIRING TRANSPORT OPERATIONS             ,"1,518.00",31/08/2016,R,ENTERPRISE RENT-A-CAR UK LTD  
596,CS -Oth Operating Inc & Expend,T/A Vehicle Maintenance etc,Transport-Contract Hire,J01374,Transport Related Expenditure ,Contract Hire and Op Leasing  ,CC59,HIRING TRANSPORT OPERATIONS             ,"1,518.00",31/08/2016,R,ENTERPRISE RENT-A-CAR UK LTD  
597,CS -Oth Operating Inc & Expend,T/A Vehicle Maintenance etc,Transport-Contract Hire,J01374,Transport Related Expenditure ,Contract Hire and Op Leasing  ,CC59,HIRING TRANSPORT OPERATIONS             ,559.58,31/08/2016,R,REDACTED
598,CS -Oth Operating Inc & Expend,T/A Vehicle Maintenance etc,Transport-Contract Hire,J01374,Transport Related Expenditure ,Contract Hire and Op Leasing  ,CC59,HIRING TRANSPORT OPERATIONS             ,559.58,31/08/2016,R,REDACTED
599,CS -Oth Operating Inc & Expend,T/A Vehicle Maintenance etc,Transport-Contract Hire,J01374,Transport Related Expenditure ,Contract Hire and Op Leasing  ,CC59,HIRING TRANSPORT OPERATIONS             ,559.58,31/08/2016,R,REDACTED
600,CS -Oth Operating Inc & Expend,T/A Vehicle Maintenance etc,Transport-Contract Hire,J01374,Transport Related Expenditure ,Contract Hire and Op Leasing  ,CC59,HIRING TRANSPORT OPERATIONS             ,559.58,31/08/2016,R,REDACTED
601,CS -Oth Operating Inc & Expend,T/A Vehicle Maintenance etc,Transport-Contract Hire,J01374,Transport Related Expenditure ,Contract Hire and Op Leasing  ,CC64,CSF - SEN CABS (RK02)                   ,"1,558.00",25/07/2016,R,SILVERBURN FINANCE (UK) LTD   
602,CS -Oth Operating Inc & Expend,T/A Vehicle Maintenance etc,Transport-Contract Hire,J01374,Transport Related Expenditure ,Contract Hire and Op Leasing  ,CC66,CSF - CHILDREN CABS (RK09)              ,520.00,31/08/2016,R,SILVERBURN FINANCE (UK) LTD   
603,CS -Oth Operating Inc & Expend,T/A Vehicle Maintenance etc,Transport-Contract Hire,J01374,Transport Related Expenditure ,Contract Hire and Op Leasing  ,CC66,CSF - CHILDREN CABS (RK09)              ,900.00,31/08/2016,R,BRUNSWICK CARS LTD            
604,CS -Oth Operating Inc & Expend,T/A Vehicle Maintenance etc,Transport-Contract Hire,J01374,Transport Related Expenditure ,Contract Hire and Op Leasing  ,CC66,CSF - CHILDREN CABS (RK09)              ,"1,312.00",31/08/2016,R,BARCLAYS ASSET & SALES FINANCE
605,CS -Oth Operating Inc & Expend,T/A Vehicle Maintenance etc,Transport-Contract Hire,J01374,Transport Related Expenditure ,Contract Hire and Op Leasing  ,CC67,C&H - ADULTS CABS (RK08)                ,704.00,31/08/2016,R,CHEAM STATION CARS            
606,CS -Oth Operating Inc & Expend,T/A Vehicle Maintenance etc,Transport-Contract Hire,J01374,Transport Related Expenditure ,Contract Hire and Op Leasing  ,CC67,C&H - ADULTS CABS (RK08)                ,994.00,31/08/2016,R,A STAR TRANSPORT LIMITED      
607,CS -Oth Operating Inc & Expend,T/A Vehicle Maintenance etc,Transport-Contract Hire,J01374,Transport Related Expenditure ,Contract Hire and Op Leasing  ,CC67,C&H - ADULTS CABS (RK08)                ,"1,152.00",31/08/2016,R,A STAR TRANSPORT LIMITED      
608,CS -Oth Operating Inc & Expend,T/A Vehicle Maintenance etc,Transport-Contract Hire,J01374,Transport Related Expenditure ,Contract Hire and Op Leasing  ,CC67,C&H - ADULTS CABS (RK08)                ,"1,440.00",31/08/2016,R,PREMIER MINICAB SER.(SURBITON)
609,CS -Oth Operating Inc & Expend,T/A Vehicle Maintenance etc,Transport-Contract Hire,J01374,Transport Related Expenditure ,Contract Hire and Op Leasing  ,CC67,C&H - ADULTS CABS (RK08)                ,"1,619.73",31/08/2016,R,PREMIER MINICAB SER.(SURBITON)
610,CS -Oth Operating Inc & Expend,T/A Vehicle Maintenance etc,Transport-Contract Hire,J01374,Transport Related Expenditure ,Contract Hire and Op Leasing  ,CC69,Vehicles - Spot Hire,745.00,25/08/2016,R,GULLIVER'S TRUCK HIRE LTD.    
611,CS -Oth Operating Inc & Expend,T/A Vehicle Maintenance etc,Transport-Contract Hire,J01374,Transport Related Expenditure ,Contract Hire and Op Leasing  ,CC69,Vehicles - Spot Hire,745.00,06/09/2016,R,GULLIVER'S TRUCK HIRE LTD.    
612,CS -Oth Operating Inc & Expend,T/A Vehicle Maintenance etc,Transport-Contract Hire,J01374,Transport Related Expenditure ,Contract Hire and Op Leasing  ,CC69,Vehicles - Spot Hire,745.00,12/09/2016,R,GULLIVER'S TRUCK HIRE LTD.    
613,CS -Oth Operating Inc & Expend,T/A Vehicle Maintenance etc,Transport-Contract Hire,J01374,Transport Related Expenditure ,Contract Hire and Op Leasing  ,CC69,Vehicles - Spot Hire,750.00,01/08/2016,R,DAWSON RENTALS BUS AND COACH  
614,CS -Oth Operating Inc & Expend,T/A Vehicle Maintenance etc,Transport-Contract Hire,J01374,Transport Related Expenditure ,Contract Hire and Op Leasing  ,CC69,Vehicles - Spot Hire,"1,039.80",09/09/2016,R,STENNETTS LTD                 
615,CS -Oth Operating Inc & Expend,T/A Vehicle Maintenance etc,Transport-Contract Hire,J01374,Transport Related Expenditure ,Contract Hire and Op Leasing  ,CC69,Vehicles - Spot Hire,"1,650.00",01/09/2016,R,DAWSON RENTALS BUS AND COACH  
616,CS -Oth Operating Inc & Expend,T/A Vehicle Maintenance etc,Transport-Contract Hire,J01374,Transport Related Expenditure ,Contract Hire and Op Leasing  ,CC69,Vehicles - Spot Hire,"1,809.90",05/08/2016,R,GULLIVER'S TRUCK HIRE LTD.    
617,CS -Oth Operating Inc & Expend,T/A Vehicle Maintenance etc,Transport-Contract Hire,J01374,Transport Related Expenditure ,Contract Hire and Op Leasing  ,CC69,Vehicles - Spot Hire,"2,875.00",31/08/2016,R,C P DAVIDSON & SONS LTD       
618,CS -Oth Operating Inc & Expend,T/A Vehicle Maintenance etc,Transport-Contract Hire,J01374,Transport Related Expenditure ,Contract Hire and Op Leasing  ,CC69,Vehicles - Spot Hire,"3,213.00",31/08/2016,R,M6 VEHICLE HIRE               
619,CS -Oth Operating Inc & Expend,T/A Vehicle Maintenance etc,Transport-Contract Hire,J01374,Transport Related Expenditure ,Contract Hire and Op Leasing  ,CC69,Vehicles - Spot Hire,"5,214.00",12/09/2016,R,STENNETTS LTD                 
620,CS -Oth Operating Inc & Expend,T/A Vehicle Maintenance etc,Transport-Contract Hire,J01374,Transport Related Expenditure ,Contract Hire and Op Leasing  ,CC69,Vehicles - Spot Hire,585.00,31/08/2016,R,REDACTED
621,CS -Oth Operating Inc & Expend,T/A Vehicle Maintenance etc,Transport-Contract Hire,J01374,Transport Related Expenditure ,Contract Hire and Op Leasing  ,CC69,Vehicles - Spot Hire,585.00,31/08/2016,R,REDACTED
622,CS -Oth Operating Inc & Expend,T/A Vehicle Maintenance etc,Transport-Contract Hire,J01374,Transport Related Expenditure ,Contract Hire and Op Leasing  ,CC69,Vehicles - Spot Hire,585.00,31/08/2016,R,REDACTED
623,CS -Oth Operating Inc & Expend,T/A Vehicle Maintenance etc,Transport-Contract Hire,J01374,Transport Related Expenditure ,Contract Hire and Op Leasing  ,CC69,Vehicles - Spot Hire,585.00,31/08/2016,R,REDACTED
624,CS -Oth Operating Inc & Expend,T/A Vehicle Maintenance etc,Transport-Contract Hire,J01374,Transport Related Expenditure ,Contract Hire and Op Leasing  ,CC69,Vehicles - Spot Hire,585.00,31/08/2016,R,REDACTED
625,CS -Oth Operating Inc & Expend,T/A Vehicle Maintenance etc,Transport-Contract Hire,J01374,Transport Related Expenditure ,Contract Hire and Op Leasing  ,CC69,Vehicles - Spot Hire,585.00,31/08/2016,R,REDACTED
626,CS -Oth Operating Inc & Expend,T/A Vehicle Maintenance etc,Transport-Contract Hire,J01374,Transport Related Expenditure ,Contract Hire and Op Leasing  ,CC69,Vehicles - Spot Hire,759.00,31/08/2016,R,REDACTED
627,CS -Oth Operating Inc & Expend,T/A Vehicle Maintenance etc,Transport-Contract Hire,J01374,Transport Related Expenditure ,Contract Hire and Op Leasing  ,CC69,Vehicles - Spot Hire,"1,495.00",31/08/2016,R,REDACTED
628,CS -Oth Operating Inc & Expend,T/A Vehicle Maintenance etc,Transport-Contract Hire,J01374,Supplies & Services           ,Comms and Computing           ,DG03,Computer Consumables                    ,"8,683.34",27/07/2016,R,TRACE SYSTEMS (EUROPE)LTD     
629,CS -Oth Operating Inc & Expend,T/A Vehicle Maintenance etc,Transport-Workshop,J01376,Premises Related Expenditure  ,RepairsAlterations&MtceOfBldgs,BA03,DDM - Mechanical                        ,549.65,12/09/2016,R,BILFINGER EUROPA FACILITY     
630,CS -Oth Operating Inc & Expend,T/A Vehicle Maintenance etc,Transport-Workshop,J01376,Transport Related Expenditure ,Contract Hire and Op Leasing  ,CC65,Vehicle Hire for Education              ,795.00,07/09/2016,R,GOLDEN SOVEREIGN COACHES      
631,CS -Oth Operating Inc & Expend,T/A Vehicle Maintenance etc,Transport-Workshop,J01376,Transport Related Expenditure ,Contract Hire and Op Leasing  ,CC65,Vehicle Hire for Education              ,"1,785.00",07/09/2016,R,GOLDEN SOVEREIGN COACHES      
632,CS -Oth Operating Inc & Expend,T/A Vehicle Maintenance etc,Vehicle Workshops,J01378,Employees                     ,Direct Employee Expenses      ,AA17,Agency Staff & Casual Paymts            ,684.00,14/09/2016,R,REDACTED
633,CS -Oth Operating Inc & Expend,T/A Vehicle Maintenance etc,Vehicle Workshops,J01378,Employees                     ,Direct Employee Expenses      ,AA17,Agency Staff & Casual Paymts            ,855.00,24/08/2016,R,REDACTED
634,CS -Oth Operating Inc & Expend,T/A Vehicle Maintenance etc,Vehicle Workshops,J01378,Transport Related Expenditure ,Direct Transport Costs        ,CA02,Tyres                                   ,"10,306.96",31/08/2016,R,DIRECT TYRE MANAGEMENT LTD    
635,CS -Oth Operating Inc & Expend,T/A Vehicle Maintenance etc,Vehicle Workshops,J01378,Transport Related Expenditure ,Direct Transport Costs        ,CA55,Specialist Maint. (Off Site)            ,"1,046.28",06/09/2016,R,TRUST FORD                    
636,CS -Oth Operating Inc & Expend,T/A Vehicle Maintenance etc,Vehicle Workshops,J01378,Transport Related Expenditure ,Direct Transport Costs        ,CA55,Specialist Maint. (Off Site)            ,"1,284.20",14/09/2016,R,GALLOWAY VEHICLE SERVICES     
637,CS -Oth Operating Inc & Expend,T/A Vehicle Maintenance etc,Vehicle Workshops,J01378,Transport Related Expenditure ,Direct Transport Costs        ,CA56,Specialist Maint. (On Site)             ,553.50,31/08/2016,R,GALLOWAY VEHICLE SERVICES     
638,CS -Oth Operating Inc & Expend,T/A Vehicle Maintenance etc,Vehicle Workshops,J01378,Transport Related Expenditure ,Direct Transport Costs        ,CA56,Specialist Maint. (On Site)             ,553.50,31/08/2016,R,GALLOWAY VEHICLE SERVICES     
639,CS -Oth Operating Inc & Expend,T/A Vehicle Maintenance etc,Vehicle Workshops,J01378,Transport Related Expenditure ,Direct Transport Costs        ,CA56,Specialist Maint. (On Site)             ,597.45,28/08/2016,R,R.J.H.WELDING                 
640,CS -Oth Operating Inc & Expend,T/A Vehicle Maintenance etc,Vehicle Workshops,J01378,Transport Related Expenditure ,Direct Transport Costs        ,CA56,Specialist Maint. (On Site)             ,661.80,31/08/2016,R,GALLOWAY VEHICLE SERVICES     
641,CS -Oth Operating Inc & Expend,T/A Vehicle Maintenance etc,Vehicle Workshops,J01378,Transport Related Expenditure ,Direct Transport Costs        ,CA56,Specialist Maint. (On Site)             ,715.49,28/08/2016,R,R.J.H.WELDING                 
642,CS -Oth Operating Inc & Expend,T/A Vehicle Maintenance etc,Vehicle Workshops,J01378,Transport Related Expenditure ,Direct Transport Costs        ,CA56,Specialist Maint. (On Site)             ,"1,041.50",15/09/2016,R,PASSENGER TAILLIFT SERVICING  
643,CS -Oth Operating Inc & Expend,T/A Vehicle Maintenance etc,Vehicle Workshops,J01378,Transport Related Expenditure ,Direct Transport Costs        ,CA56,Specialist Maint. (On Site)             ,"1,057.51",19/09/2016,R,MITCHELL POWER SYSTEMS        
644,CS -Oth Operating Inc & Expend,T/A Vehicle Maintenance etc,Vehicle Workshops,J01378,Transport Related Expenditure ,Direct Transport Costs        ,CA56,Specialist Maint. (On Site)             ,"1,174.81",26/08/2016,R,MITCHELL POWER SYSTEMS        
645,CS -Oth Operating Inc & Expend,T/A Vehicle Maintenance etc,Vehicle Workshops,J01378,Transport Related Expenditure ,Direct Transport Costs        ,CA56,Specialist Maint. (On Site)             ,"1,384.15",06/09/2016,R,GALLOWAY VEHICLE SERVICES     
646,CS -Oth Operating Inc & Expend,T/A Vehicle Maintenance etc,Vehicle Workshops,J01378,Transport Related Expenditure ,Direct Transport Costs        ,CA56,Specialist Maint. (On Site)             ,"1,437.80",13/09/2016,R,MITCHELL POWER SYSTEMS        
647,CS -Oth Operating Inc & Expend,T/A Vehicle Maintenance etc,Vehicle Workshops,J01378,Transport Related Expenditure ,Direct Transport Costs        ,CA56,Specialist Maint. (On Site)             ,"2,016.42",06/09/2016,R,FREIGHT TRANSPORT ASSOCIATION 
648,CS -Oth Operating Inc & Expend,T/A Vehicle Maintenance etc,Vehicle Workshops,J01378,Transport Related Expenditure ,Direct Transport Costs        ,CA56,Specialist Maint. (On Site)             ,888.20,12/09/2016,R,REDACTED
649,CS -Oth Operating Inc & Expend,T/A Vehicle Maintenance etc,Vehicle Workshops,J01378,Transport Related Expenditure ,Direct Transport Costs        ,CA56,Specialist Maint. (On Site)             ,"1,050.00",12/09/2016,R,REDACTED
650,CS -Oth Operating Inc & Expend,T/A Vehicle Maintenance etc,Vehicle Workshops,J01378,Transport Related Expenditure ,Direct Transport Costs        ,CA56,Specialist Maint. (On Site)             ,"1,135.25",06/09/2016,R,REDACTED
651,CS -Oth Operating Inc & Expend,T/A Vehicle Maintenance etc,Vehicle Workshops,J01378,Transport Related Expenditure ,Direct Transport Costs        ,CA56,Specialist Maint. (On Site)             ,"1,227.82",16/09/2016,R,REDACTED
652,CS -Oth Operating Inc & Expend,T/A Vehicle Maintenance etc,Vehicle Workshops,J01378,Transport Related Expenditure ,Direct Transport Costs        ,CA72,Vehicle Parts                           ,"(1,477.04)",16/08/2016,R,SCANIA(GREAT BRITAIN)LIMITED  
653,CS -Oth Operating Inc & Expend,T/A Vehicle Maintenance etc,Vehicle Workshops,J01378,Transport Related Expenditure ,Direct Transport Costs        ,CA72,Vehicle Parts                           ,516.09,05/09/2016,R,SCANIA(GREAT BRITAIN)LIMITED  
654,CS -Oth Operating Inc & Expend,T/A Vehicle Maintenance etc,Vehicle Workshops,J01378,Transport Related Expenditure ,Direct Transport Costs        ,CA72,Vehicle Parts                           ,532.35,14/09/2016,R,ROSSETTS COMMERCIALS          
655,CS -Oth Operating Inc & Expend,T/A Vehicle Maintenance etc,Vehicle Workshops,J01378,Transport Related Expenditure ,Direct Transport Costs        ,CA72,Vehicle Parts                           ,550.52,06/09/2016,R,JOHNSTON SWEEPERS LIMITED     
656,CS -Oth Operating Inc & Expend,T/A Vehicle Maintenance etc,Vehicle Workshops,J01378,Transport Related Expenditure ,Direct Transport Costs        ,CA72,Vehicle Parts                           ,571.50,23/08/2016,R,SCANIA(GREAT BRITAIN)LIMITED  
657,CS -Oth Operating Inc & Expend,T/A Vehicle Maintenance etc,Vehicle Workshops,J01378,Transport Related Expenditure ,Direct Transport Costs        ,CA72,Vehicle Parts                           ,575.96,19/08/2016,R,DENNIS EAGLE LIMITED          
658,CS -Oth Operating Inc & Expend,T/A Vehicle Maintenance etc,Vehicle Workshops,J01378,Transport Related Expenditure ,Direct Transport Costs        ,CA72,Vehicle Parts                           ,584.61,26/08/2016,R,JOHNSTON SWEEPERS LIMITED     
659,CS -Oth Operating Inc & Expend,T/A Vehicle Maintenance etc,Vehicle Workshops,J01378,Transport Related Expenditure ,Direct Transport Costs        ,CA72,Vehicle Parts                           ,621.30,19/09/2016,R,COMMERCIAL & PLANT LTD        
660,CS -Oth Operating Inc & Expend,T/A Vehicle Maintenance etc,Vehicle Workshops,J01378,Transport Related Expenditure ,Direct Transport Costs        ,CA72,Vehicle Parts                           ,712.53,20/09/2016,R,DENNIS EAGLE LIMITED          
661,CS -Oth Operating Inc & Expend,T/A Vehicle Maintenance etc,Vehicle Workshops,J01378,Transport Related Expenditure ,Direct Transport Costs        ,CA72,Vehicle Parts                           ,768.13,23/08/2016,R,JOHNSTON SWEEPERS LIMITED     
662,CS -Oth Operating Inc & Expend,T/A Vehicle Maintenance etc,Vehicle Workshops,J01378,Transport Related Expenditure ,Direct Transport Costs        ,CA72,Vehicle Parts                           ,"1,027.50",23/08/2016,R,TREKA BUS LIMITED             
663,CS -Oth Operating Inc & Expend,T/A Vehicle Maintenance etc,Vehicle Workshops,J01378,Transport Related Expenditure ,Direct Transport Costs        ,CA72,Vehicle Parts                           ,"1,189.55",12/09/2016,R,JOHNSTON SWEEPERS LIMITED     
664,CS -Oth Operating Inc & Expend,T/A Vehicle Maintenance etc,Vehicle Workshops,J01378,Transport Related Expenditure ,Direct Transport Costs        ,CA72,Vehicle Parts                           ,"1,241.97",16/08/2016,R,DENNIS EAGLE LIMITED          
665,CS -Oth Operating Inc & Expend,T/A Vehicle Maintenance etc,Vehicle Workshops,J01378,Transport Related Expenditure ,Direct Transport Costs        ,CA72,Vehicle Parts                           ,"1,342.00",10/08/2016,R,SCANIA(GREAT BRITAIN)LIMITED  
666,CS -Oth Operating Inc & Expend,T/A Vehicle Maintenance etc,Vehicle Workshops,J01378,Transport Related Expenditure ,Direct Transport Costs        ,CA72,Vehicle Parts                           ,"1,477.04",09/08/2016,R,SCANIA(GREAT BRITAIN)LIMITED  
667,CS -Oth Operating Inc & Expend,T/A Vehicle Maintenance etc,Vehicle Workshops,J01378,Transport Related Expenditure ,Direct Transport Costs        ,CA72,Vehicle Parts                           ,"2,141.75",09/08/2016,R,SCANIA(GREAT BRITAIN)LIMITED  
668,CS -Oth Operating Inc & Expend,T/A Vehicle Maintenance etc,Vehicle Workshops,J01378,Transport Related Expenditure ,Direct Transport Costs        ,CA72,Vehicle Parts                           ,"2,415.78",31/08/2016,R,GEESINK NORBA                 
669,CS -Oth Operating Inc & Expend,T/A Vehicle Maintenance etc,Vehicle Workshops,J01378,Supplies & Services           ,Equip Furniture/Materials     ,DA01,Equipment - R & M                       ,"1,832.25",20/08/2016,R,LIFTMASTER LIMITED            
670,CS -Oth Operating Inc & Expend,T/A Vehicle Maintenance etc,Vehicle Workshops,J01378,Supplies & Services           ,Clothing Unfrms Laundry       ,DC01,Laundry                                 ,717.76,27/08/2016,R,BERENDSEN UK LTD              
671,Cultural Env Reg&Plan Services,Mgt & Support (Env),Estates Mgt,J01420,Supplies & Services           ,Services                      ,DF50,Estate Management                       ,"1,141.65",31/08/2016,R,GVA GRIMLEY LTD               
672,CS -Oth Operating Inc & Expend,Extraordinary Items & PY Adj.,Other Misc Props Budget,J01526,Premises Related Expenditure  ,RepairsAlterations&MtceOfBldgs,BA01,DDM - General Building                  ,"7,096.50",04/08/2016,R,KIARA DECORATING CONTRACTORS  
673,CS -Oth Operating Inc & Expend,Extraordinary Items & PY Adj.,South Mitcham Comm Assoc,J08071,Premises Related Expenditure  ,RepairsAlterations&MtceOfBldgs,BA01,DDM - General Building                  ,571.13,26/08/2016,R,SALTASH ENTERPRISES LTD       
674,CS -Oth Operating Inc & Expend,Extraordinary Items & PY Adj.,South Mitcham Comm Assoc,J08071,Premises Related Expenditure  ,RepairsAlterations&MtceOfBldgs,BA01,DDM - General Building                  ,"1,512.04",26/08/2016,R,SALTASH ENTERPRISES LTD       
675,CS -Oth Operating Inc & Expend,Extraordinary Items & PY Adj.,Pollards Hill Comm Cntre,J08074,Premises Related Expenditure  ,RepairsAlterations&MtceOfBldgs,BA03,DDM - Mechanical                        ,617.24,12/09/2016,R,BILFINGER EUROPA FACILITY     
676,CS -Oth Operating Inc & Expend,Extraordinary Items & PY Adj.,Pollards Hill Comm Cntre,J08074,Premises Related Expenditure  ,RepairsAlterations&MtceOfBldgs,BA05,DDM - ELECTRICAL                        ,547.68,19/08/2016,R,BILFINGER EUROPA FACILITY     
677,Childrens & Education Services,Statutory & Regulatory Duties,Schools IT Support,K02008,Supplies & Services           ,Comms and Computing           ,DG50,Other IT Expenditure                    ,"1,249.00",06/07/2016,R,ATOMWIDE LTD                  
678,Childrens & Education Services,Asset Management,PFI Unitary Charges,K03023,Supplies & Services           ,Services                      ,DF95,Services from Provider                  ,"6,712.30",10/08/2016,R,TROWERS & HAMLINS             
679,Childrens & Education Services,Asset Management,PFI Unitary Charges,K03023,Third Party Payments          ,Private Contractors           ,EH10,Contract Payments                       ,"(45,665.97)",13/07/2016,R,NEWSCHOOLS (MERTON) LIMITED   
680,Childrens & Education Services,Asset Management,PFI Unitary Charges,K03023,Third Party Payments          ,Private Contractors           ,EH10,Contract Payments                       ,"(12,675.67)",13/07/2016,R,NEWSCHOOLS (MERTON) LIMITED   
681,Childrens & Education Services,Asset Management,PFI Unitary Charges,K03023,Third Party Payments          ,Private Contractors           ,EH10,Contract Payments                       ,"(2,607.73)",19/07/2016,R,NEWSCHOOLS (MERTON) LIMITED   
682,Childrens & Education Services,Asset Management,PFI Unitary Charges,K03023,Third Party Payments          ,Private Contractors           ,EH10,Contract Payments                       ,"5,763.35",05/09/2016,R,STONE EDGE CONSERVATION LTD   
683,Childrens & Education Services,Asset Management,PFI Unitary Charges,K03023,Third Party Payments          ,Private Contractors           ,EH10,Contract Payments                       ,"3,395,037.75",05/09/2016,R,NEWSCHOOLS (MERTON) LIMITED   
684,Childrens & Education Services,Education Psychology Service,Education Psychology.,K04018,Employees                     ,Direct Employee Expenses      ,AA17,Agency Staff & Casual Paymts            ,"2,000.00",12/09/2016,R,REDACTED
685,Childrens & Education Services,Education Psychology Service,Education Psychology.,K04018,Employees                     ,Direct Employee Expenses      ,AA17,Agency Staff & Casual Paymts            ,"2,000.00",19/09/2016,R,REDACTED
686,Childrens & Education Services,Education Psychology Service,Education Psychology.,K04018,Employees                     ,Indirect Employee Expenses    ,AB02,Recruitment Adverts                     ,700.00,21/09/2016,R,ASSOC OF EDUC.PSYCHOLOGIST    
687,Childrens & Education Services,Education Psychology Service,Education Psychology.,K04018,Supplies & Services           ,Equip Furniture/Materials     ,DA09,Equip-Purchases                         ,624.00,11/08/2016,R,SPEECHMARK PUBLISH C/O NBN INT
688,Childrens & Education Services,Education Psychology Service,Education Psychology.,K04018,Supplies & Services           ,Services                      ,DF09,Miscellaneous Fees                      ,"1,995.00",19/05/2016,R,PROQUEST LLC                  
689,Childrens & Education Services,GENERATED ACCOUNT,Children's centres,K05137,Premises Related Expenditure  ,RepairsAlterations&MtceOfBldgs,BA79,Security of Premises                    ,"2,491.00",01/09/2016,R,SIGHT & SOUND                 
690,Childrens & Education Services,GENERATED ACCOUNT,Children's centres,K05137,Supplies & Services           ,Expenses                      ,DH02,Conferences                             ,"2,450.00",22/08/2016,R,KIN SUPPORT SERVICES          
691,Childrens & Education Services,GENERATED ACCOUNT,Children's centres,K05137,Supplies & Services           ,Expenses                      ,DH02,Conferences                             ,"2,555.00",01/08/2016,R,KIN SUPPORT SERVICES          
692,Childrens & Education Services,Nursery schools,GSSG Recruitment,K05401,Premises Related Expenditure  ,Cleaning and Domestic Supplies,BH03,Cleaning Services                       ,545.67,30/08/2016,R,JULIUS RUTHERFOORD & CO LTD   
693,Childrens & Education Services,GENERATED ACCOUNT,Mitcham MAT (Premises),K05412,Premises Related Expenditure  ,RepairsAlterations&MtceOfBldgs,BA01,DDM - General Building                  ,557.00,13/09/2016,R,GILLETT FLOORING CONTRACTORS  
694,Childrens & Education Services,GENERATED ACCOUNT,Mitcham MAT (Premises),K05412,Premises Related Expenditure  ,RepairsAlterations&MtceOfBldgs,BA01,DDM - General Building                  ,956.00,13/09/2016,R,GILLETT FLOORING CONTRACTORS  
695,Childrens & Education Services,GENERATED ACCOUNT,Mitcham MAT (Premises),K05412,Premises Related Expenditure  ,Cleaning and Domestic Supplies,BH03,Cleaning Services                       ,"1,564.45",01/09/2016,R,BIRKIN CLEANING SERVICES LTD  
696,Childrens & Education Services,GENERATED ACCOUNT,Morden MAT,K05413,Premises Related Expenditure  ,Cleaning and Domestic Supplies,BH03,Cleaning Services                       ,"1,312.19",01/09/2016,R,BIRKIN CLEANING SERVICES LTD  
697,Childrens & Education Services,Nursery schools,Lavender CC Non Childcare,K05415,Supplies & Services           ,Prntng Stnry Gen Off Exp      ,DE30,General Office Expense                  ,800.00,25/08/2016,R,OFFICE FURNITURE ONLINE       
698,Childrens & Education Services,Nursery schools,E.Years-Intergenerational Cntr,K05416,Premises Related Expenditure  ,Cleaning and Domestic Supplies,BH03,Cleaning Services                       ,911.55,01/09/2016,R,BIRKIN CLEANING SERVICES LTD  
699,Childrens & Education Services,Nursery schools,E.Years-Intergenerational Cntr,K05416,Premises Related Expenditure  ,Ground Maintenance Costs      ,BL03,Maintenance of Grounds                  ,520.00,04/09/2016,R,ANITA JOHNSTONE T/A EDS       
700,Childrens & Education Services,Nursery schools,E.Years-Intergenerational Cntr,K05416,Premises Related Expenditure  ,Ground Maintenance Costs      ,BL03,Maintenance of Grounds                  ,520.00,11/08/2016,R,ANITA JOHNSTONE T/A EDS       
701,Childrens & Education Services,Nursery schools,E.Years-Intergenerational Cntr,K05416,Premises Related Expenditure  ,Ground Maintenance Costs      ,BL03,Maintenance of Grounds                  ,780.00,11/08/2016,R,ANITA JOHNSTONE T/A EDS       
702,Childrens & Education Services,Vocational - Adult Education,MAE-Bldgs Repairs & Maintenanc,K06048,Premises Related Expenditure  ,RepairsAlterations&MtceOfBldgs,BA05,DDM - ELECTRICAL                        ,525.29,02/09/2016,R,BILFINGER EUROPA FACILITY     
703,Childrens & Education Services,Vocational - Adult Education,MAE-Bldgs Repairs & Maintenanc,K06048,Premises Related Expenditure  ,RepairsAlterations&MtceOfBldgs,BA05,DDM - ELECTRICAL                        ,924.48,05/09/2016,R,BILFINGER EUROPA FACILITY     
704,Childrens & Education Services,Vocational - Adult Education,AE-Adult Education Main,K06049,Supplies & Services           ,Services                      ,DF27,Examination Fees                        ,526.00,31/08/2016,R,ASCENTIS                      
705,Childrens & Education Services,Vocational - Adult Education,AE-Adult Education Main,K06049,Supplies & Services           ,Services                      ,DF27,Examination Fees                        ,"1,400.00",14/03/2016,R,UCLES                         
706,Childrens & Education Services,Vocational - Adult Education,AE-Adult Education Main,K06049,Supplies & Services           ,Comms and Computing           ,DG02,Software Licences                       ,"1,750.00",16/09/2016,R,SOFTWARE SOLUTIONS(WARWICK)LTD
707,Childrens & Education Services,Vocational - Adult Education,AE-Adult Education Main,K06049,Supplies & Services           ,Comms and Computing           ,DG08,Computer Hardware                       ,"4,902.32",26/08/2016,R,ALTODIGITAL NETWORKS LTD      
708,Childrens & Education Services,Youth Centres (Residential),Leyton Rd Premises Costs.,K06054,Premises Related Expenditure  ,Cleaning and Domestic Supplies,BH03,Cleaning Services                       ,573.87,01/09/2016,R,BIRKIN CLEANING SERVICES LTD  
709,Childrens & Education Services,Youth Centres (Residential),Youth Office Premises Cost,K06073,Premises Related Expenditure  ,RepairsAlterations&MtceOfBldgs,BA01,DDM - General Building                  ,545.00,07/09/2016,R,SYMES FENCING                 
710,Childrens & Education Services,Youth Centres (Residential),Youth Office Premises Cost,K06073,Premises Related Expenditure  ,RepairsAlterations&MtceOfBldgs,BA01,DDM - General Building                  ,"1,665.00",19/05/2016,R,REDACTED
711,Childrens & Education Services,Youth Centres (Residential),PAYP Moving Forward in Life,K06092,Premises Related Expenditure  ,Rents                         ,BC01,Miscellaneous Rents                     ,"6,750.00",15/09/2016,R,GOLDPLAZA (MITCHAM) LIMITED   
712,Childrens & Education Services,Pupil Support,Careers Educ IAG Contracts,K06097,Third Party Payments          ,Private Contractors           ,EH01,Miscellaneous Agency Services           ,"32,324.00",20/09/2016,R,LONDON BOROUGH OF KINGSTON    
713,Childrens & Education Services,Vocational - Adult Education,AE-Twds-Independence,K06101,Supplies & Services           ,Equip Furniture/Materials     ,DA04,Materials                               ,500.00,01/09/2016,R,REDACTED
714,Childrens & Education Services,Asset Management,S106 Bid,K08077,Premises Related Expenditure  ,RepairsAlterations&MtceOfBldgs,BA06,REPAIRS & MAINTENANCE GENERAL           ,780.00,25/07/2016,R,T MCKEOWN & SON FENCING       
715,Childrens & Education Services,Asset Management,S106 Bid,K08077,Premises Related Expenditure  ,RepairsAlterations&MtceOfBldgs,BA06,REPAIRS & MAINTENANCE GENERAL           ,"4,944.09",20/09/2016,R,WOODSIDE CONTRACT SERVICES LTD
716,Childrens & Education Services,Asset Management,S106 Bid,K08077,Premises Related Expenditure  ,RepairsAlterations&MtceOfBldgs,BA06,REPAIRS & MAINTENANCE GENERAL           ,"5,071.34",17/08/2016,R,ENERGY ASSETS LIMITED         
717,Childrens & Education Services,Asset Management,S106 Bid,K08077,Premises Related Expenditure  ,RepairsAlterations&MtceOfBldgs,BA06,REPAIRS & MAINTENANCE GENERAL           ,"73,546.91",22/08/2016,R,WOODSIDE CONTRACT SERVICES LTD
718,Childrens & Education Services,Asset Management,S106 Bid,K08077,Supplies & Services           ,Services                      ,DF04,Miscellaneous Expenses                  ,781.06,06/09/2016,R,ELIM FOURSQ. GOSPEL ALLIANCE  
719,Childrens & Education Services,Asset Management,Centre Commissioned Servs,K08078,Supplies & Services           ,Grants and Subscriptions      ,DJ01,Grants                                  ,"9,737.50",17/08/2016,R,BARNARDOS                     
720,Childrens & Education Services,Asset Management,Centre Commissioned Servs,K08078,Supplies & Services           ,Grants and Subscriptions      ,DJ01,Grants                                  ,"9,737.50",13/09/2016,R,BARNARDOS                     
721,Childrens & Education Services,Asset Management,Stouthall,K09082,Premises Related Expenditure  ,Rents                         ,BC01,Miscellaneous Rents                     ,"4,125.00",01/09/2016,R,ROBERT MORGAN & SONS LTD      
722,Childrens & Education Services,Admissions & Planning Sch Prov,Schools Admin & Pupil Benefits,K90001,Supplies & Services           ,Services                      ,DF02,Misc Advertising/Publicity              ,"2,272.00",19/09/2016,R,NEWSQUEST MEDIA GROUP LTD     
723,Childrens & Education Services,Support for SEN Pupils,Non-Delegated Statements,K90024,Supplies & Services           ,Services                      ,DF09,Miscellaneous Fees                      ,"3,622.00",19/09/2016,R,SUTTON HIGH SCHOOL            
724,Childrens & Education Services,Support for SEN Pupils,Non-Delegated Statements,K90024,Supplies & Services           ,Services                      ,DF14,Doctors and Other Fees                  ,"1,475.00",09/09/2016,R,JOSEPH HOOD PRIMARY SCHOOL    
725,Childrens & Education Services,Support for SEN Pupils,Non-Delegated Statements,K90024,Third Party Payments          ,Other Local Authorities       ,EB48,OLA PAYMENTS-STATEMENTS                 ,"2,167.00",20/09/2016,R,BRIT SCHOOL                 
726,Childrens & Education Services,Support for SEN Pupils,Non-Delegated Statements,K90024,Third Party Payments          ,Other Local Authorities       ,EB48,OLA PAYMENTS-STATEMENTS                 ,"2,856.49",20/09/2016,R,ST LEONARD'S CS SCHOOL        
727,Childrens & Education Services,Support for SEN Pupils,Non-Delegated Statements,K90024,Third Party Payments          ,Other Local Authorities       ,EB48,OLA PAYMENTS-STATEMENTS                 ,"2,856.49",23/09/2016,R,LONDON NAUTICAL SCHOOL        
728,Childrens & Education Services,Support for SEN Pupils,Non-Delegated Statements,K90024,Third Party Payments          ,Other Local Authorities       ,EB48,OLA PAYMENTS-STATEMENTS                 ,"3,386.74",30/09/2016,R,OVERTON GRANGE SCHOOL         
729,Childrens & Education Services,Support for SEN Pupils,Non-Delegated Statements,K90024,Third Party Payments          ,Other Local Authorities       ,EB48,OLA PAYMENTS-STATEMENTS                 ,"4,112.64",30/09/2016,R,BROADWATER PRIMARY SCH        
730,Childrens & Education Services,Support for SEN Pupils,Non-Delegated Statements,K90024,Third Party Payments          ,Other Local Authorities       ,EB48,OLA PAYMENTS-STATEMENTS                 ,"4,415.04",30/09/2016,R,BROADWATER PRIMARY SCH        
731,Childrens & Education Services,Support for SEN Pupils,Non-Delegated Statements,K90024,Third Party Payments          ,Other Local Authorities       ,EB48,OLA PAYMENTS-STATEMENTS                 ,"5,428.75",20/09/2016,R,HOLY GHOST CATHOLIC PRIMARY SC
732,Childrens & Education Services,Support for SEN Pupils,Non-Delegated Statements,K90024,Third Party Payments          ,Other Local Authorities       ,EB48,OLA PAYMENTS-STATEMENTS                 ,"7,022.51",20/09/2016,R,ST BERNADETTE CATHOLIC J.SCH  
733,Childrens & Education Services,Support for SEN Pupils,Non-Delegated Statements,K90024,Third Party Payments          ,Other Local Authorities       ,EB48,OLA PAYMENTS-STATEMENTS                 ,"7,271.54",23/09/2016,R,SUTTON GRAMMAR SCHOOL         
734,Childrens & Education Services,Support for SEN Pupils,Non-Delegated Statements,K90024,Third Party Payments          ,Other Local Authorities       ,EB48,OLA PAYMENTS-STATEMENTS                 ,"7,982.52",20/09/2016,R,GLENTHORNE HIGH SCHOOL        
735,Childrens & Education Services,Support for SEN Pupils,Non-Delegated Statements,K90024,Third Party Payments          ,Other Local Authorities       ,EB48,OLA PAYMENTS-STATEMENTS                 ,"10,907.30",20/09/2016,R,GLENTHORNE HIGH SCHOOL        
736,Childrens & Education Services,Support for SEN Pupils,Non-Delegated Statements,K90024,Third Party Payments          ,Other Local Authorities       ,EB50,OLA-Payments - Day Schools              ,"43,473.00",20/09/2016,R,BEDELSFORD SCHOOL             
737,Childrens & Education Services,Support for SEN Pupils,Non-Delegated Statements,K90024,Third Party Payments          ,Other Local Authorities       ,EB50,OLA-Payments - Day Schools              ,"57,964.00",20/09/2016,R,BEDELSFORD SCHOOL             
738,Childrens & Education Services,Support for SEN Pupils,Non-Delegated Statements,K90024,Third Party Payments          ,Other Local Authorities       ,EB50,OLA-Payments - Day Schools              ,"261,328.17",09/05/2016,R,WANDSWORTH CORPORATION        
739,Childrens & Education Services,Support for SEN Pupils,Non-Delegated Statements,K90024,Third Party Payments          ,Other Establishments          ,EG01,Alternative SEN Provision               ,810.00,31/08/2016,R,HA TUTORS LTD                 
740,Childrens & Education Services,Support for SEN Pupils,Non-Delegated Statements,K90024,Third Party Payments          ,Other Establishments          ,EG01,Alternative SEN Provision               ,"1,260.00",30/06/2016,R,HA TUTORS LTD                 
741,Childrens & Education Services,Support for SEN Pupils,Non-Delegated Statements,K90024,Third Party Payments          ,Other Establishments          ,EG01,Alternative SEN Provision               ,"1,395.00",31/08/2016,R,HA TUTORS LTD                 
742,Childrens & Education Services,Support for SEN Pupils,Non-Delegated Statements,K90024,Third Party Payments          ,Other Establishments          ,EG50,Ind Day Schs Payments                   ,"2,000.00",14/09/2016,R,THE CHILDRENS TRUST           
743,Childrens & Education Services,Support for SEN Pupils,Non-Delegated Statements,K90024,Third Party Payments          ,Other Establishments          ,EG50,Ind Day Schs Payments                   ,"2,562.50",07/07/2016,R,MORE HOUSE SCHOOL             
744,Childrens & Education Services,Support for SEN Pupils,Non-Delegated Statements,K90024,Third Party Payments          ,Other Establishments          ,EG50,Ind Day Schs Payments                   ,"3,320.33",01/09/2016,R,THE MOAT SCHOOL               
745,Childrens & Education Services,Support for SEN Pupils,Non-Delegated Statements,K90024,Third Party Payments          ,Other Establishments          ,EG50,Ind Day Schs Payments                   ,"4,543.00",23/09/2016,R,BLOSSOM HOUSE SCHOOL          
746,Childrens & Education Services,Support for SEN Pupils,Non-Delegated Statements,K90024,Third Party Payments          ,Other Establishments          ,EG50,Ind Day Schs Payments                   ,"5,396.07",08/08/2016,R,LVS HASSOCKS                  
747,Childrens & Education Services,Support for SEN Pupils,Non-Delegated Statements,K90024,Third Party Payments          ,Other Establishments          ,EG50,Ind Day Schs Payments                   ,"5,860.00",07/07/2016,R,MORE HOUSE SCHOOL             
748,Childrens & Education Services,Support for SEN Pupils,Non-Delegated Statements,K90024,Third Party Payments          ,Other Establishments          ,EG50,Ind Day Schs Payments                   ,"6,692.00",01/09/2016,R,THE LINK PRIMARY DAY SCHOOL   
749,Childrens & Education Services,Support for SEN Pupils,Non-Delegated Statements,K90024,Third Party Payments          ,Other Establishments          ,EG50,Ind Day Schs Payments                   ,"6,848.33",01/09/2016,R,THE LINK SECONDARY SCHOOL     
750,Childrens & Education Services,Support for SEN Pupils,Non-Delegated Statements,K90024,Third Party Payments          ,Other Establishments          ,EG50,Ind Day Schs Payments                   ,"7,217.33",01/09/2016,R,THE LINK SECONDARY SCHOOL     
751,Childrens & Education Services,Support for SEN Pupils,Non-Delegated Statements,K90024,Third Party Payments          ,Other Establishments          ,EG50,Ind Day Schs Payments                   ,"7,455.00",01/09/2016,R,THE LINK PRIMARY DAY SCHOOL   
752,Childrens & Education Services,Support for SEN Pupils,Non-Delegated Statements,K90024,Third Party Payments          ,Other Establishments          ,EG50,Ind Day Schs Payments                   ,"7,455.00",01/09/2016,R,THE LINK PRIMARY DAY SCHOOL   
753,Childrens & Education Services,Support for SEN Pupils,Non-Delegated Statements,K90024,Third Party Payments          ,Other Establishments          ,EG50,Ind Day Schs Payments                   ,"7,719.66",08/08/2016,R,LVS HASSOCKS                  
754,Childrens & Education Services,Support for SEN Pupils,Non-Delegated Statements,K90024,Third Party Payments          ,Other Establishments          ,EG50,Ind Day Schs Payments                   ,"9,600.00",01/09/2016,R,THE MOAT SCHOOL               
755,Childrens & Education Services,Support for SEN Pupils,Non-Delegated Statements,K90024,Third Party Payments          ,Other Establishments          ,EG50,Ind Day Schs Payments                   ,"9,600.00",01/09/2016,R,THE MOAT SCHOOL               
756,Childrens & Education Services,Support for SEN Pupils,Non-Delegated Statements,K90024,Third Party Payments          ,Other Establishments          ,EG50,Ind Day Schs Payments                   ,"9,600.00",01/09/2016,R,THE MOAT SCHOOL               
757,Childrens & Education Services,Support for SEN Pupils,Non-Delegated Statements,K90024,Third Party Payments          ,Other Establishments          ,EG50,Ind Day Schs Payments                   ,"10,559.00",01/09/2016,R,THE LINK PRIMARY DAY SCHOOL   
758,Childrens & Education Services,Support for SEN Pupils,Non-Delegated Statements,K90024,Third Party Payments          ,Other Establishments          ,EG50,Ind Day Schs Payments                   ,"14,736.82",05/09/2016,R,FACE YOUTH                    
759,Childrens & Education Services,Support for SEN Pupils,Non-Delegated Statements,K90024,Third Party Payments          ,Other Establishments          ,EG50,Ind Day Schs Payments                   ,"14,736.82",05/09/2016,R,FACE YOUTH                    
760,Childrens & Education Services,Support for SEN Pupils,Non-Delegated Statements,K90024,Third Party Payments          ,Other Establishments          ,EG50,Ind Day Schs Payments                   ,"14,736.82",05/09/2016,R,FACE YOUTH                    
761,Childrens & Education Services,Support for SEN Pupils,Non-Delegated Statements,K90024,Third Party Payments          ,Other Establishments          ,EG50,Ind Day Schs Payments                   ,"14,736.82",05/09/2016,R,FACE YOUTH                    
762,Childrens & Education Services,Support for SEN Pupils,Non-Delegated Statements,K90024,Third Party Payments          ,Other Establishments          ,EG50,Ind Day Schs Payments                   ,"14,950.00",01/07/2016,R,BLOSSOM HOUSE SCHOOL          
763,Childrens & Education Services,Support for SEN Pupils,Non-Delegated Statements,K90024,Third Party Payments          ,Other Establishments          ,EG50,Ind Day Schs Payments                   ,"15,251.00",01/09/2016,R,ST JOSEPHS SCHOOL             
764,Childrens & Education Services,Support for SEN Pupils,Non-Delegated Statements,K90024,Third Party Payments          ,Other Establishments          ,EG50,Ind Day Schs Payments                   ,"18,575.00",18/08/2016,R,THE CHELSEA GROUP OF CHILDREN 
765,Childrens & Education Services,Support for SEN Pupils,Non-Delegated Statements,K90024,Third Party Payments          ,Other Establishments          ,EG50,Ind Day Schs Payments                   ,"18,615.00",18/07/2016,R,PHILPOTS MANOR SCHOOL         
766,Childrens & Education Services,Support for SEN Pupils,Non-Delegated Statements,K90024,Third Party Payments          ,Other Establishments          ,EG50,Ind Day Schs Payments                   ,"21,666.66",15/08/2016,R,ROEHAMPTON LODGE PRIORY       
767,Childrens & Education Services,Support for SEN Pupils,Non-Delegated Statements,K90024,Third Party Payments          ,Other Establishments          ,EG50,Ind Day Schs Payments                   ,"29,377.60",15/08/2016,R,UNSTED PARK                   
768,Childrens & Education Services,Support for SEN Pupils,Non-Delegated Statements,K90024,Third Party Payments          ,Other Establishments          ,EG50,Ind Day Schs Payments                   ,"33,533.00",01/09/2016,R,ST JOSEPHS SCHOOL             
769,Childrens & Education Services,Support for SEN Pupils,Non-Delegated Statements,K90024,Third Party Payments          ,Other Establishments          ,EG50,Ind Day Schs Payments                   ,"51,871.05",07/09/2016,R,BEYOND AUTISM                 
770,Childrens & Education Services,Support for SEN Pupils,Non-Delegated Statements,K90024,Third Party Payments          ,Other Establishments          ,EG50,Ind Day Schs Payments                   ,"64,696.50",07/09/2016,R,BEYOND AUTISM                 
771,Childrens & Education Services,Support for SEN Pupils,Non-Delegated Statements,K90024,Third Party Payments          ,Other Establishments          ,EG50,Ind Day Schs Payments                   ,"89,446.50",07/09/2016,R,BEYOND AUTISM                 
772,Childrens & Education Services,Support for SEN Pupils,Non-Delegated Statements,K90024,Third Party Payments          ,Other Establishments          ,EG53,Ind Specialist Providers                ,"8,631.00",18/08/2016,R,CAMBIAN CARE SERVICES LIMITED 
773,Childrens & Education Services,Support for SEN Pupils,Non-Delegated Statements,K90024,Third Party Payments          ,Other Establishments          ,EG53,Ind Specialist Providers                ,"8,918.70",18/08/2016,R,CAMBIAN CARE SERVICES LIMITED 
774,Childrens & Education Services,Support for SEN Pupils,Non-Delegated Statements,K90024,Third Party Payments          ,Other Establishments          ,EG53,Ind Specialist Providers                ,"13,809.36",13/07/2016,R,CAMBIAN CARE SERVICES LIMITED 
775,Childrens & Education Services,Support for SEN Pupils,Non-Delegated Statements,K90024,Third Party Payments          ,Other Establishments          ,EG53,Ind Specialist Providers                ,"8,845.00",30/08/2016,R,REDACTED
776,Childrens & Education Services,Behavioural Support,Language & Learning Service,K90025,Employees                     ,Direct Employee Expenses      ,AA17,Agency Staff & Casual Paymts            ,960.00,08/08/2016,R,REDACTED
777,Childrens & Education Services,Behavioural Support,Language & Learning Service,K90025,Employees                     ,Indirect Employee Expenses    ,AB02,Recruitment Adverts                     ,850.00,01/09/2016,R,REDACTIVE MEDIA SALES (RYL COL
778,Childrens & Education Services,Behavioural Support,Language & Learning Service,K90025,Employees                     ,Indirect Employee Expenses    ,AB57,EXTERNAL TRAINING COSTS                 ,552.00,12/09/2016,R,LEICESTER CITY COUNCIL        
779,Childrens & Education Services,Facilitating School Improvemnt,SSQ CORE OFFER (DSG),K90040,Third Party Payments          ,Other Local Authorities       ,EB01,Payments to OLAs                        ,"15,000.00",08/09/2016,R,LONDON BOROUGH OF SUTTON      
780,Childrens & Education Services,Nursery schools,EARLY YEARS NURSERY GRANTS,K90042,Supplies & Services           ,Grants and Subscriptions      ,DJ57,Nursery Grant Payment-4yr olds          ,666.96,06/09/2016,R,BUILDING BLOCKS KIDS CLUB PLUS
781,Childrens & Education Services,Nursery schools,EARLY YEARS NURSERY GRANTS,K90042,Supplies & Services           ,Grants and Subscriptions      ,DJ57,Nursery Grant Payment-4yr olds          ,905.76,06/09/2016,R,CHERUBS @ NEWMINSTER          
782,Childrens & Education Services,Nursery schools,EARLY YEARS NURSERY GRANTS,K90042,Supplies & Services           ,Grants and Subscriptions      ,DJ57,Nursery Grant Payment-4yr olds          ,"1,324.50",07/09/2016,R,HOLY CROSS PRE SCHOOL         
783,Childrens & Education Services,Nursery schools,EARLY YEARS NURSERY GRANTS,K90042,Supplies & Services           ,Grants and Subscriptions      ,DJ57,Nursery Grant Payment-4yr olds          ,"1,455.15",06/09/2016,R,BLOSSOM HOUSE SCHOOL          
784,Childrens & Education Services,Nursery schools,EARLY YEARS NURSERY GRANTS,K90042,Supplies & Services           ,Grants and Subscriptions      ,DJ57,Nursery Grant Payment-4yr olds          ,"2,036.96",07/09/2016,R,LITTLE CATERPILLARS           
785,Childrens & Education Services,Nursery schools,EARLY YEARS NURSERY GRANTS,K90042,Supplies & Services           ,Grants and Subscriptions      ,DJ57,Nursery Grant Payment-4yr olds          ,"2,083.86",06/09/2016,R,ACORN NURSERY                 
786,Childrens & Education Services,Nursery schools,EARLY YEARS NURSERY GRANTS,K90042,Supplies & Services           ,Grants and Subscriptions      ,DJ57,Nursery Grant Payment-4yr olds          ,"2,134.37",06/09/2016,R,ARK AT SHERWOOD LTD           
787,Childrens & Education Services,Nursery schools,EARLY YEARS NURSERY GRANTS,K90042,Supplies & Services           ,Grants and Subscriptions      ,DJ57,Nursery Grant Payment-4yr olds          ,"2,403.99",07/09/2016,R,WIMBL'DN HILL NURS'Y & PRE SCH
788,Childrens & Education Services,Nursery schools,EARLY YEARS NURSERY GRANTS,K90042,Supplies & Services           ,Grants and Subscriptions      ,DJ57,Nursery Grant Payment-4yr olds          ,"2,667.84",06/09/2016,R,DEE'S DAYS NURSERY            
789,Childrens & Education Services,Nursery schools,EARLY YEARS NURSERY GRANTS,K90042,Supplies & Services           ,Grants and Subscriptions      ,DJ57,Nursery Grant Payment-4yr olds          ,"2,705.95",07/09/2016,R,BUMPSA-DAISIES NURSERY        
790,Childrens & Education Services,Nursery schools,EARLY YEARS NURSERY GRANTS,K90042,Supplies & Services           ,Grants and Subscriptions      ,DJ57,Nursery Grant Payment-4yr olds          ,"2,824.10",06/09/2016,R,MINNIE & MAMMA DAY NURSERY LTD
791,Childrens & Education Services,Nursery schools,EARLY YEARS NURSERY GRANTS,K90042,Supplies & Services           ,Grants and Subscriptions      ,DJ57,Nursery Grant Payment-4yr olds          ,"2,842.27",06/09/2016,R,JOLLYTIME PLAYGROUP           
792,Childrens & Education Services,Nursery schools,EARLY YEARS NURSERY GRANTS,K90042,Supplies & Services           ,Grants and Subscriptions      ,DJ57,Nursery Grant Payment-4yr olds          ,"2,899.24",07/09/2016,R,LITTLE HANDS MONTESSORI       
793,Childrens & Education Services,Nursery schools,EARLY YEARS NURSERY GRANTS,K90042,Supplies & Services           ,Grants and Subscriptions      ,DJ57,Nursery Grant Payment-4yr olds          ,"2,995.05",06/09/2016,R,BUMBLE BEES'S DAY NURSERY-COCC
794,Childrens & Education Services,Nursery schools,EARLY YEARS NURSERY GRANTS,K90042,Supplies & Services           ,Grants and Subscriptions      ,DJ57,Nursery Grant Payment-4yr olds          ,"3,081.36",07/09/2016,R,LITTLE FOREST FOLK LTD        
795,Childrens & Education Services,Nursery schools,EARLY YEARS NURSERY GRANTS,K90042,Supplies & Services           ,Grants and Subscriptions      ,DJ57,Nursery Grant Payment-4yr olds          ,"3,334.80",06/09/2016,R,CROWN KINDERGARTEN            
796,Childrens & Education Services,Nursery schools,EARLY YEARS NURSERY GRANTS,K90042,Supplies & Services           ,Grants and Subscriptions      ,DJ57,Nursery Grant Payment-4yr olds          ,"3,935.06",06/09/2016,R,ST MARK'S MONTESSORI          
797,Childrens & Education Services,Nursery schools,EARLY YEARS NURSERY GRANTS,K90042,Supplies & Services           ,Grants and Subscriptions      ,DJ57,Nursery Grant Payment-4yr olds          ,"4,001.76",06/09/2016,R,CHERUBS CHILDCARE LTD         
798,Childrens & Education Services,Nursery schools,EARLY YEARS NURSERY GRANTS,K90042,Supplies & Services           ,Grants and Subscriptions      ,DJ57,Nursery Grant Payment-4yr olds          ,"4,001.76",06/09/2016,R,DEE'S DAY NURSERY             
799,Childrens & Education Services,Nursery schools,EARLY YEARS NURSERY GRANTS,K90042,Supplies & Services           ,Grants and Subscriptions      ,DJ57,Nursery Grant Payment-4yr olds          ,"4,058.93",07/09/2016,R,BANANA MOON DAY NURSERY       
800,Childrens & Education Services,Nursery schools,EARLY YEARS NURSERY GRANTS,K90042,Supplies & Services           ,Grants and Subscriptions      ,DJ57,Nursery Grant Payment-4yr olds          ,"4,735.42",06/09/2016,R,MINI TREASURES DAY NURSERY    
801,Childrens & Education Services,Nursery schools,EARLY YEARS NURSERY GRANTS,K90042,Supplies & Services           ,Grants and Subscriptions      ,DJ57,Nursery Grant Payment-4yr olds          ,"4,735.42",06/09/2016,R,PLAYDAYS DAY NURSERY          
802,Childrens & Education Services,Nursery schools,EARLY YEARS NURSERY GRANTS,K90042,Supplies & Services           ,Grants and Subscriptions      ,DJ57,Nursery Grant Payment-4yr olds          ,"4,735.42",13/09/2016,R,MERTON PARK MONTESSORI NURSERY
803,Childrens & Education Services,Nursery schools,EARLY YEARS NURSERY GRANTS,K90042,Supplies & Services           ,Grants and Subscriptions      ,DJ57,Nursery Grant Payment-4yr olds          ,"5,202.29",07/09/2016,R,NURSERY ON THE GREEN          
804,Childrens & Education Services,Nursery schools,EARLY YEARS NURSERY GRANTS,K90042,Supplies & Services           ,Grants and Subscriptions      ,DJ57,Nursery Grant Payment-4yr olds          ,"5,380.14",06/09/2016,R,OAKTREE PRE-SCHOOL NURSERY    
805,Childrens & Education Services,Nursery schools,EARLY YEARS NURSERY GRANTS,K90042,Supplies & Services           ,Grants and Subscriptions      ,DJ57,Nursery Grant Payment-4yr olds          ,"5,402.38",07/09/2016,R,LOVE LANE DAY NURSERY         
806,Childrens & Education Services,Nursery schools,EARLY YEARS NURSERY GRANTS,K90042,Supplies & Services           ,Grants and Subscriptions      ,DJ57,Nursery Grant Payment-4yr olds          ,"5,411.90",06/09/2016,R,LA PETITE FLEUR PRE-SCHOOL    
807,Childrens & Education Services,Nursery schools,EARLY YEARS NURSERY GRANTS,K90042,Supplies & Services           ,Grants and Subscriptions      ,DJ57,Nursery Grant Payment-4yr olds          ,"5,411.90",06/09/2016,R,MMI PRE SCHOOL                
808,Childrens & Education Services,Nursery schools,EARLY YEARS NURSERY GRANTS,K90042,Supplies & Services           ,Grants and Subscriptions      ,DJ57,Nursery Grant Payment-4yr olds          ,"5,776.90",06/09/2016,R,FIRST LITTLE STEPS            
809,Childrens & Education Services,Nursery schools,EARLY YEARS NURSERY GRANTS,K90042,Supplies & Services           ,Grants and Subscriptions      ,DJ57,Nursery Grant Payment-4yr olds          ,"5,908.31",06/09/2016,R,CHERUBS @ ST THOMAS           
810,Childrens & Education Services,Nursery schools,EARLY YEARS NURSERY GRANTS,K90042,Supplies & Services           ,Grants and Subscriptions      ,DJ57,Nursery Grant Payment-4yr olds          ,"6,002.64",06/09/2016,R,DICKY BIRDS PRE-SCH NURSERIES 
811,Childrens & Education Services,Nursery schools,EARLY YEARS NURSERY GRANTS,K90042,Supplies & Services           ,Grants and Subscriptions      ,DJ57,Nursery Grant Payment-4yr olds          ,"6,002.64",07/09/2016,R,NURTURE SW20                  
812,Childrens & Education Services,Nursery schools,EARLY YEARS NURSERY GRANTS,K90042,Supplies & Services           ,Grants and Subscriptions      ,DJ57,Nursery Grant Payment-4yr olds          ,"6,454.18",07/09/2016,R,WILLOWS PRE-SCHOOL            
813,Childrens & Education Services,Nursery schools,EARLY YEARS NURSERY GRANTS,K90042,Supplies & Services           ,Grants and Subscriptions      ,DJ57,Nursery Grant Payment-4yr olds          ,"6,469.51",06/09/2016,R,ST OLAVES NURSERY             
814,Childrens & Education Services,Nursery schools,EARLY YEARS NURSERY GRANTS,K90042,Supplies & Services           ,Grants and Subscriptions      ,DJ57,Nursery Grant Payment-4yr olds          ,"6,593.52",06/09/2016,R,JIGSAW DAY NURSERY            
815,Childrens & Education Services,Nursery schools,EARLY YEARS NURSERY GRANTS,K90042,Supplies & Services           ,Grants and Subscriptions      ,DJ57,Nursery Grant Payment-4yr olds          ,"6,745.82",07/09/2016,R,FUNKY OWLS NURSERY            
816,Childrens & Education Services,Nursery schools,EARLY YEARS NURSERY GRANTS,K90042,Supplies & Services           ,Grants and Subscriptions      ,DJ57,Nursery Grant Payment-4yr olds          ,"7,336.56",06/09/2016,R,CAROUSEL LTD                  
817,Childrens & Education Services,Nursery schools,EARLY YEARS NURSERY GRANTS,K90042,Supplies & Services           ,Grants and Subscriptions      ,DJ57,Nursery Grant Payment-4yr olds          ,"7,336.56",06/09/2016,R,EVELINE DAY & NURSERY SCHS LTD
818,Childrens & Education Services,Nursery schools,EARLY YEARS NURSERY GRANTS,K90042,Supplies & Services           ,Grants and Subscriptions      ,DJ57,Nursery Grant Payment-4yr olds          ,"7,336.56",06/09/2016,R,LITTLE HOUSE                  
819,Childrens & Education Services,Nursery schools,EARLY YEARS NURSERY GRANTS,K90042,Supplies & Services           ,Grants and Subscriptions      ,DJ57,Nursery Grant Payment-4yr olds          ,"7,336.56",07/09/2016,R,BUTTERFLIES CHILDCARE LIMITED 
820,Childrens & Education Services,Nursery schools,EARLY YEARS NURSERY GRANTS,K90042,Supplies & Services           ,Grants and Subscriptions      ,DJ57,Nursery Grant Payment-4yr olds          ,"7,336.56",07/09/2016,R,NURTURE DAY NURSERIES         
821,Childrens & Education Services,Nursery schools,EARLY YEARS NURSERY GRANTS,K90042,Supplies & Services           ,Grants and Subscriptions      ,DJ57,Nursery Grant Payment-4yr olds          ,"7,336.56",07/09/2016,R,WIMBLEDON DAY NURSERY 2       
822,Childrens & Education Services,Nursery schools,EARLY YEARS NURSERY GRANTS,K90042,Supplies & Services           ,Grants and Subscriptions      ,DJ57,Nursery Grant Payment-4yr olds          ,"7,441.37",06/09/2016,R,THE PRE-SCHOOL GROUP LTD      
823,Childrens & Education Services,Nursery schools,EARLY YEARS NURSERY GRANTS,K90042,Supplies & Services           ,Grants and Subscriptions      ,DJ57,Nursery Grant Payment-4yr olds          ,"7,959.06",06/09/2016,R,COOPERATIVE CHILDCARE         
824,Childrens & Education Services,Nursery schools,EARLY YEARS NURSERY GRANTS,K90042,Supplies & Services           ,Grants and Subscriptions      ,DJ57,Nursery Grant Payment-4yr olds          ,"8,003.52",06/09/2016,R,HASLEMERE HOUSE DAY NURSERY   
825,Childrens & Education Services,Nursery schools,EARLY YEARS NURSERY GRANTS,K90042,Supplies & Services           ,Grants and Subscriptions      ,DJ57,Nursery Grant Payment-4yr olds          ,"8,540.89",07/09/2016,R,THE LONDON ACORN SCHOOL       
826,Childrens & Education Services,Nursery schools,EARLY YEARS NURSERY GRANTS,K90042,Supplies & Services           ,Grants and Subscriptions      ,DJ57,Nursery Grant Payment-4yr olds          ,"8,546.62",06/09/2016,R,BUSY BEES DAY NURSERY - MORDEN
827,Childrens & Education Services,Nursery schools,EARLY YEARS NURSERY GRANTS,K90042,Supplies & Services           ,Grants and Subscriptions      ,DJ57,Nursery Grant Payment-4yr olds          ,"8,670.48",06/09/2016,R,BLOOMING YEARS DAY NURSERY    
828,Childrens & Education Services,Nursery schools,EARLY YEARS NURSERY GRANTS,K90042,Supplies & Services           ,Grants and Subscriptions      ,DJ57,Nursery Grant Payment-4yr olds          ,"10,147.32",06/09/2016,R,KIDDIES KOTTAGE NURSERY       
829,Childrens & Education Services,Nursery schools,EARLY YEARS NURSERY GRANTS,K90042,Supplies & Services           ,Grants and Subscriptions      ,DJ57,Nursery Grant Payment-4yr olds          ,"10,147.32",06/09/2016,R,PLAYDAYS DAY NURSERY          
830,Childrens & Education Services,Nursery schools,EARLY YEARS NURSERY GRANTS,K90042,Supplies & Services           ,Grants and Subscriptions      ,DJ57,Nursery Grant Payment-4yr olds          ,"10,449.04",06/09/2016,R,EVELINE DAY NURSERY SCHOOLS   
831,Childrens & Education Services,Nursery schools,EARLY YEARS NURSERY GRANTS,K90042,Supplies & Services           ,Grants and Subscriptions      ,DJ57,Nursery Grant Payment-4yr olds          ,"11,644.61",06/09/2016,R,THE GARDEN ROOM               
832,Childrens & Education Services,Nursery schools,EARLY YEARS NURSERY GRANTS,K90042,Supplies & Services           ,Grants and Subscriptions      ,DJ57,Nursery Grant Payment-4yr olds          ,"11,748.02",06/09/2016,R,COLLIERS WOOD VILLAGE DAY NUR.
833,Childrens & Education Services,Nursery schools,EARLY YEARS NURSERY GRANTS,K90042,Supplies & Services           ,Grants and Subscriptions      ,DJ57,Nursery Grant Payment-4yr olds          ,"11,886.57",06/09/2016,R,WILLINGTON SCH.FOUNDATION LTD 
834,Childrens & Education Services,Nursery schools,EARLY YEARS NURSERY GRANTS,K90042,Supplies & Services           ,Grants and Subscriptions      ,DJ57,Nursery Grant Payment-4yr olds          ,"12,005.28",06/09/2016,R,DICKY BIRDS DAY NURSERIES     
835,Childrens & Education Services,Nursery schools,EARLY YEARS NURSERY GRANTS,K90042,Supplies & Services           ,Grants and Subscriptions      ,DJ57,Nursery Grant Payment-4yr olds          ,"13,171.95",06/09/2016,R,CAROUSEL DAY NURSERY          
836,Childrens & Education Services,Nursery schools,EARLY YEARS NURSERY GRANTS,K90042,Supplies & Services           ,Grants and Subscriptions      ,DJ57,Nursery Grant Payment-4yr olds          ,"14,668.60",06/09/2016,R,WILLOW PRE SCHOOL             
837,Childrens & Education Services,Nursery schools,EARLY YEARS NURSERY GRANTS,K90042,Supplies & Services           ,Grants and Subscriptions      ,DJ57,Nursery Grant Payment-4yr olds          ,"15,557.13",06/09/2016,R,URSULINE PREPARATORY SCHOOL   
838,Childrens & Education Services,Nursery schools,EARLY YEARS NURSERY GRANTS,K90042,Supplies & Services           ,Grants and Subscriptions      ,DJ57,Nursery Grant Payment-4yr olds          ,"15,873.65",06/09/2016,R,WIMBLEDON HOUSE DAY NURSERY   
839,Childrens & Education Services,Nursery schools,EARLY YEARS NURSERY GRANTS,K90042,Supplies & Services           ,Grants and Subscriptions      ,DJ57,Nursery Grant Payment-4yr olds          ,"16,007.04",06/09/2016,R,BUILDING BLOCKS NURSERY       
840,Childrens & Education Services,Nursery schools,EARLY YEARS NURSERY GRANTS,K90042,Supplies & Services           ,Grants and Subscriptions      ,DJ57,Nursery Grant Payment-4yr olds          ,"17,150.40",06/09/2016,R,WIMBLEDON DAY NURSERY         
841,Childrens & Education Services,Nursery schools,EARLY YEARS NURSERY GRANTS,K90042,Supplies & Services           ,Grants and Subscriptions      ,DJ57,Nursery Grant Payment-4yr olds          ,"17,416.39",06/09/2016,R,DICKY BIRDS PRE SCHOOL NURSERY
842,Childrens & Education Services,Nursery schools,EARLY YEARS NURSERY GRANTS,K90042,Supplies & Services           ,Grants and Subscriptions      ,DJ57,Nursery Grant Payment-4yr olds          ,"18,970.25",06/09/2016,R,KINGSWOOD DAYCARE NURSERY LTD 
843,Childrens & Education Services,Nursery schools,EARLY YEARS NURSERY GRANTS,K90042,Supplies & Services           ,Grants and Subscriptions      ,DJ57,Nursery Grant Payment-4yr olds          ,"25,725.60",06/09/2016,R,CASTLE KINDERGARTEN           
844,Childrens & Education Services,Nursery schools,EARLY YEARS NURSERY GRANTS,K90042,Supplies & Services           ,Grants and Subscriptions      ,DJ57,Nursery Grant Payment-4yr olds          ,"26,551.73",06/09/2016,R,DATE VALLEY SCHOOL            
845,Childrens & Education Services,Nursery schools,EARLY YEARS NURSERY GRANTS,K90042,Supplies & Services           ,Grants and Subscriptions      ,DJ57,Nursery Grant Payment-4yr olds          ,"27,208.67",06/09/2016,R,DONHEAD SCHOOL                
846,Childrens & Education Services,Nursery schools,EARLY YEARS NURSERY GRANTS,K90042,Supplies & Services           ,Grants and Subscriptions      ,DJ57,Nursery Grant Payment-4yr olds          ,"29,203.32",06/09/2016,R,TEDDIES NURSERIES LTD         
847,Childrens & Education Services,Nursery schools,EARLY YEARS NURSERY GRANTS,K90042,Supplies & Services           ,Grants and Subscriptions      ,DJ57,Nursery Grant Payment-4yr olds          ,(907.20),07/09/2016,R,REDACTED
848,Childrens & Education Services,Nursery schools,EARLY YEARS NURSERY GRANTS,K90042,Supplies & Services           ,Grants and Subscriptions      ,DJ57,Nursery Grant Payment-4yr olds          ,793.33,07/09/2016,R,REDACTED
849,Childrens & Education Services,Nursery schools,EARLY YEARS NURSERY GRANTS,K90042,Supplies & Services           ,Grants and Subscriptions      ,DJ57,Nursery Grant Payment-4yr olds          ,820.80,07/09/2016,R,REDACTED
850,Childrens & Education Services,Nursery schools,EARLY YEARS NURSERY GRANTS,K90042,Supplies & Services           ,Grants and Subscriptions      ,DJ57,Nursery Grant Payment-4yr olds          ,823.96,07/09/2016,R,REDACTED
851,Childrens & Education Services,Nursery schools,EARLY YEARS NURSERY GRANTS,K90042,Supplies & Services           ,Grants and Subscriptions      ,DJ57,Nursery Grant Payment-4yr olds          ,838.25,07/09/2016,R,REDACTED
852,Childrens & Education Services,Nursery schools,EARLY YEARS NURSERY GRANTS,K90042,Supplies & Services           ,Grants and Subscriptions      ,DJ57,Nursery Grant Payment-4yr olds          ,889.88,07/09/2016,R,REDACTED
853,Childrens & Education Services,Nursery schools,EARLY YEARS NURSERY GRANTS,K90042,Supplies & Services           ,Grants and Subscriptions      ,DJ57,Nursery Grant Payment-4yr olds          ,902.25,07/09/2016,R,REDACTED
854,Childrens & Education Services,Nursery schools,EARLY YEARS NURSERY GRANTS,K90042,Supplies & Services           ,Grants and Subscriptions      ,DJ57,Nursery Grant Payment-4yr olds          ,907.20,07/09/2016,R,REDACTED
855,Childrens & Education Services,Nursery schools,EARLY YEARS NURSERY GRANTS,K90042,Supplies & Services           ,Grants and Subscriptions      ,DJ57,Nursery Grant Payment-4yr olds          ,907.20,07/09/2016,R,REDACTED
856,Childrens & Education Services,Nursery schools,EARLY YEARS NURSERY GRANTS,K90042,Supplies & Services           ,Grants and Subscriptions      ,DJ57,Nursery Grant Payment-4yr olds          ,907.20,07/09/2016,R,REDACTED
857,Childrens & Education Services,Nursery schools,EARLY YEARS NURSERY GRANTS,K90042,Supplies & Services           ,Grants and Subscriptions      ,DJ57,Nursery Grant Payment-4yr olds          ,907.20,21/09/2016,R,REDACTED
858,Childrens & Education Services,Nursery schools,EARLY YEARS NURSERY GRANTS,K90042,Supplies & Services           ,Grants and Subscriptions      ,DJ57,Nursery Grant Payment-4yr olds          ,"1,628.47",07/09/2016,R,REDACTED
859,Childrens & Education Services,Nursery schools,EARLY YEARS NURSERY GRANTS,K90042,Supplies & Services           ,Grants and Subscriptions      ,DJ57,Nursery Grant Payment-4yr olds          ,"1,814.40",07/09/2016,R,REDACTED
860,Childrens & Education Services,Nursery schools,EARLY YEARS NURSERY GRANTS,K90042,Supplies & Services           ,Grants and Subscriptions      ,DJ57,Nursery Grant Payment-4yr olds          ,"4,924.80",07/09/2016,R,REDACTED
861,Childrens & Education Services,Nursery schools,EARLY YEARS NURSERY GRANTS,K90042,Supplies & Services           ,Grants and Subscriptions      ,DJ57,Nursery Grant Payment-4yr olds          ,"5,684.54",06/09/2016,R,REDACTED
862,Childrens & Education Services,Nursery schools,EARLY YEARS NURSERY GRANTS,K90042,Supplies & Services           ,Grants and Subscriptions      ,DJ57,Nursery Grant Payment-4yr olds          ,"9,946.87",06/09/2016,R,REDACTED
863,Childrens & Education Services,Nursery schools,EARLY YEARS NURSERY GRANTS,K90042,Supplies & Services           ,Grants and Subscriptions      ,DJ58,Nursery Grant Payment-3yr olds          ,660.96,06/09/2016,R,COLLIERS WOOD VILLAGE DAY NUR.
864,Childrens & Education Services,Nursery schools,EARLY YEARS NURSERY GRANTS,K90042,Supplies & Services           ,Grants and Subscriptions      ,DJ58,Nursery Grant Payment-3yr olds          ,665.28,06/09/2016,R,COOPERATIVE CHILDCARE         
865,Childrens & Education Services,Nursery schools,EARLY YEARS NURSERY GRANTS,K90042,Supplies & Services           ,Grants and Subscriptions      ,DJ58,Nursery Grant Payment-3yr olds          ,897.75,06/09/2016,R,LITTLE LEARNERS               
866,Childrens & Education Services,Nursery schools,EARLY YEARS NURSERY GRANTS,K90042,Supplies & Services           ,Grants and Subscriptions      ,DJ58,Nursery Grant Payment-3yr olds          ,907.20,06/09/2016,R,DEE'S DAYS NURSERY            
867,Childrens & Education Services,Nursery schools,EARLY YEARS NURSERY GRANTS,K90042,Supplies & Services           ,Grants and Subscriptions      ,DJ58,Nursery Grant Payment-3yr olds          ,"1,347.19",06/09/2016,R,DICKY BIRDS PRE SCHOOL NURSERY
868,Childrens & Education Services,Nursery schools,EARLY YEARS NURSERY GRANTS,K90042,Supplies & Services           ,Grants and Subscriptions      ,DJ58,Nursery Grant Payment-3yr olds          ,"1,840.32",06/09/2016,R,MMI PRE SCHOOL                
869,Childrens & Education Services,Nursery schools,EARLY YEARS NURSERY GRANTS,K90042,Supplies & Services           ,Grants and Subscriptions      ,DJ58,Nursery Grant Payment-3yr olds          ,"1,840.32",12/09/2016,R,RAYNES PK PRE SCH DAY NURSERY 
870,Childrens & Education Services,Nursery schools,EARLY YEARS NURSERY GRANTS,K90042,Supplies & Services           ,Grants and Subscriptions      ,DJ58,Nursery Grant Payment-3yr olds          ,"1,985.47",07/09/2016,R,LITTLE FOREST FOLK LTD        
